Workbook

Sheet 1ST LIST OF DIVIDEND PAYABLE
A1: 1ST LIST OF DIVIDEND PAYABLE @ 21 PAISA IN A RUPEE OF M/S. VIJAYA COMMERCIAL CREDIT LIMITED (IN LIQUIDATION)
A2: CLAIM NO | B2: DIS NO. | C2: BR_CODE | D2: TRAN_NO | E2: TRAN_TYPE | F2: SD_FLAG | G2: TRAN_DATE | H2: CUST_TITL | I2: COUNT | J2: CUST_NAME | K2: SEC_TITL | L2: SEC_NAME | M2: THR_TITL | N2: THR_NAME | O2: MINOR | P2: GUARD | Q2: DOB | R2: CUST_ADD1 | S2: CUST_ADD2 | T2: CUST_ADD3 | U2: CUST_CITY | V2: CUST_PIN | W2: RENEW | X2: DEP_AMT | Y2: DEP_DATE | Z2: DUE_DATE | AA2: INTONE | AB2: INTMID | AC2: INTEND | AD2: MAT_DATE | AE2: MAT_AMT | AF2: STATUS | AG2: CATEG | AH2: LEDFOLIO | AI2: REPAY | AJ2: AGNT_CODE | AK2: AGNT_NAME | AL2: TENURE_MT | AM2: TENURE_DY | AN2: PAY_TYPE | AO2: PAY_MODE | AP2: INT_CERT | AQ2: INT_EFF | AR2: BENF | AS2: BANK_CODE | AT2: DD_BANK | AU2: BENF_NAME | AV2: BANK_NAME | AW2: BANK_ADD1 | AX2: BANK_ADD2 | AY2: BANK_ADD3 | AZ2: BANK_CITY | BA2: BANK_PIN | BB2: SBACNO | BC2: INT_ADD1 | BD2: INT_ADD2 | BE2: INT_ADD3 | BF2: INT_CITY | BG2: INT_PIN | BH2: FORM | BI2: TDS | BJ2: PAN | BK2: PRTCNTR | BL2: TRAN_STAT | BM2: INTPRO_DT | BN2: OB_INT | BO2: OB_TAX | BP2: CUR_INT | BQ2: CUR_TAX | BR2: CLOSEDATE | BS2: LUSER_ID | BT2: LUSER_DT | BU2: PROPOSED DIVIDEND | BV2: AMOUNT ALREADY PAID | BW2: BAL PAYABLE
A3: 1 | B3: 398 | C3: 4 | D3: 2260269 | E3: CD | G3: 1996-01-28 | H3: M/S | I3: =COUNTIFS(J:J,J3,R:R,R3,S:S,S3,T:T,T3,U:U,U3,V:V,V3) -> 1 | J3: A B SADALGI & CO | O3: N | R3: POST HARUGERI | S3: DIST BELGAUM | T3: , | U3: , | V3: 591220 | W3: Y | X3: 25000 | Y3: 1996-01-28 | Z3: 1996-01-28 | AA3: 0 | AB3: 0 | AC3: 0 | AD3: 1999-01-28 | AE3: 39100 | AF3: 1 | AG3: 512 | AI3: 1 | AJ3: 3S0112 | AK3: SADALGI | AL3: 36 | AM3: 0 | AN3: M | AO3: 2 | AP3: 15 | AQ3: 18.8 | AR3: N | BC3: POST HARUGERI | BD3: DIST BELGAUM | BG3: 591220 | BH3: Y | BI3: N | BK3: 0 | BL3: A | BN3: 4414.77 | BO3: 0 | BP3: 367.68 | BQ3: 0 | BS3: CONVERTION | BT3: 1997-04-10 | BU3: =+X3*21% -> 5250 | BV3: 0 | BW3: 5250
A4: 2 | B4: 399 | C4: 4 | D4: 2290704 | E4: CD | G4: 1999-08-09 | H4: MRS | I4: =COUNTIFS(J:J,J4,R:R,R4,S:S,S4,T:T,T4,U:U,U4,V:V,V4) -> 1 | J4: A S WALI | K4: MR | L4: PATIL M B | O4: N | R4: AT & POST SAMPAGAON | S4: , | T4: , | U4: BELGAUM | V4: 591115 | W4: Y | X4: 16000 | Y4: 1999-07-26 | AA4: 239.45 | AB4: 200 | AC4: -2839.45 | AD4: 2000-07-27 | AE4: 18400 | AF4: 1 | AG4: 512 | AI4: 2 | AJ4: 3S0292 | AK4: SHEELA SHETTY | AL4: 12 | AM4: 1 | AN4: M | AO4: 2 | AP4: 14 | AQ4: 15 | BC4: AT & POST SAMPAGAON | BF4: BELGAUM | BG4: 591115 | BH4: N | BI4: N | BK4: 0 | BL4: A | BM4: 2000-04-24 | BN4: 0 | BO4: 0 | BP4: 0 | BQ4: 0 | BS4: GEETHA | BT4: 1999-08-09 | BU4: 3360 | BV4: 0 | BW4: 3360
A5: 3 | B5: 400 | C5: 17 | D5: 2290429 | E5: CD | G5: 1999-06-16 | H5: MR | I5: =COUNTIFS(J:J,J5,R:R,R5,S:S,S5,T:T,T5,U:U,U5,V:V,V5) -> 1 | J5: A SHRIDHAR MANJA | K5: MR | L5: A RAMACHANDRA MANJA | O5: N | R5: S/O A RAMACHANDRA | S5: MANA KATTE | T5: POST KERGAL | U5: KUNDAPUR TALUK | V5: , | X5: 10000 | Y5: 1999-06-05 | AA5: 123.59 | AB5: 144.58 | AC5: -3738.17 | AD5: 2001-06-06 | AE5: 13470 | AF5: 1 | AG5: 512 | AI5: 2 | AJ5: 3V0013 | AK5: VALERIAN PAIS | AL5: 24 | AM5: 1 | AN5: M | AO5: 2 | AP5: 15 | AQ5: 17.35 | BC5: S/O A RAMACHANDRA | BD5: MANA KATTE | BE5: POST KERGAL | BF5: KUNDAPUR TALUK | BH5: N | BI5: N | BK5: 0 | BL5: A | BM5: 2000-04-24 | BN5: 0 | BO5: 0 | BP5: 0 | BQ5: 0 | BS5: GEETHA | BT5: 1999-06-17 | BU5: 2100 | BV5: 0 | BW5: 2100
A6: 4 | B6: 401 | C6: 15 | D6: 2690041 | E6: CD | F6: Y | G6: 1999-06-07 | H6: DR | I6: =COUNTIFS(J:J,J6,R:R,R6,S:S,S6,T:T,T6,U:U,U6,V:V,V6) -> 1 | J6: A V KARUNAKARAN | O6: N | R6: `SREE VIHAR' | S6: , | T6: , | U6: PAYYANUR | V6: , | X6: 12000 | Y6: 1999-05-11 | AA6: 265.21 | AB6: 160 | AC6: -4265.21 | AD6: 2001-05-12 | AE6: 15840 | AF6: 1 | AG6: 512 | AI6: 1 | AJ6: 3D9999 | AK6: DIRECT DEPOSIT | AL6: 24 | AM6: 1 | AN6: M | AO6: 2 | AP6: 14 | AQ6: 16 | BC6: `SREE VIHAR' | BF6: PAYYANUR | BH6: N | BI6: N | BK6: 0 | BL6: A | BM6: 2000-04-24 | BN6: 0 | BO6: 0 | BP6: 0 | BQ6: 0 | BS6: GEETHA | BT6: 1999-06-08 | BU6: 2520 | BV6: 0 | BW6: 2520
A7: 5 | B7: 402 | C7: 15 | D7: 2690070 | E7: CD | F7: Y | G7: 1999-07-14 | H7: DR | I7: =COUNTIFS(J:J,J7,R:R,R7,S:S,S7,T:T,T7,U:U,U7,V:V,V7) -> 1 | J7: A V KARUNAKARAN | O7: N | R7: ASHA HOSPITAL | S7: PAYYANUR | T7: , | U7: CANNANORE | V7: , | X7: 12000 | Y7: 1999-05-17 | AA7: 396.71 | AB7: 160 | AC7: -4396.71 | AD7: 2001-05-18 | AE7: 15840 | AF7: 1 | AG7: 512 | AI7: 1 | AJ7: 3D9999 | AK7: DIRECT DEPOSIT | AL7: 24 | AM7: 1 | AN7: M | AO7: 2 | AP7: 14 | AQ7: 16 | BC7: ASHA HOSPITAL | BD7: PAYYANUR | BF7: CANNANORE | BH7: N | BI7: N | BK7: 0 | BL7: A | BM7: 2000-04-24 | BN7: 0 | BO7: 0 | BP7: 0 | BQ7: 0 | BS7: GEETHA | BT7: 1999-07-14 | BU7: 2520 | BV7: 0 | BW7: 2520
A8: 6 | B8: 403 | C8: 15 | D8: 2690085 | E8: CD | F8: Y | G8: 1999-08-05 | H8: DR | I8: =COUNTIFS(J:J,J8,R:R,R8,S:S,S8,T:T,T8,U:U,U8,V:V,V8) -> 1 | J8: A V KARUNAKARAN | O8: N | R8: `SREE VIHAR' | S8: PAYYANUR | T8: , | U8: , | V8: , | X8: 12000 | Y8: 1999-05-14 | AA8: 670.17 | AB8: 186.3 | AC8: -9796.47 | AD8: 2003-05-14 | AE8: 20940 | AF8: 1 | AG8: 512 | AI8: 1 | AJ8: 3D9999 | AK8: DIRECT DEPOSIT | AL8: 48 | AM8: 0 | AN8: M | AO8: 2 | AP8: 14 | AQ8: 18.63 | BC8: `SREE VIHAR' | BD8: PAYYANUR | BH8: N | BI8: N | BK8: 0 | BL8: A | BM8: 2000-04-24 | BN8: 0 | BO8: 0 | BP8: 0 | BQ8: 0 | BS8: GEETHA | BT8: 1999-08-05 | BU8: 2520 | BV8: 0 | BW8: 2520
A9: 7 | B9: 404 | C9: 15 | D9: 2690040 | E9: CD | F9: Y | G9: 1999-06-07 | H9: DR | I9: =COUNTIFS(J:J,J9,R:R,R9,S:S,S9,T:T,T9,U:U,U9,V:V,V9) -> 1 | J9: A V SREEKUMAR | O9: N | R9: `ASHA HOSPITAL' | S9: PAYYANUR | T9: , | U9: , | V9: , | X9: 13000 | Y9: 1999-05-13 | AA9: 346.96 | AB9: 217.97 | AC9: -13642.92 | AD9: 2004-05-13 | AE9: 26078 | AF9: 1 | AG9: 512 | AI9: 1 | AJ9: 3D9999 | AK9: DIRECT DEPOSIT | AL9: 60 | AM9: 0 | AN9: M | AO9: 2 | AP9: 14 | AQ9: 20.12 | BC9: `ASHA HOSPITAL' | BD9: PAYYANUR | BH9: N | BI9: N | BK9: 0 | BL9: A | BM9: 2000-04-24 | BN9: 0 | BO9: 0 | BP9: 0 | BQ9: 0 | BS9: GEETHA | BT9: 1999-06-08 | BU9: 2730 | BV9: 0 | BW9: 2730
A10: 8 | B10: 405 | C10: 15 | D10: 2690067 | E10: CD | F10: Y | G10: 1999-07-12 | H10: DR | I10: =COUNTIFS(J:J,J10,R:R,R10,S:S,S10,T:T,T10,U:U,U10,V:V,V10) -> 1 | J10: A V SREEKUMAR | O10: N | R10: 'SREEVIHAR' | S10: PAYYANUR | T10: , | U10: , | V10: , | X10: 12000 | Y10: 1999-05-17 | AA10: 498.87 | AB10: 201.2 | AC10: -12772.07 | AD10: 2004-05-17 | AE10: 24072 | AF10: 1 | AG10: 512 | AI10: 1 | AJ10: 3D9999 | AK10: DIRECT DEPOSIT | AL10: 60 | AM10: 0 | AN10: M | AO10: 2 | AP10: 14 | AQ10: 20.12 | BC10: 'SREEVIHAR' | BD10: PAYYANUR | BH10: N | BI10: N | BK10: 0 | BL10: A | BM10: 2000-04-24 | BN10: 0 | BO10: 0 | BP10: 0 | BQ10: 0 | BS10: GEETHA | BT10: 1999-07-12 | BU10: 2520 | BV10: 0 | BW10: 2520
A11: 9 | B11: 406 | C11: 15 | D11: 2690074 | E11: CD | F11: Y | G11: 1999-07-14 | H11: DR | I11: =COUNTIFS(J:J,J11,R:R,R11,S:S,S11,T:T,T11,U:U,U11,V:V,V11) -> 1 | J11: A V SREEKUMAR | O11: N | R11: SREEVIHAR | S11: PAYYANUR | T11: KANNUR | U11: , | V11: , | X11: 12000 | Y11: 1999-05-17 | AA11: 498.87 | AB11: 201.2 | AC11: -12772.07 | AD11: 2004-05-17 | AE11: 24072 | AF11: 1 | AG11: 512 | AI11: 1 | AJ11: 3D9999 | AK11: DIRECT DEPOSIT | AL11: 60 | AM11: 0 | AN11: M | AO11: 2 | AP11: 14 | AQ11: 20.12 | BC11: SREEVIHAR | BD11: PAYYANUR | BE11: KANNUR | BH11: N | BI11: N | BK11: 0 | BL11: A | BM11: 2000-04-24 | BN11: 0 | BO11: 0 | BP11: 0 | BQ11: 0 | BS11: GEETHA | BT11: 1999-07-14 | BU11: 2520 | BV11: 0 | BW11: 2520
A12: 10 | B12: 407 | C12: 15 | D12: 2690075 | E12: CD | F12: Y | G12: 1999-07-16 | H12: DR | I12: =COUNTIFS(J:J,J12,R:R,R12,S:S,S12,T:T,T12,U:U,U12,V:V,V12) -> 1 | J12: A V SREEKUMAR | O12: N | R12: `SREEVIHAR' | S12: PAYYANUR | T12: , | U12: , | V12: , | X12: 12000 | Y12: 1999-05-17 | AA12: 498.87 | AB12: 201.2 | AC12: -12772.07 | AD12: 2004-05-17 | AE12: 24072 | AF12: 1 | AG12: 512 | AI12: 1 | AJ12: 3D9999 | AK12: DIRECT DEPOSIT | AL12: 60 | AM12: 0 | AN12: M | AO12: 2 | AP12: 14 | AQ12: 20.12 | BC12: `SREEVIHAR' | BD12: PAYYANUR | BH12: N | BI12: N | BK12: 0 | BL12: A | BM12: 2000-04-24 | BN12: 0 | BO12: 0 | BP12: 0 | BQ12: 0 | BS12: GEETHA | BT12: 1999-07-16 | BU12: 2520 | BV12: 0 | BW12: 2520
A13: 11 | B13: 408 | C13: 4 | D13: 2672659 | E13: CD | G13: 1997-12-04 | H13: MS | I13: =COUNTIFS(J:J,J13,R:R,R13,S:S,S13,T:T,T13,U:U,U13,V:V,V13) -> 1 | J13: AAISHWARYA R SANIKOP | K13: MRS | L13: SHOBHA R SANIKOP | O13: N | R13: C/O MR R S SANIKOP | S13: PLOT NO 375 SECTOR NO 3 | T13: SHIVABASAV NAGAR | U13: BELGAUM | V13: 590010 | X13: 11000 | Y13: 1997-12-01 | AA13: 162.09 | AB13: 159.04 | AC13: -4138.13 | AD13: 1999-12-02 | AE13: 14817 | AF13: 1 | AG13: 512 | AI13: 2 | AJ13: 3S0244 | AK13: SHRIMA SHETTY | AL13: 24 | AM13: 1 | AN13: M | AO13: 2 | AP13: 15 | AQ13: 17.35 | BC13: C/O MR R S SANIKOP | BD13: PLOT NO 375 SECTOR NO 3 | BE13: SHIVABASAV NAGAR | BF13: BELGAUM | BG13: 590010 | BH13: N | BI13: N | BK13: 0 | BL13: A | BM13: 1998-04-08 | BN13: 0 | BO13: 0 | BP13: 0 | BQ13: 0 | BS13: VINOD | BT13: 1997-12-05 | BU13: 2310 | BV13: 2000 | BW13: 310
A14: 12 | B14: 409 | C14: 6 | D14: 2674882 | E14: CD | G14: 1998-02-24 | H14: MR | I14: =COUNTIFS(J:J,J14,R:R,R14,S:S,S14,T:T,T14,U:U,U14,V:V,V14) -> 1 | J14: AARON F COLACO | O14: N | R14: KOGGANAHALLA ESTATE | S14: BALEHOLE POST | T14: , | U14: CHICKMAGALUR DIST | V14: 577101 | W14: Y | X14: 50000 | Y14: 1998-02-22 | Z14: 1997-02-21 | AA14: 143.84 | AB14: 625 | AC14: -8268.84 | AD14: 1999-02-23 | AE14: 57500 | AF14: 1 | AG14: 512 | AI14: 1 | AJ14: 3K0050 | AK14: KINI M S | AL14: 12 | AM14: 1 | AN14: M | AO14: 2 | AP14: 14 | AQ14: 15 | AR14: N | BC14: KOGGANAHALLA ESTATE | BD14: BALEHOLE POST | BF14: CHICKMAGALUR DIST | BG14: 577101 | BH14: Y | BI14: N | BK14: 0 | BL14: A | BM14: 1998-04-08 | BN14: 0 | BO14: 0 | BP14: 0 | BQ14: 0 | BS14: VINOD | BT14: 1998-02-25 | BU14: 10500 | BV14: 5000 | BW14: 5500
A15: 13 | B15: 410 | C15: 6 | D15: 2674922 | E15: CD | G15: 1998-02-26 | H15: MR | I15: =COUNTIFS(J:J,J15,R:R,R15,S:S,S15,T:T,T15,U:U,U15,V:V,V15) -> 1 | J15: AARON F COLACO | O15: N | R15: KOGGANAHALLA ESTATE | S15: BALE HOLE POST | T15: , | U15: CHIKMAGALUR DIST | V15: 577101 | W15: Y | X15: 50000 | Y15: 1998-02-22 | Z15: 1997-02-21 | AA15: 143.84 | AB15: 625 | AC15: -8268.84 | AD15: 1999-02-23 | AE15: 57500 | AF15: 1 | AG15: 512 | AI15: 1 | AJ15: 3S0054 | AK15: SHABHARI S BANDARY | AL15: 12 | AM15: 1 | AN15: M | AO15: 2 | AP15: 14 | AQ15: 15 | AR15: N | BC15: KOGGANAHALLA ESTATE | BD15: BALE HOLE POST | BF15: CHIKMAGALUR DIST | BG15: 577101 | BH15: Y | BI15: N | BK15: 0 | BL15: A | BM15: 1998-04-08 | BN15: 0 | BO15: 0 | BP15: 0 | BQ15: 0 | BS15: ANITHA | BT15: 1998-02-27 | BU15: 10500 | BV15: 5000 | BW15: 5500
A16: 14 | B16: 411 | C16: 31 | D16: 2672011 | E16: CD | G16: 1997-11-19 | H16: MS | I16: =COUNTIFS(J:J,J16,R:R,R16,S:S,S16,T:T,T16,U:U,U16,V:V,V16) -> 1 | J16: AARTHI YADAV SHETTY (M) | O16: Y | P16: MRS SUJATHA YADAV SHETTY | Q16: 1997-08-09 | R16: 480/6 SAI KRUPA HSG SCTY | S16: PARVATHI DARSHAN | T16: , | U16: PUNE | V16: 411009 | X16: 1000 | Y16: 1997-10-31 | AA16: 15.97 | AB16: 15.67 | AC16: -595.63 | AD16: 2000-10-31 | AE16: 1564 | AF16: 1 | AG16: 512 | AI16: 1 | AJ16: 3S0107 | AK16: SUDHAKAR HEGDE | AL16: 36 | AM16: 0 | AN16: M | AO16: 2 | AP16: 15 | AQ16: 18.8 | BC16: 480/6 SAI KRUPA HSG SCTY | BD16: PARVATHI DARSHAN | BF16: PUNE | BG16: 411009 | BH16: N | BI16: N | BK16: 0 | BL16: A | BM16: 1998-04-08 | BN16: 0 | BO16: 0 | BP16: 0 | BQ16: 0 | BS16: VINOD | BT16: 1997-11-19 | BU16: 210 | BV16: 0 | BW16: 210
A17: 15 | B17: 412 | C17: 9 | D17: 2672231 | E17: CD | G17: 1997-11-24 | H17: MSTR | I17: =COUNTIFS(J:J,J17,R:R,R17,S:S,S17,T:T,T17,U:U,U17,V:V,V17) -> 1 | J17: AASHISH KHANDIGE (M) | O17: Y | P17: MRS SHAKUNTHALA K BHAT | Q17: 1992-07-27 | R17: KOGARAVALLY | S17: HALEBELUR POST | T17: , | U17: SAKLESHPUR | V17: , | X17: 14000 | Y17: 1997-11-21 | AA17: 66.55 | AB17: 202.42 | AC17: -5126.96 | AD17: 1999-11-22 | AE17: 18858 | AF17: 1 | AG17: 512 | AI17: 1 | AJ17: 3S0140 | AK17: SHYAMALA SHEKAR (MADRAS) | AL17: 24 | AM17: 1 | AN17: M | AO17: 2 | AP17: 15 | AQ17: 17.35 | BC17: KOGARAVALLY | BD17: HALEBELUR POST | BF17: SAKLESHPUR | BH17: Y | BI17: N | BK17: 0 | BL17: A | BM17: 1998-04-08 | BN17: 0 | BO17: 0 | BP17: 0 | BQ17: 0 | BS17: VINOD | BT17: 1997-11-26 | BU17: 2940 | BV17: 2000 | BW17: 940
A18: 16 | B18: 413 | C18: 8 | D18: 2286353 | E18: CD | G18: 1999-01-28 | H18: MR | I18: =COUNTIFS(J:J,J18,R:R,R18,S:S,S18,T:T,T18,U:U,U18,V:V,V18) -> 1 | J18: AASHISH KUMAR | K18: MR | L18: LAKHPAT RAI | O18: N | R18: POST DHAMORA | S18: VIA PARASRAMPURA | T18: DIST JHUNJHUNU | U18: RAJASTHAN | V18: 333313 | W18: Y | X18: 10000 | Y18: 1999-01-25 | Z18: 1994-01-25 | AA18: 42.46 | AB18: 184.5 | AC18: -11296.96 | AD18: 2004-01-25 | AE18: 21070 | AF18: 1 | AG18: 512 | AI18: 2 | AJ18: 3D9999 | AK18: DIRECT DEPOSIT | AL18: 60 | AM18: 0 | AN18: M | AO18: 2 | AP18: 15 | AQ18: 22.14 | AR18: N | BC18: POST DHAMORA | BD18: VIA PARASRAMPURA | BE18: DIST JHUNJHUNU | BF18: RAJASTHAN | BG18: 333313 | BH18: Y | BI18: N | BK18: 0 | BL18: A | BM18: 1999-05-11 | BN18: 0 | BO18: 0 | BP18: 0 | BQ18: 0 | BS18: ANITHA | BT18: 1999-01-29 | BU18: 2100 | BV18: 0 | BW18: 2100
A19: 17 | B19: 414 | C19: 16 | D19: 2272634 | E19: CD | G19: 1997-06-10 | H19: MR | I19: =COUNTIFS(J:J,J19,R:R,R19,S:S,S19,T:T,T19,U:U,U19,V:V,V19) -> 1 | J19: ABBIS SALDANA | K19: mrs | L19: HILDA SALDANA | O19: N | R19: SALDANA VILLA | S19: HALASINAKATTE POST | T19: VIA PILAR | U19: UDUPI TALUK (D K) | V19: 574113 | W19: Y | X19: 19000 | Y19: 1997-06-07 | Z19: 1994-06-07 | AA19: 234.87 | AB19: 297.67 | AC19: -11248.54 | AD19: 2000-06-07 | AE19: 29716 | AF19: 1 | AG19: 512 | AI19: 2 | AJ19: 3S0078 | AK19: SULOCHANA R HEGDE | AL19: 36 | AM19: 0 | AN19: M | AO19: 2 | AP19: 15 | AQ19: 18.8 | AR19: N | BC19: SALDANA VILLA | BD19: HALASINAKATTE POST | BE19: VIA PILAR | BF19: UDUPI TALUK (D K) | BG19: 574113 | BH19: Y | BI19: N | BK19: 0 | BL19: A | BM19: 1998-04-08 | BN19: 0 | BO19: 0 | BP19: 0 | BQ19: 0 | BS19: TEST | BT19: 1997-06-26 | BU19: 3990 | BV19: 0 | BW19: 3990
A20: 18 | B20: 415 | C20: 6 | D20: 2380157 | E20: CC | G20: 1998-06-27 | H20: MR | I20: =COUNTIFS(J:J,J20,R:R,R20,S:S,S20,T:T,T20,U:U,U20,V:V,V20) -> 1 | J20: ABBU MOHAMMED K | K20: MRS | L20: NASIRAH A MOHAMMED | O20: N | R20: SENIOR MANAGER | S20: CANARA BANK | T20: L B & P S M SECTION CIRCLE | U20: OFFICE MANGALORE | V20: 575001 | W20: Y | X20: 13356 | Y20: 1998-06-25 | AA20: 38.09 | AB20: 193.11 | AC20: -4875.2 | AD20: 2000-06-26 | AE20: 18000 | AF20: 1 | AG20: 512 | AI20: 2 | AJ20: 3B0026 | AK20: BALAKRISHNA D | AL20: 24 | AM20: 1 | AN20: M | AO20: 2 | AP20: 15 | AQ20: 17.35 | BC20: SENIOR MANAGER | BD20: CANARA BANK | BE20: L B & P S M SECTION CIRCLE | BF20: OFFICE MANGALORE | BG20: 575001 | BH20: N | BI20: N | BK20: 0 | BL20: A | BM20: 1999-05-11 | BN20: 0 | BO20: 0 | BP20: 0 | BQ20: 0 | BS20: VINOD | BT20: 1998-06-29 | BU20: 2804.76 | BV20: 0 | BW20: 2804.76
A21: 19 | B21: 416 | C21: 25 | D21: 2190225 | E21: FD | G21: 1999-07-30 | H21: MR | I21: =COUNTIFS(J:J,J21,R:R,R21,S:S,S21,T:T,T21,U:U,U21,V:V,V21) -> 1 | J21: ABDU RAZAK C | K21: MRS | L21: S V JUMAILATH | O21: N | R21: JUMMU MANZIL | S21: 19/1583 KALLAI ROAD | T21: CALICUT DIST | U21: KERALA STATE | V21: 673003 | W21: Y | X21: 17000 | Y21: 1999-07-25 | Z21: 1996-07-22 | AA21: 49.32 | AB21: 187.5 | AC21: -2486.82 | AD21: 2002-07-25 | AE21: 24650 | AF21: 1 | AG21: 512 | AI21: 2 | AJ21: 3B0037 | AK21: BALACHANDRAN NAIR | AL21: 36 | AM21: 0 | AN21: M | AO21: 5 | AP21: 15 | AQ21: 15 | AR21: N | AV21: CENTRAL BANK OF INDIA | AW21: CENTRAL BANK OF INDIA | AX21: CHEROOTY ROAD BRANCH | AY21: CALICUT | AZ21: KERALA | BB21: 8756 | BC21: JUMMU MANZIL | BD21: 19/1583 KALLAI ROAD | BE21: CALICUT DIST | BF21: KERALA STATE | BG21: 673003 | BH21: N | BI21: N | BK21: 0 | BL21: A | BM21: 1999-07-30 | BN21: 0 | BO21: 0 | BP21: 0 | BQ21: 0 | BS21: GEETHA | BT21: 1999-07-30 | BU21: 3570 | BV21: 2000 | BW21: 1570
A22: 20 | B22: 417 | C22: 25 | D22: 2190325 | E22: FD | G22: 1999-10-11 | H22: MR | I22: =COUNTIFS(J:J,J22,R:R,R22,S:S,S22,T:T,T22,U:U,U22,V:V,V22) -> 1 | J22: ABDUL AHAD | K22: MR | L22: ESA S M | O22: N | R22: NO.11/345 | S22: CHEROOTTY ROAD | T22: , | U22: CALICUT | V22: 673032 | W22: Y | X22: 50000 | Y22: 1999-10-01 | AA22: 0 | AB22: 0 | AC22: 0 | AD22: 2001-10-02 | AE22: 65000 | AF22: 1 | AG22: 512 | AI22: 2 | AJ22: 3V0039 | AK22: VIKAS K | AL22: 24 | AM22: 1 | AN22: M | AO22: 2 | AP22: 15 | AQ22: 15 | AR22: N | AS22: 23602102 | BC22: NO.11/345 | BD22: CHEROOTTY ROAD | BF22: CALICUT | BG22: 673032 | BH22: N | BI22: Y | BK22: 0 | BL22: A | BM22: 1999-10-14 | BN22: 0 | BO22: 0 | BP22: 0 | BQ22: 0 | BS22: GEETHA | BT22: 1999-10-11 | BU22: 10500 | BV22: 0 | BW22: 10500
A23: 21 | B23: 418 | C23: 25 | D23: 2180961 | E23: FD | G23: 1998-07-27 | H23: MSTR | I23: =COUNTIFS(J:J,J23,R:R,R23,S:S,S23,T:T,T23,U:U,U23,V:V,V23) -> 1 | J23: ABDUL AHAD (M) | O23: Y | P23: MR ESA S M | Q23: 1993-11-19 | R23: 11/345, CHEROOTY ROAD | S23: , | T23: , | U23: CALICUT | V23: 673032 | W23: Y | X23: 15000 | Y23: 1998-07-26 | AA23: 0 | AB23: 0 | AC23: 0 | AD23: 2000-07-27 | AE23: 19500 | AF23: 1 | AG23: 512 | AI23: 1 | AJ23: 3V0039 | AK23: VIKAS K | AL23: 24 | AM23: 1 | AN23: M | AO23: 2 | AP23: 15 | AQ23: 15 | AR23: N | AS23: 23602102 | BC23: 11/345, CHEROOTY ROAD | BF23: CALICUT | BG23: 673032 | BH23: N | BI23: N | BK23: 0 | BL23: A | BM23: 1998-07-30 | BN23: 0 | BO23: 0 | BP23: 0 | BQ23: 0 | BS23: TIGER | BT23: 1998-07-29 | BU23: 3150 | BV23: 0 | BW23: 3150
A24: 22 | B24: 419 | C24: 33 | D24: 2180191 | E24: FD | G24: 1998-05-05 | H24: MR | I24: =COUNTIFS(J:J,J24,R:R,R24,S:S,S24,T:T,T24,U:U,U24,V:V,V24) -> 1 | J24: ABDUL BASHEER | K24: MS | L24: HUMMERA A | O24: N | R24: NO 7 12TH CROSS | S24: NARAYANPURA | T24: WILSON GARDEN | U24: BANGALORE | V24: 560030 | X24: 80000 | Y24: 1998-05-02 | AA24: 0 | AB24: 0 | AC24: 0 | AD24: 2000-05-03 | AE24: 104304 | AF24: 1 | AG24: 512 | AI24: 2 | AJ24: 3S0298 | AK24: SHIVA SHANKAR P K | AL24: 24 | AM24: 1 | AN24: Q | AO24: 2 | AP24: 15 | AQ24: 15.19 | AR24: N | AS24: 23602102 | BC24: NO 7 12TH CROSS | BD24: NARAYANPURA | BE24: WILSON GARDEN | BF24: BANGALORE | BG24: 560030 | BH24: Y | BI24: N | BK24: 0 | BL24: A | BM24: 1998-05-07 | BN24: 0 | BO24: 0 | BP24: 0 | BQ24: 0 | BS24: SUCHITRA | BT24: 1998-05-06 | BU24: 16800 | BV24: 15000 | BW24: 1800
A25: 23 | B25: 420 | C25: 2 | D25: 2675334 | E25: CD | G25: 1998-03-21 | H25: MR | I25: =COUNTIFS(J:J,J25,R:R,R25,S:S,S25,T:T,T25,U:U,U25,V:V,V25) -> 1 | J25: ABDUL GAFFAR A KARIM | K25: MRS | L25: HAFIZA ABDUL GAFFAR | O25: N | R25: KALYAN COMPLEX | S25: MUKTI B/605 | T25: YARI ROAD | U25: VARSOVA MUMBAI | V25: 400061 | W25: Y | X25: 14000 | Y25: 1998-01-18 | Z25: 1997-01-17 | AA25: 481.92 | AB25: 202.42 | AC25: -5542.33 | AD25: 2000-01-19 | AE25: 18858 | AF25: 1 | AG25: 512 | AI25: 2 | AJ25: 3P0009 | AK25: PREMA L SHETTY | AL25: 24 | AM25: 1 | AN25: M | AO25: 2 | AP25: 15 | AQ25: 17.35 | AR25: N | BC25: KALYAN COMPLEX | BD25: MUKTI B/605 | BE25: YARI ROAD | BF25: VARSOVA MUMBAI | BG25: 400061 | BH25: N | BI25: N | BK25: 0 | BL25: A | BM25: 1998-04-08 | BN25: 0 | BO25: 0 | BP25: 0 | BQ25: 0 | BS25: ANITHA | BT25: 1998-03-23 | BU25: 2940 | BV25: 0 | BW25: 2940
A26: 24 | B26: 421 | C26: 16 | D26: 2277961 | E26: CD | G26: 1997-09-30 | H26: MR | I26: =COUNTIFS(J:J,J26,R:R,R26,S:S,S26,T:T,T26,U:U,U26,V:V,V26) -> 1 | J26: ABDUL GAFOOR | K26: MRS | L26: AZIZUNNISA | O26: N | R26: MULKADI | S26: NEAR MASZID | T26: POST SHIRVA | U26: UDUPI TQ | V26: 574116 | W26: Y | X26: 13000 | Y26: 1997-09-19 | Z26: 1996-09-18 | AA26: 74.15 | AB26: 187.96 | AC26: -4773.11 | AD26: 1999-09-19 | AE26: 17511 | AF26: 1 | AG26: 512 | AI26: 2 | AJ26: 3G0054 | AK26: GAYATHRI N HEGDE | AL26: 24 | AM26: 0 | AN26: M | AO26: 2 | AP26: 15 | AQ26: 17.35 | AR26: N | BC26: MULKADI | BD26: NEAR MASZID | BE26: POST SHIRVA | BF26: UDUPI TQ | BG26: 574116 | BH26: N | BI26: N | BK26: 0 | BL26: A | BM26: 1998-04-08 | BN26: 0 | BO26: 0 | BP26: 0 | BQ26: 0 | BS26: VINOD | BT26: 1997-09-30 | BU26: 2730 | BV26: 0 | BW26: 2730
A27: 25 | B27: 422 | C27: 11 | D27: 2669437 | E27: CD | G27: 1997-02-20 | H27: MR | I27: =COUNTIFS(J:J,J27,R:R,R27,S:S,S27,T:T,T27,U:U,U27,V:V,V27) -> 1 | J27: ABDUL HAMEED | O27: N | R27: AJJARKAD | S27: UDUPI | T27: , | U27: , | V27: 576101 | W27: Y | X27: 13000 | Y27: 1997-02-20 | Z27: 1997-02-20 | AA27: 0 | AB27: 0 | AC27: 0 | AD27: 1999-02-20 | AE27: 17511 | AF27: 1 | AG27: 512 | AI27: 1 | AJ27: 3N0012 | AK27: NARASAMMA SHEDTHI | AL27: 24 | AM27: 0 | AN27: M | AO27: 2 | AP27: 15 | AQ27: 17.35 | AR27: N | BC27: AJJARKAD | BD27: UDUPI | BG27: 576101 | BH27: Y | BI27: N | BK27: 0 | BL27: A | BN27: 0 | BO27: 0 | BP27: 210.58 | BQ27: 0 | BS27: CONVERTION | BT27: 1997-04-10 | BU27: 2730 | BV27: 0 | BW27: 2730
A28: 26 | B28: 423 | C28: 12 | D28: 2282277 | E28: CD | G28: 1998-07-23 | H28: MR | I28: =COUNTIFS(J:J,J28,R:R,R28,S:S,S28,T:T,T28,U:U,U28,V:V,V28) -> 1 | J28: ABDUL JABBAR H | O28: N | R28: 3RD CROSS | S28: ANJUM MANZIL | T28: TANK MOHALLA | U28: SHIMOGA | V28: , | W28: Y | X28: 10000 | Y28: 1998-07-21 | AA28: 71.3 | AB28: 144.58 | AC28: -3685.88 | AD28: 2000-07-22 | AE28: 13470 | AF28: 1 | AG28: 512 | AI28: 1 | AJ28: 3S0267 | AK28: SHANTHALAXMI B S | AL28: 24 | AM28: 1 | AN28: M | AO28: 2 | AP28: 15 | AQ28: 17.35 | BC28: 3RD CROSS | BD28: ANJUM MANZIL | BE28: TANK MOHALLA | BF28: SHIMOGA | BH28: N | BI28: N | BK28: 0 | BL28: A | BM28: 1999-05-11 | BN28: 0 | BO28: 0 | BP28: 0 | BQ28: 0 | BS28: VINOD | BT28: 1998-07-24 | BU28: 2100 | BV28: 2000 | BW28: 100
A29: 27 | B29: 424 | C29: 12 | D29: 2286436 | E29: CD | G29: 1999-02-05 | H29: MR | I29: =COUNTIFS(J:J,J29,R:R,R29,S:S,S29,T:T,T29,U:U,U29,V:V,V29) -> 1 | J29: ABDUL JABBAR H | O29: N | R29: ANJAM MANZIL | S29: III CROSS | T29: TOUK MOHALLA | U29: SHIMOGA | V29: , | W29: Y | X29: 13000 | Y29: 1999-02-04 | Z29: 1995-01-10 | AA29: 154.49 | AB29: 187.96 | AC29: -4853.44 | AD29: 2001-02-05 | AE29: 17511 | AF29: 1 | AG29: 512 | AI29: 1 | AJ29: 3J0030 | AK29: JAYANTH SHETTY | AL29: 24 | AM29: 1 | AN29: M | AO29: 2 | AP29: 15 | AQ29: 17.35 | AR29: N | BC29: ANJAM MANZIL | BD29: III CROSS | BE29: TOUK MOHALLA | BF29: SHIMOGA | BH29: N | BI29: N | BK29: 0 | BL29: A | BM29: 1999-05-11 | BN29: 0 | BO29: 0 | BP29: 0 | BQ29: 0 | BS29: KARUNAKARA | BT29: 1999-02-08 | BU29: 2730 | BV29: 2000 | BW29: 730
A30: 28 | B30: 425 | C30: 16 | D30: 2674797 | E30: CD | G30: 1998-02-19 | H30: MR | I30: =COUNTIFS(J:J,J30,R:R,R30,S:S,S30,T:T,T30,U:U,U30,V:V,V30) -> 1 | J30: ABDUL MUTHALIB SAHEB | K30: MRS | L30: MAIMUNISA | O30: N | R30: S/O MR ABDUL AZIZ SAHEB | S30: BHOTHA BETTU | T30: SHIRVA POST | U30: UDUPI TALUK | V30: 574116 | W30: Y | X30: 21000 | Y30: 1998-02-01 | Z30: 1996-02-01 | AA30: 279.5 | AB30: 303.63 | AC30: -7870.13 | AD30: 2000-02-02 | AE30: 28287 | AF30: 1 | AG30: 512 | AI30: 2 | AJ30: 3N0012 | AK30: NARASAMMA SHEDTHI | AL30: 24 | AM30: 1 | AN30: M | AO30: 2 | AP30: 15 | AQ30: 17.35 | AR30: N | BC30: S/O MR ABDUL AZIZ SAHEB | BD30: BHOTHA BETTU | BE30: SHIRVA POST | BF30: UDUPI TALUK | BG30: 574116 | BH30: Y | BI30: N | BK30: 0 | BL30: A | BM30: 1998-04-08 | BN30: 0 | BO30: 0 | BP30: 0 | BQ30: 0 | BS30: VINOD | BT30: 1998-02-20 | BU30: 4410 | BV30: 0 | BW30: 4410
A31: 29 | B31: 426 | C31: 16 | D31: 2280714 | E31: CD | G31: 1998-05-20 | H31: MR | I31: =COUNTIFS(J:J,J31,R:R,R31,S:S,S31,T:T,T31,U:U,U31,V:V,V31) -> 1 | J31: ABDUL MUTHALIF SAHEB | O31: N | R31: BHUTHABETTU HOUSE | S31: POST SHIRVA | T31: UDUPI TQ | U31: , | V31: 574116 | W31: Y | X31: 13000 | Y31: 1998-05-16 | AA31: 85.48 | AB31: 162.5 | AC31: -2197.98 | AD31: 1999-05-17 | AE31: 14950 | AF31: 1 | AG31: 512 | AI31: 1 | AJ31: 3N0012 | AK31: NARASAMMA SHEDTHI | AL31: 12 | AM31: 1 | AN31: M | AO31: 2 | AP31: 14 | AQ31: 15 | BC31: BHUTHABETTU HOUSE | BD31: POST SHIRVA | BE31: UDUPI TQ | BG31: 574116 | BH31: N | BI31: N | BK31: 0 | BL31: A | BM31: 1999-05-11 | BN31: 0 | BO31: 0 | BP31: 0 | BQ31: 0 | BS31: ANITHA | BT31: 1998-05-20 | BU31: 2730 | BV31: 2000 | BW31: 730
A32: 30 | B32: 427 | C32: 7 | D32: 2173074 | E32: FD | G32: 1997-11-15 | H32: MR | I32: =COUNTIFS(J:J,J32,R:R,R32,S:S,S32,T:T,T32,U:U,U32,V:V,V32) -> 1 | J32: ABDUL RAHMAN K H | O32: N | R32: 2/63/2 | S32: GANAPATHY STREET | T32: MADIKERI | U32: DIST KODAGU | V32: 571201 | W32: Y | X32: 65000 | Y32: 1997-11-13 | Z32: 1994-11-13 | AA32: 0 | AB32: 0 | AC32: 0 | AD32: 1999-11-14 | AE32: 84500 | AF32: 1 | AG32: 512 | AI32: 1 | AJ32: 3R0025 | AK32: RATNA S RAI | AL32: 24 | AM32: 1 | AN32: M | AO32: 2 | AP32: 15 | AQ32: 15 | AR32: N | AS32: 23602102 | BC32: 2/63/2 | BD32: GANAPATHY STREET | BE32: MADIKERI | BF32: DIST KODAGU | BG32: 571201 | BH32: Y | BI32: N | BK32: 0 | BL32: A | BM32: 1997-11-14 | BN32: 0 | BO32: 0 | BP32: 0 | BQ32: 0 | BS32: VINOD | BT32: 1997-11-15 | BU32: 13650 | BV32: 0 | BW32: 13650
A33: 31 | B33: 428 | C33: 11 | D33: 2669440 | E33: CD | G33: 1997-02-20 | H33: MR | I33: =COUNTIFS(J:J,J33,R:R,R33,S:S,S33,T:T,T33,U:U,U33,V:V,V33) -> 1 | J33: ABDUL REHAMAN | O33: N | R33: SARALABETTU ROAD | S33: MANIPAL | T33: UDUPI TQ | U33: UDUPI TQ | V33: , | W33: Y | X33: 13000 | Y33: 1997-02-20 | Z33: 1997-02-20 | AA33: 0 | AB33: 0 | AC33: 0 | AD33: 1999-02-20 | AE33: 17511 | AF33: 1 | AG33: 512 | AI33: 1 | AJ33: 3N0012 | AK33: NARASAMMA SHEDTHI | AL33: 24 | AM33: 0 | AN33: M | AO33: 2 | AP33: 15 | AQ33: 17.35 | AR33: N | BC33: SARALABETTU ROAD | BD33: MANIPAL | BE33: UDUPI TQ | BF33: UDUPI TQ | BH33: Y | BI33: N | BK33: 0 | BL33: A | BN33: 0 | BO33: 0 | BP33: 210.58 | BQ33: 0 | BS33: CONVERTION | BT33: 1997-04-10 | BU33: 2730 | BV33: 0 | BW33: 2730
A34: 32 | B34: 429 | C34: 22 | D34: 2282373 | E34: CD | G34: 1998-07-29 | H34: MR | I34: =COUNTIFS(J:J,J34,R:R,R34,S:S,S34,T:T,T34,U:U,U34,V:V,V34) -> 1 | J34: ABDUL REHMAN M B | O34: N | R34: KELENJER VILLAGE | S34: PADALI PADAVU HOUSE | T34: KUPPEPADAVU POST | U34: MANGALORE | V34: , | W34: Y | X34: 15000 | Y34: 1998-07-25 | Z34: 1996-07-23 | AA34: 43.15 | AB34: 187.5 | AC34: -2480.65 | AD34: 1999-07-26 | AE34: 17250 | AF34: 1 | AG34: 512 | AI34: 1 | AJ34: 3R0091 | AK34: RAMESH SHETTY P | AL34: 12 | AM34: 1 | AN34: M | AO34: 2 | AP34: 14 | AQ34: 15 | AR34: N | BC34: KLENJER VILLAGE | BD34: PADALI PADAVU HOUSE | BE34: KUPPEPADAVU POST | BF34: MANGALORE | BH34: N | BI34: N | BK34: 0 | BL34: A | BM34: 1999-05-11 | BN34: 0 | BO34: 0 | BP34: 0 | BQ34: 0 | BS34: ANITHA | BT34: 1998-07-30 | BU34: 3150 | BV34: 2000 | BW34: 1150
A35: 33 | B35: 430 | C35: 30 | D35: 2660106 | E35: CD | G35: 1997-02-19 | H35: MR | I35: =COUNTIFS(J:J,J35,R:R,R35,S:S,S35,T:T,T35,U:U,U35,V:V,V35) -> 1 | J35: ABDUL SATHAR M | O35: N | R35: P B NO 36 | S35: I G ROAD | T35: CHIKMAGALUR | U35: CHIKMAGALUR | V35: 577101 | W35: N | X35: 11000 | Y35: 1997-02-19 | Z35: 1997-02-19 | AA35: 0 | AB35: 0 | AC35: 0 | AD35: 2000-02-19 | AE35: 17204 | AF35: 1 | AG35: 512 | AI35: 1 | AJ35: 3D9999 | AK35: DIRECT DEPOSIT | AL35: 36 | AM35: 0 | AN35: M | AO35: 2 | AP35: 15 | AQ35: 18.8 | AR35: N | BC35: P B NO 36 | BD35: I G ROAD | BE35: CHIKMAGALUR | BF35: CHIKMAGALUR | BG35: 577101 | BH35: Y | BI35: N | BK35: 0 | BL35: A | BN35: 0 | BO35: 0 | BP35: 0 | BQ35: 0 | BS35: CONVERTION | BT35: 1997-04-10 | BU35: 2310 | BV35: 0 | BW35: 2310
A36: 34 | B36: 431 | C36: 20 | D36: 2640003 | I36: =COUNTIFS(J:J,J36,R:R,R36,S:S,S36,T:T,T36,U:U,U36,V:V,V36) -> 1 | J36: ABDUL WAHEED | R36: , | S36: , | T36: , | U36: , | V36: , | X36: 13000 | AD36: 20/11/1998 | BU36: 2730 | BV36: 0 | BW36: 2730
A37: 35 | B37: 432 | C37: 4 | D37: 2284226 | E37: CD | G37: 1998-09-29 | H37: MR | I37: =COUNTIFS(J:J,J37,R:R,R37,S:S,S37,T:T,T37,U:U,U37,V:V,V37) -> 1 | J37: ABHAYA KUMAR P IJARI | K37: MR | L37: PADMANABHA PARISAPPA IJARI | O37: N | R37: ' ASHA-JYOTI ' ADARSHA NAGAR | S37: MADHAVPUR VADAGOAN | T37: , | U37: BELGAUM | V37: 590005 | W37: Y | X37: 15000 | Y37: 1998-09-27 | Z37: 1996-09-25 | AA37: 24.66 | AB37: 187.5 | AC37: -2462.16 | AD37: 1999-09-28 | AE37: 17250 | AF37: 1 | AG37: 512 | AI37: 2 | AJ37: 3S0244 | AK37: SHRIMA SHETTY | AL37: 12 | AM37: 1 | AN37: M | AO37: 2 | AP37: 14 | AQ37: 15 | AR37: N | BC37: ' ASHA-JYOTI ' ADARSHA NAGAR | BD37: MADHAVPUR VADAGOAN | BF37: BELGAUM | BG37: 590005 | BH37: N | BI37: N | BK37: 0 | BL37: A | BM37: 1999-05-11 | BN37: 0 | BO37: 0 | BP37: 0 | BQ37: 0 | BS37: RADHESH | BT37: 1998-10-06 | BU37: 3150 | BV37: 0 | BW37: 3150
A38: 36 | B38: 433 | C38: 4 | D38: 2290411 | E38: CD | G38: 1999-06-12 | H38: MSTR | I38: =COUNTIFS(J:J,J38,R:R,R38,S:S,S38,T:T,T38,U:U,U38,V:V,V38) -> 1 | J38: ABHIJIT S PATIL (MINOR) | K38: MR | L38: SHANTINATH S PATIL | O38: Y | P38: MRS SADHANA S PATIL | Q38: 1988-02-20 | R38: YAMAKANAMARADY | S38: DIST BELGAUM | T38: , | U38: , | V38: 591245 | W38: Y | X38: 16000 | Y38: 1999-05-19 | Z38: 1996-05-16 | AA38: 278.9 | AB38: 200 | AC38: -2878.9 | AD38: 2000-05-20 | AE38: 18400 | AF38: 1 | AG38: 512 | AI38: 2 | AJ38: 3D9999 | AK38: DIRECT DEPOSIT | AL38: 12 | AM38: 1 | AN38: M | AO38: 2 | AP38: 14 | AQ38: 15 | AR38: N | BC38: YAMAKANAMARADY | BD38: DIST BELGAUM | BG38: 591245 | BH38: N | BI38: N | BK38: 0 | BL38: A | BM38: 2000-04-24 | BN38: 0 | BO38: 0 | BP38: 0 | BQ38: 0 | BS38: GEETHA | BT38: 1999-06-14 | BU38: 3360 | BV38: 0 | BW38: 3360
A39: 37 | B39: 434 | C39: 33 | D39: 2275625 | E39: CD | G39: 1997-08-09 | H39: DR | I39: =COUNTIFS(J:J,J39,R:R,R39,S:S,S39,T:T,T39,U:U,U39,V:V,V39) -> 1 | J39: ABHIJITH HEGDE | L39: AIR CMDE K P HEGDE | O39: N | R39: AVM K P HEGDE | S39: COMDANT | T39: COMMAND HOSPITAL AIR FORCE | U39: AGRAM BANGALORE | V39: 560007 | W39: Y | X39: 15000 | Y39: 1997-02-21 | Z39: 1995-02-21 | AA39: 1364.83 | AB39: 216.88 | AC39: -6786.7 | AD39: 1999-02-21 | AE39: 20205 | AF39: 1 | AG39: 512 | AI39: 2 | AJ39: 3R0037 | AK39: RAJA RAO M | AL39: 24 | AM39: 0 | AN39: M | AO39: 2 | AP39: 15 | AQ39: 17.35 | AR39: N | BC39: AVM K P HEGDE | BD39: COMDANT | BE39: COMMAND HOSPITAL AIR FORCE | BF39: AGRAM BANGALORE | BG39: 560007 | BH39: N | BI39: N | BK39: 0 | BL39: A | BN39: 0 | BO39: 0 | BP39: 0 | BQ39: 0 | BS39: TEST | BT39: 1997-08-11 | BU39: 3150 | BV39: 0 | BW39: 3150
A40: 38 | B40: 435 | C40: 6 | D40: 2290369 | E40: CD | G40: 1999-06-09 | H40: MR | I40: =COUNTIFS(J:J,J40,R:R,R40,S:S,S40,T:T,T40,U:U,U40,V:V,V40) -> 1 | J40: ABHIJITH RAO | O40: N | R40: NEAR KAKKE BETTU | S40: RAMA MISSION ROAD | T40: VIA BIKARNAKATTA | U40: MANGALORE | V40: 575005 | W40: Y | X40: 5000 | Y40: 1999-06-06 | Z40: 1996-06-03 | AA40: 51.37 | AB40: 62.5 | AC40: -863.87 | AD40: 2000-06-07 | AE40: 5750 | AF40: 1 | AG40: 512 | AI40: 1 | AJ40: 3B0021 | AK40: BASHA SHETTY | AL40: 12 | AM40: 1 | AN40: M | AO40: 2 | AP40: 14 | AQ40: 15 | AR40: N | BC40: NEAR KAKKE BETTU | BD40: RAMA MISSION ROAD | BE40: VIA BIKARNAKATTA | BF40: MANGALORE | BG40: 575005 | BH40: N | BI40: N | BK40: 0 | BL40: A | BM40: 2000-04-24 | BN40: 0 | BO40: 0 | BP40: 0 | BQ40: 0 | BS40: GEETHA | BT40: 1999-06-10 | BU40: 1050 | BV40: 0 | BW40: 1050
A41: 39 | B41: 436 | C41: 20 | D41: 2180008 | E41: FD | G41: 1998-04-02 | H41: MSTR | I41: =COUNTIFS(J:J,J41,R:R,R41,S:S,S41,T:T,T41,U:U,U41,V:V,V41) -> 1 | J41: ABHIJITH S (MINOR) | O41: Y | P41: MR PADMANABHAN A | Q41: 1985-08-12 | R41: C/O A PADMANABHAN | S41: 673 45TH CROSS | T41: 8TH BLOCK JAYANAGAR | U41: BANGALORE | V41: 560082 | W41: Y | X41: 15000 | Y41: 1998-03-27 | Z41: 1995-03-27 | AA41: 0 | AB41: 0 | AC41: 0 | AD41: 2000-03-28 | AE41: 19830 | AF41: 1 | AG41: 512 | AI41: 1 | AJ41: 3S0081 | AK41: SUMANA N BLORE | AL41: 24 | AM41: 1 | AN41: Y | AO41: 2 | AP41: 15 | AQ41: 16.1 | AR41: N | AS41: 23602102 | BC41: C/O A PADMANABHAN | BD41: 673 45TH CROSS | BE41: 8TH BLOCK JAYANAGAR | BF41: BANGALORE | BG41: 560082 | BH41: N | BI41: N | BK41: 0 | BL41: A | BM41: 1998-04-30 | BN41: 0 | BO41: 0 | BP41: 0 | BQ41: 0 | BS41: ANITHA | BT41: 1998-04-09 | BU41: 3150 | BV41: 0 | BW41: 3150
A42: 40 | B42: 437 | C42: 4 | D42: 2674437 | E42: CD | G42: 1998-02-06 | H42: MSTR | I42: =COUNTIFS(J:J,J42,R:R,R42,S:S,S42,T:T,T42,U:U,U42,V:V,V42) -> 1 | J42: ABHIJITH S PATIL (M) | O42: Y | P42: MRS SADHANA S PATIL | R42: POST YAMAKANAMARDI | S42: , | T42: , | U42: BELGAUM DIST | V42: 599245 | W42: Y | X42: 13000 | Y42: 1998-01-14 | Z42: 1997-01-13 | AA42: 111.23 | AB42: 187.96 | AC42: -4810.19 | AD42: 2000-01-15 | AE42: 17511 | AF42: 1 | AG42: 512 | AI42: 1 | AJ42: 3S0244 | AK42: SHRIMA SHETTY | AL42: 24 | AM42: 1 | AN42: M | AO42: 2 | AP42: 15 | AQ42: 17.35 | AR42: N | BC42: POST YAMAKANAMARDI | BF42: BELGAUM DIST | BG42: 599245 | BH42: N | BI42: N | BK42: 0 | BL42: A | BM42: 1998-04-08 | BN42: 0 | BO42: 0 | BP42: 0 | BQ42: 0 | BS42: VINOD | BT42: 1998-02-07 | BU42: 2730 | BV42: 0 | BW42: 2730
A43: 41 | B43: 438 | C43: 6 | D43: 2673994 | E43: CD | G43: 1998-01-06 | H43: MR | I43: =COUNTIFS(J:J,J43,R:R,R43,S:S,S43,T:T,T43,U:U,U43,V:V,V43) -> 1 | J43: ABHILASH | O43: N | R43: GARODI HOUSE | S43: NEAR PUMPWELL | T43: KANKANADY | U43: MANGALORE | V43: 575002 | X43: 15000 | Y43: 1998-01-01 | AA43: 205.11 | AB43: 201.25 | AC43: -2821.36 | AD43: 1999-01-02 | AE43: 17415 | AF43: 1 | AG43: 512 | AI43: 1 | AJ43: 3V0022 | AK43: VASANTHI S SHETTY | AL43: 12 | AM43: 1 | AN43: M | AO43: 2 | AP43: 15 | AQ43: 16.1 | BC43: GARODI HOUSE | BD43: NEAR PUMPWELL | BE43: KANKANADY | BF43: MANGALORE | BG43: 575002 | BH43: N | BI43: N | BK43: 0 | BL43: A | BM43: 1998-04-08 | BN43: 0 | BO43: 0 | BP43: 0 | BQ43: 0 | BS43: RADHESH | BT43: 1998-01-08 | BU43: 3150 | BV43: 0 | BW43: 3150
A44: 42 | B44: 439 | C44: 2 | D44: 2270146 | E44: CD | G44: 1997-04-06 | H44: MISS | I44: =COUNTIFS(J:J,J44,R:R,R44,S:S,S44,T:T,T44,U:U,U44,V:V,V44) -> 1 | J44: ABHILASHA XAVIER | K44: MRS | L44: ROSY XAVIER | O44: N | R44: ' OCIRNE ' | S44: ST ANTHONY ROAD | T44: SAI NAGAR PLOT NO 10 | U44: CHEMBUR MUMBAI | V44: 400071 | W44: Y | X44: 18000 | Y44: 1997-03-08 | Z44: 1994-03-08 | AA44: 495.24 | AB44: 282 | AC44: -10929.24 | AD44: 2000-03-08 | AE44: 28152 | AF44: 1 | AG44: 512 | AI44: 2 | AJ44: 3H0039 | AK44: H B SHETTY | AL44: 36 | AM44: 0 | AN44: M | AO44: 2 | AP44: 15 | AQ44: 18.8 | AR44: N | BC44: ' OCIRNE ' | BD44: ST ANTHONY ROAD | BE44: SAI NAGAR PLOT NO 10 | BF44: CHEMBUR MUMBAI | BG44: 400071 | BH44: Y | BI44: N | BK44: 0 | BL44: A | BN44: 0 | BO44: 0 | BP44: 0 | BQ44: 0 | BS44: TEST | BT44: 1997-04-30 | BU44: 3780 | BV44: 0 | BW44: 3780
A45: 43 | B45: 440 | C45: 4 | D45: 2260272 | E45: CD | G45: 1996-03-06 | H45: MR | I45: =COUNTIFS(J:J,J45,R:R,R45,S:S,S45,T:T,T45,U:U,U45,V:V,V45) -> 1 | J45: ABHINANADAN A SADALGI | O45: N | R45: HURUGERI | S45: BELGAUM DIST | T45: , | U45: , | V45: 591220 | W45: Y | X45: 14000 | Y45: 1996-03-06 | Z45: 1996-03-06 | AA45: 0 | AB45: 0 | AC45: 0 | AD45: 1999-03-06 | AE45: 21896 | AF45: 1 | AG45: 512 | AI45: 1 | AJ45: 3S0112 | AK45: SADALGI | AL45: 36 | AM45: 0 | AN45: M | AO45: 2 | AP45: 15 | AQ45: 18.8 | AR45: N | BC45: HURUGERI | BD45: BELGAUM DIST | BG45: 591220 | BH45: Y | BI45: N | BK45: 0 | BL45: A | BN45: 2219.25 | BO45: 0 | BP45: 202.74 | BQ45: 0 | BS45: CONVERTION | BT45: 1997-04-10 | BU45: 2940 | BV45: 0 | BW45: 2940
A46: 44 | B46: 441 | C46: 25 | D46: 2286644 | E46: CD | G46: 1999-03-04 | H46: MRS | I46: =COUNTIFS(J:J,J46,R:R,R46,S:S,S46,T:T,T46,U:U,U46,V:V,V46) -> 1 | J46: ABHINI SUNNY | K46: MR | L46: BODHI SUNNY | M46: MR | N46: SUNNY M L | O46: N | R46: HOUSE NO 11 | S46: ERANHIPALAM HOUSING COLONY | T46: ERANHIPALAM P O | U46: CALICUT | V46: 673006 | W46: Y | X46: 12000 | Y46: 1999-02-21 | Z46: 1997-02-19 | AA46: 219.13 | AB46: 173.5 | AC46: -4556.63 | AD46: 2001-02-22 | AE46: 16164 | AF46: 1 | AG46: 512 | AI46: 3 | AJ46: 3S0146 | AK46: SEEMA SURESH | AL46: 24 | AM46: 1 | AN46: M | AO46: 2 | AP46: 15 | AQ46: 17.35 | AR46: N | BC46: HOUSE NO 11 | BD46: ERANHIPALAM HOUSING COLONY | BE46: ERANHIPALAM P O | BF46: CALICUT | BG46: 673006 | BH46: N | BI46: N | BK46: 0 | BL46: A | BM46: 1999-05-11 | BN46: 0 | BO46: 0 | BP46: 0 | BQ46: 0 | BS46: ANITHA | BT46: 1999-03-05 | BU46: 2520 | BV46: 0 | BW46: 2520
A47: 45 | B47: 442 | C47: 25 | D47: 2291032 | E47: CD | G47: 1999-10-11 | H47: MISS | I47: =COUNTIFS(J:J,J47,R:R,R47,S:S,S47,T:T,T47,U:U,U47,V:V,V47) -> 1 | J47: ABHINI SUNNY M | K47: MR | L47: SUNNY M L | O47: N | R47: HOUSE H NO 11 | S47: ERANHIPALAM COLONY | T47: P O ERANHIPALAM | U47: CALICUT DIST | V47: 673006 | W47: Y | X47: 16000 | Y47: 1999-09-07 | Z47: 1996-09-04 | AA47: 357.81 | AB47: 200 | AC47: -2957.81 | AD47: 2000-09-08 | AE47: 18400 | AF47: 1 | AG47: 512 | AI47: 2 | AJ47: 3V0039 | AK47: VIKAS K | AL47: 12 | AM47: 1 | AN47: M | AO47: 2 | AP47: 14 | AQ47: 15 | AR47: N | AS47: 23602102 | BC47: HOUSE H NO 11 | BD47: ERANHIPALAM COLONY | BE47: P O ERANHIPALAM | BF47: CALICUT DIST | BG47: 673006 | BH47: N | BI47: N | BK47: 0 | BL47: A | BM47: 2000-04-24 | BN47: 0 | BO47: 0 | BP47: 0 | BQ47: 0 | BS47: GEETHA | BT47: 1999-10-11 | BU47: 3360 | BV47: 0 | BW47: 3360
A48: 46 | B48: 443 | C48: 14 | D48: 2261981 | E48: CD | G48: 1996-06-05 | H48: MR | I48: =COUNTIFS(J:J,J48,R:R,R48,S:S,S48,T:T,T48,U:U,U48,V:V,V48) -> 1 | J48: ABHISHEK | O48: N | R48: V N ROAD | S48: CHITPADY | T48: UDUPI TQ | U48: D.K | V48: , | W48: N | X48: 13000 | Y48: 1996-06-05 | Z48: 1996-06-05 | AA48: 0 | AB48: 0 | AC48: 0 | AD48: 1999-06-05 | AE48: 20332 | AF48: 1 | AG48: 512 | AI48: 1 | AJ48: 3S0083 | AK48: SUMA | AL48: 36 | AM48: 0 | AN48: M | AO48: 2 | AP48: 15 | AQ48: 18.8 | AR48: N | BC48: V N ROAD | BD48: CHITPADY | BE48: UDUPI TQ | BF48: D.K | BH48: Y | BI48: N | BK48: 0 | BL48: A | BN48: 1511.69 | BO48: 0 | BP48: 181.39 | BQ48: 0 | BS48: CONVERTION | BT48: 1997-04-10 | BU48: 2730 | BV48: 2000 | BW48: 730
A49: 47 | B49: 444 | C49: 11 | D49: 2266826 | E49: CD | G49: 1996-09-12 | H49: MR | I49: =COUNTIFS(J:J,J49,R:R,R49,S:S,S49,T:T,T49,U:U,U49,V:V,V49) -> 1 | J49: ABHISHEK | L49: MRS SUSHEELA N SHETTY | O49: N | R49: HEROOR | S49: BANTAKAL | T49: UDUPI | U49: UDUPI | V49: , | W49: N | X49: 11000 | Y49: 1996-09-12 | Z49: 1996-09-12 | AA49: 0 | AB49: 0 | AC49: 0 | AD49: 1999-09-12 | AE49: 17204 | AF49: 1 | AG49: 512 | AI49: 2 | AJ49: 3V0062 | AK49: VINAYAK G P | AL49: 36 | AM49: 0 | AN49: M | AO49: 2 | AP49: 15 | AQ49: 18.8 | AR49: N | BC49: HEROOR | BD49: BANTAKAL | BE49: UDUPI | BF49: UDUPI | BH49: Y | BI49: N | BK49: 0 | BL49: A | BN49: 796.27 | BO49: 0 | BP49: 147.45 | BQ49: 0 | BS49: CONVERTION | BT49: 1997-04-10 | BU49: 2310 | BV49: 0 | BW49: 2310
A50: 48 | B50: 445 | C50: 11 | D50: 2279637 | E50: CD | G50: 1997-11-11 | H50: MR | I50: =COUNTIFS(J:J,J50,R:R,R50,S:S,S50,T:T,T50,U:U,U50,V:V,V50) -> 1 | J50: ABHISHEK | O50: N | R50: MADUMBU | S50: IMMANJE | T50: , | U50: UDUPI | V50: , | X50: 15000 | Y50: 1997-11-07 | AA50: 158.79 | AB50: 201.25 | AC50: -2775.04 | AD50: 1998-11-08 | AE50: 17415 | AF50: 1 | AG50: 512 | AI50: 1 | AJ50: 3N0012 | AK50: NARASAMMA SHEDTHI | AL50: 12 | AM50: 1 | AN50: M | AO50: 2 | AP50: 15 | AQ50: 16.1 | BC50: MADUMBU | BD50: IMMANJE | BF50: UDUPI | BH50: N | BI50: N | BK50: 0 | BL50: A | BM50: 1998-04-08 | BN50: 0 | BO50: 0 | BP50: 0 | BQ50: 0 | BS50: VINOD | BT50: 1997-11-13 | BU50: 3150 | BV50: 0 | BW50: 3150
A51: 49 | B51: 446 | C51: 11 | D51: 2282310 | E51: CD | G51: 1998-07-27 | H51: MSTR | I51: =COUNTIFS(J:J,J51,R:R,R51,S:S,S51,T:T,T51,U:U,U51,V:V,V51) -> 1 | J51: ABHISHEK (M) | O51: Y | P51: MRS SUMA R | Q51: 1994-07-03 | R51: ADUGODU | S51: POST GUDDE KOPPA | T51: THIRTHAHALLI TQ | U51: SHIMOGA DIST | V51: , | W51: Y | X51: 14000 | Y51: 1998-07-21 | Z51: 1995-07-20 | AA51: 63.29 | AB51: 175 | AC51: -2338.29 | AD51: 1999-07-22 | AE51: 16100 | AF51: 1 | AG51: 512 | AI51: 1 | AJ51: 3Y0007 | AK51: YESHODA P SHETTY | AL51: 12 | AM51: 1 | AN51: M | AO51: 2 | AP51: 14 | AQ51: 15 | AR51: N | BC51: ADUGODU | BD51: POST GUDDE KOPPA | BE51: THIRTHAHALLI TQ | BF51: SHIMOGA DIST | BH51: N | BI51: N | BK51: 0 | BL51: A | BM51: 1999-05-11 | BN51: 0 | BO51: 0 | BP51: 0 | BQ51: 0 | BS51: VINOD | BT51: 1998-07-28 | BU51: 2940 | BV51: 2000 | BW51: 940
A52: 50 | B52: 447 | C52: 13 | D52: 2281571 | E52: CD | G52: 1998-06-25 | H52: MSTR | I52: =COUNTIFS(J:J,J52,R:R,R52,S:S,S52,T:T,T52,U:U,U52,V:V,V52) -> 1 | J52: ABHISHEK (M) | O52: Y | P52: MR SHEENAPPA SHETTY K | Q52: 1986-07-22 | R52: CAR STREET | S52: , | T52: , | U52: UPPINANGADY | V52: 574241 | W52: Y | X52: 8000 | Y52: 1998-06-17 | Z52: 1996-06-15 | AA52: 46.03 | AB52: 100 | AC52: -1346.03 | AD52: 1999-06-18 | AE52: 9200 | AF52: 1 | AG52: 512 | AI52: 1 | AJ52: 3R0045 | AK52: RATNAVATHY (PUTTUR) | AL52: 12 | AM52: 1 | AN52: M | AO52: 2 | AP52: 14 | AQ52: 15 | AR52: N | BC52: CAR STREET | BF52: UPPINANGADY | BG52: 574241 | BH52: N | BI52: N | BK52: 0 | BL52: A | BM52: 1999-05-11 | BN52: 0 | BO52: 0 | BP52: 0 | BQ52: 0 | BS52: VINOD | BT52: 1998-06-26 | BU52: 1680 | BV52: 0 | BW52: 1680
A53: 51 | B53: 448 | C53: 2 | D53: 2290280 | E53: CD | G53: 1999-05-31 | H53: MR | I53: =COUNTIFS(J:J,J53,R:R,R53,S:S,S53,T:T,T53,U:U,U53,V:V,V53) -> 1 | J53: ABHISHEK CHAWLA | K53: MR | L53: SURESH CHAWLA | O53: N | R53: 212 WADALA UDYOG BHAWAN | S53: MAIGAON CROSS LANE | T53: WADALA | U53: MUMBAI | V53: 400031 | W53: Y | X53: 12000 | Y53: 1999-03-30 | Z53: 1997-03-28 | AA53: 307.81 | AB53: 150 | AC53: -2257.81 | AD53: 2000-03-31 | AE53: 13800 | AF53: 1 | AG53: 512 | AI53: 2 | AJ53: 3H0049 | AK53: HARISH K SHETTY | AL53: 12 | AM53: 1 | AN53: M | AO53: 2 | AP53: 14 | AQ53: 15 | AR53: N | BC53: 212 WADALA UDYOG BHAWAN | BD53: MAIGAON CROSS LANE | BE53: WADALA | BF53: MUMBAI | BG53: 400031 | BH53: N | BI53: N | BK53: 0 | BL53: A | BN53: 0 | BO53: 0 | BP53: 0 | BQ53: 0 | BS53: MOHAN | BT53: 1999-05-31 | BU53: 2520 | BV53: 0 | BW53: 2520
A54: 52 | B54: 449 | C54: 31 | D54: 2370410 | E54: CC | G54: 1997-09-30 | H54: MSTR | I54: =COUNTIFS(J:J,J54,R:R,R54,S:S,S54,T:T,T54,U:U,U54,V:V,V54) -> 1 | J54: ABHISHEK G SHENOY (M) | O54: Y | P54: MRS VIDYA G SHENOY | Q54: 1991-02-26 | R54: ASHIRWAD | S54: 17 N H NEAR RICE MILL | T54: POST UDYAVARA | U54: UDUPI DIST | V54: 574118 | X54: 639 | Y54: 1997-09-24 | AA54: 2.3 | AB54: 10.01 | AC54: -373.31 | AD54: 2000-09-24 | AE54: 1000 | AF54: 1 | AG54: 512 | AI54: 1 | AJ54: 3A0035 | AK54: ARUN KUMAR | AL54: 36 | AM54: 0 | AN54: M | AO54: 2 | AP54: 15 | AQ54: 18.8 | BC54: ASHIRWAD | BD54: 17 N H NEAR RICE MILL | BE54: POST UDYAVARA | BF54: UDUPI DIST | BG54: 574118 | BH54: N | BI54: N | BK54: 0 | BL54: A | BM54: 1998-04-08 | BN54: 0 | BO54: 0 | BP54: 0 | BQ54: 0 | BS54: VINOD | BT54: 1997-09-30 | BU54: 134.19 | BV54: 0 | BW54: 134.19
A55: 53 | B55: 450 | C55: 11 | D55: 2360616 | E55: CC | G55: 1997-02-26 | H55: MSTR | I55: =COUNTIFS(J:J,J55,R:R,R55,S:S,S55,T:T,T55,U:U,U55,V:V,V55) -> 1 | J55: ABHISHEK G SHENOY (MINOR) | O55: Y | P55: M/G MRS RAO S M | R55: ' ASHIRVAD ' | S55: NEAR RICE MILL | T55: 17 N H UDYAVARA | U55: KORANGRAPADI UDUPI T | V55: 574118 | W55: N | X55: 6390 | Y55: 1997-02-26 | Z55: 1997-02-26 | AA55: 0 | AB55: 0 | AC55: 0 | AD55: 2000-02-26 | AE55: 10000 | AF55: 1 | AG55: 512 | AI55: 1 | AJ55: 3S0083 | AK55: SUMA | AL55: 36 | AM55: 0 | AN55: M | AO55: 2 | AP55: 15 | AQ55: 18.8 | AR55: N | BC55: ' ASHIRVAD ' | BD55: NEAR RICE MILL | BE55: 17 N H UDYAVARA | BF55: KORANGRAPADI UDUPI T | BG55: 574118 | BH55: Y | BI55: N | BK55: 0 | BL55: A | BN55: 0 | BO55: 0 | BP55: 0 | BQ55: 0 | BS55: CONVERTION | BT55: 1997-04-10 | BU55: 1341.9 | BV55: 0 | BW55: 1341.9
A56: 54 | B56: 451 | C56: 11 | D56: 2266870 | E56: CD | G56: 1996-09-12 | H56: MR | I56: =COUNTIFS(J:J,J56,R:R,R56,S:S,S56,T:T,T56,U:U,U56,V:V,V56) -> 1 | J56: ABHISHEK G SHETTY | L56: MRS SUSHEELA N SHETTY | O56: N | R56: GUNDIBAIL | S56: UDUPI | T56: , | U56: , | V56: , | W56: N | X56: 11000 | Y56: 1996-09-12 | Z56: 1996-09-12 | AA56: 0 | AB56: 0 | AC56: 0 | AD56: 1999-09-12 | AE56: 17204 | AF56: 1 | AG56: 512 | AI56: 2 | AJ56: 3V0062 | AK56: VINAYAK G P | AL56: 36 | AM56: 0 | AN56: M | AO56: 2 | AP56: 15 | AQ56: 18.8 | AR56: N | BC56: GUNDIBAIL | BD56: UDUPI | BH56: Y | BI56: N | BK56: 0 | BL56: A | BN56: 796.27 | BO56: 0 | BP56: 147.45 | BQ56: 0 | BS56: CONVERTION | BT56: 1997-04-10 | BU56: 2310 | BV56: 0 | BW56: 2310
A57: 55 | B57: 452 | C57: 6 | D57: 2280217 | E57: CD | G57: 1998-04-18 | H57: MR | I57: =COUNTIFS(J:J,J57,R:R,R57,S:S,S57,T:T,T57,U:U,U57,V:V,V57) -> 1 | J57: ABHISHEK KUMAR | O57: N | R57: BASADI ROAD | S57: MOODABIDRI | T57: , | U57: KARKALA TQ | V57: 574104 | W57: Y | X57: 15000 | Y57: 1998-03-07 | Z57: 1997-03-06 | AA57: 335.45 | AB57: 187.5 | AC57: -2772.95 | AD57: 1999-03-08 | AE57: 17250 | AF57: 1 | AG57: 512 | AI57: 1 | AJ57: 3A0031 | AK57: AMITH M'LORE | AL57: 12 | AM57: 1 | AN57: M | AO57: 2 | AP57: 14 | AQ57: 15 | AR57: N | BC57: BASADI ROAD | BD57: MOODABIDRI | BF57: KARKALA TQ | BG57: 574104 | BH57: N | BI57: N | BK57: 0 | BL57: A | BN57: 0 | BO57: 0 | BP57: 0 | BQ57: 0 | BS57: SUMA | BT57: 1998-04-20 | BU57: 3150 | BV57: 2000 | BW57: 1150
A58: 56 | B58: 453 | C58: 11 | D58: 2680029 | E58: CD | F58: Y | G58: 1998-07-06 | H58: MSTR | I58: =COUNTIFS(J:J,J58,R:R,R58,S:S,S58,T:T,T58,U:U,U58,V:V,V58) -> 1 | J58: ABHISHEK MAIYA (M) | O58: Y | P58: MRS SUMA R | Q58: 1994-07-03 | R58: MANASWINI | S58: BEHIND BHARATH PETROLIUM GAS | T58: GODOWN GUDDEYANGADI | U58: UDAYAVARA UDUPI | V58: , | X58: 15000 | Y58: 1998-07-03 | AA58: 190.68 | AB58: 200 | AC58: -5190.68 | AD58: 2000-07-04 | AE58: 19800 | AF58: 1 | AG58: 512 | AI58: 1 | AJ58: 3N0012 | AK58: NARASAMMA SHEDTHI | AL58: 24 | AM58: 1 | AN58: M | AO58: 2 | AP58: 14 | AQ58: 16 | BC58: MANASWINI | BD58: BEHIND BHARATH PETROLIUM GAS | BE58: GODOWN GUDDEYANGADI | BF58: UDAYAVARA UDUPI | BH58: N | BI58: N | BK58: 0 | BL58: A | BM58: 1999-05-11 | BN58: 0 | BO58: 0 | BP58: 0 | BQ58: 0 | BS58: VINOD | BT58: 1998-07-07 | BU58: 3150 | BV58: 0 | BW58: 3150
A59: 57 | B59: 454 | C59: 11 | D59: 2280938 | E59: CD | G59: 1998-06-02 | H59: MSTR | I59: =COUNTIFS(J:J,J59,R:R,R59,S:S,S59,T:T,T59,U:U,U59,V:V,V59) -> 1 | J59: ABHISHEK N SHETTY (MINOR) | O59: Y | P59: MRS GIRIJA S SHETTY | Q59: 1992-09-18 | R59: DOOR NO 3404 5TH CROSS | S59: GAYATHRI NAGAR | T59: BANGALORE | U59: , | V59: , | W59: Y | X59: 14000 | Y59: 1998-05-13 | AA59: 278.56 | AB59: 175 | AC59: -2553.56 | AD59: 1999-05-14 | AE59: 16100 | AF59: 1 | AG59: 512 | AI59: 1 | AJ59: 3S0143 | AK59: SANDHYA U HEGDE | AL59: 12 | AM59: 1 | AN59: M | AO59: 2 | AP59: 14 | AQ59: 15 | BC59: DOOR NO 3404 5TH CROSS | BD59: GAYATHRI NAGAR | BE59: BANGALORE | BH59: N | BI59: N | BK59: 0 | BL59: A | BM59: 1999-05-11 | BN59: 0 | BO59: 0 | BP59: 0 | BQ59: 0 | BS59: ANITHA | BT59: 1998-06-03 | BU59: 2940 | BV59: 2000 | BW59: 940
A60: 58 | B60: 455 | C60: 2 | D60: 2281485 | E60: CD | G60: 1998-06-23 | H60: MR | I60: =COUNTIFS(J:J,J60,R:R,R60,S:S,S60,T:T,T60,U:U,U60,V:V,V60) -> 1 | J60: ABHISHEK P DHURI | K60: MRS | L60: PRADNYA P DHURI | O60: N | R60: 5 RUSHABH CHHAYA | S60: BHOIR NAGAR | T60: MULUND (E) | U60: MUMBAI | V60: 400081 | W60: Y | X60: 23000 | Y60: 1998-06-22 | Z60: 1996-06-20 | AA60: 85.07 | AB60: 287.5 | AC60: -3822.57 | AD60: 1999-06-23 | AE60: 26450 | AF60: 1 | AG60: 512 | AI60: 2 | AJ60: 3H0039 | AK60: H B SHETTY | AL60: 12 | AM60: 1 | AN60: M | AO60: 2 | AP60: 14 | AQ60: 15 | AR60: N | BC60: 5 RUSHABH CHHAYA | BD60: BHOIR NAGAR | BE60: MULUND (E) | BF60: MUMBAI | BG60: 400081 | BH60: Y | BI60: N | BK60: 0 | BL60: A | BM60: 1999-05-11 | BN60: 0 | BO60: 0 | BP60: 0 | BQ60: 0 | BS60: VINOD | BT60: 1998-06-24 | BU60: 4830 | BV60: 2000 | BW60: 2830
A61: 59 | B61: 456 | C61: 2 | D61: 2290223 | E61: CD | G61: 1999-05-14 | H61: MR | I61: =COUNTIFS(J:J,J61,R:R,R61,S:S,S61,T:T,T61,U:U,U61,V:V,V61) -> 1 | J61: ABHISHEK P DHURI | K61: MRS | L61: PRADNYA P DHURI | O61: N | R61: 5,RUSHABH CHHAYA | S61: BHOIR NAGAR | T61: MULUND (E) | U61: MUMBAI | V61: 400081 | W61: Y | X61: 57000 | Y61: 1999-04-22 | Z61: 1996-04-19 | AA61: 923.32 | AB61: 712.5 | AC61: -10185.82 | AD61: 2000-04-23 | AE61: 65550 | AF61: 1 | AG61: 512 | AI61: 2 | AJ61: 3P0009 | AK61: PREMA L SHETTY | AL61: 12 | AM61: 1 | AN61: M | AO61: 2 | AP61: 14 | AQ61: 15 | AR61: N | BC61: 5,RUSHABH CHHAYA | BD61: BHOIR NAGAR | BE61: MULUND (E) | BF61: MUMBAI | BG61: 400081 | BH61: Y | BI61: N | BK61: 0 | BL61: A | BM61: 2000-04-24 | BN61: 0 | BO61: 0 | BP61: 0 | BQ61: 0 | BS61: GEETHA | BT61: 1999-05-17 | BU61: 11970 | BV61: 0 | BW61: 11970
A62: 60 | B62: 457 | C62: 2 | D62: 2282009 | E62: CD | G62: 1998-07-14 | H62: MR | I62: =COUNTIFS(J:J,J62,R:R,R62,S:S,S62,T:T,T62,U:U,U62,V:V,V62) -> 1 | J62: ABHISHEK P DHURI ( | K62: MR | L62: DHURI P V | O62: N | R62: C/O V V DALVI | S62: AT & POST NATAL | T62: TALUKA KANKAVLI | U62: DIST SINDHUDURGA | V62: , | W62: Y | X62: 60000 | Y62: 1998-07-10 | Z62: 1996-07-08 | AA62: 542.47 | AB62: 750 | AC62: -10292.47 | AD62: 1999-07-11 | AE62: 69000 | AF62: 1 | AG62: 512 | AI62: 2 | AJ62: 3P0009 | AK62: PREMA L SHETTY | AL62: 12 | AM62: 1 | AN62: M | AO62: 2 | AP62: 14 | AQ62: 15 | AR62: N | BC62: C/O V V DALVI | BD62: AT & POST NATAL | BE62: TALUKA KANKAVLI | BF62: DIST SINDHUDURGA | BH62: Y | BI62: N | BK62: 0 | BL62: A | BM62: 1999-05-11 | BN62: 0 | BO62: 0 | BP62: 0 | BQ62: 0 | BS62: VINOD | BT62: 1998-07-15 | BU62: 12600 | BV62: 6000 | BW62: 6600
A63: 61 | B63: 458 | C63: 2 | D63: 2282788 | E63: CD | G63: 1998-08-12 | H63: MSTR | I63: =COUNTIFS(J:J,J63,R:R,R63,S:S,S63,T:T,T63,U:U,U63,V:V,V63) -> 1 | J63: ABHISHEK P SATAM (M) | K63: MR | L63: PRADNYA P SATAM | O63: Y | P63: MR. P B SATAM | Q63: 1992-09-24 | R63: 31/1697 KHERNAGAR | S63: M H B COLONY | T63: BANDRA (E) | U63: MUMBAI | V63: 400051 | W63: Y | X63: 15000 | Y63: 1998-08-07 | Z63: 1996-08-05 | AA63: 154.11 | AB63: 187.5 | AC63: -2591.61 | AD63: 1999-08-08 | AE63: 17250 | AF63: 1 | AG63: 512 | AI63: 2 | AJ63: 3H0049 | AK63: HARISH K SHETTY | AL63: 12 | AM63: 1 | AN63: M | AO63: 2 | AP63: 14 | AQ63: 15 | AR63: N | BC63: 31/1697 KHERNAGAR | BD63: M H B COLONY | BE63: BANDRA (E) | BF63: MUMBAI | BG63: 400051 | BH63: N | BI63: N | BK63: 0 | BL63: A | BM63: 1999-05-11 | BN63: 0 | BO63: 0 | BP63: 0 | BQ63: 0 | BS63: SARASWATHI | BT63: 1998-08-13 | BU63: 3150 | BV63: 2000 | BW63: 1150
A64: 62 | B64: 459 | C64: 11 | D64: 2282313 | E64: CD | G64: 1998-07-27 | H64: MSTR | I64: =COUNTIFS(J:J,J64,R:R,R64,S:S,S64,T:T,T64,U:U,U64,V:V,V64) -> 1 | J64: ABHISHEK R MAIYA (M) | O64: Y | P64: RAGHUVEERA A V | Q64: 1994-07-03 | R64: MANASWINI | S64: BEHIND BHARATH PETROLIUM | T64: GAS GODOWN POST UDYAVARA | U64: UDUPI DIST | V64: 574118 | W64: Y | X64: 14000 | Y64: 1998-07-22 | Z64: 1996-07-20 | AA64: 57.53 | AB64: 175 | AC64: -2332.53 | AD64: 1999-07-23 | AE64: 16100 | AF64: 1 | AG64: 512 | AI64: 1 | AJ64: 3Y0007 | AK64: YESHODA P SHETTY | AL64: 12 | AM64: 1 | AN64: M | AO64: 2 | AP64: 14 | AQ64: 15 | AR64: N | BC64: MANASWINI | BD64: BEHIND BHARATH PETROLIUM | BE64: GAS GODOWN POST UDYAVARA | BF64: UDUPI DIST | BG64: 574118 | BH64: N | BI64: N | BK64: 0 | BL64: A | BM64: 1999-05-11 | BN64: 0 | BO64: 0 | BP64: 0 | BQ64: 0 | BS64: VINOD | BT64: 1998-07-28 | BU64: 2940 | BV64: 2000 | BW64: 940
A65: 63 | B65: 460 | C65: 4 | D65: 2280585 | E65: CD | G65: 1998-05-13 | H65: MSTR | I65: =COUNTIFS(J:J,J65,R:R,R65,S:S,S65,T:T,T65,U:U,U65,V:V,V65) -> 1 | J65: ABHISHEK RAJEEV PUNEKAR | K65: MRS | L65: PARIMALA R PUNEKAR | M65: MR | N65: PUNEKAR S G | O65: Y | P65: MRS SAROJ S PUNEKAR | Q65: 1994-03-02 | R65: " PADMA " ADARSH NAGAR | S65: HINDWADI | T65: BELGAUM | U65: , | V65: 590011 | W65: Y | X65: 14000 | Y65: 1998-05-11 | Z65: 1996-05-09 | AA65: 139.75 | AB65: 202.42 | AC65: -5200.17 | AD65: 2000-05-12 | AE65: 18858 | AF65: 1 | AG65: 512 | AI65: 3 | AJ65: 3S0293 | AK65: SHANUAKH SHETTY | AL65: 24 | AM65: 1 | AN65: M | AO65: 2 | AP65: 15 | AQ65: 17.35 | AR65: N | BC65: " PADMA " ADARSH NAGAR | BD65: HINDWADI | BE65: BELGAUM | BG65: 590011 | BH65: N | BI65: N | BK65: 0 | BL65: A | BM65: 1999-05-11 | BN65: 0 | BO65: 0 | BP65: 0 | BQ65: 0 | BS65: SARASWATHI | BT65: 1998-05-13 | BU65: 2940 | BV65: 0 | BW65: 2940
A66: 64 | B66: 461 | C66: 15 | D66: 2680277 | E66: CD | F66: Y | G66: 1998-12-22 | H66: MR | I66: =COUNTIFS(J:J,J66,R:R,R66,S:S,S66,T:T,T66,U:U,U66,V:V,V66) -> 1 | J66: ABIDA S V | O66: N | R66: RAZIA GHAR | S66: MOTTAMMAL P.O | T66: , | U66: KANNUR | V66: , | X66: 10000 | Y66: 1998-12-14 | AA66: 85.17 | AB66: 143.92 | AC66: -5409.08 | AD66: 2001-12-14 | AE66: 15180 | AF66: 1 | AG66: 512 | AI66: 1 | AJ66: 3D9999 | AK66: DIRECT DEPOSIT | AL66: 36 | AM66: 0 | AN66: M | AO66: 2 | AP66: 14 | AQ66: 17.27 | BC66: RAZIA GHAR | BD66: MOTTAMMAL P.O | BF66: KANNUR | BH66: N | BI66: N | BK66: 0 | BL66: A | BM66: 1999-05-11 | BN66: 0 | BO66: 0 | BP66: 0 | BQ66: 0 | BS66: MOHAN | BT66: 1998-12-23 | BU66: 2100 | BV66: 0 | BW66: 2100
A67: 65 | B67: 462 | C67: 24 | D67: 2268512 | E67: CD | G67: 1996-10-24 | H67: MR | I67: =COUNTIFS(J:J,J67,R:R,R67,S:S,S67,T:T,T67,U:U,U67,V:V,V67) -> 1 | J67: ABISHEKH VITOB NAYAK | O67: N | R67: AT & POST BELEKERI | S67: ANKOLA | T67: U K | U67: U K | V67: 581314 | W67: N | X67: 5000 | Y67: 1996-10-24 | Z67: 1996-10-24 | AA67: 0 | AB67: 0 | AC67: 0 | AD67: 2001-10-24 | AE67: 10535 | AF67: 1 | AG67: 512 | AI67: 1 | AJ67: 3R0071 | AK67: RAMACHANDRA B NAYAK | AL67: 60 | AM67: 0 | AN67: M | AO67: 2 | AP67: 15 | AQ67: 22.14 | AR67: N | BC67: AT & POST BELEKERI | BD67: ANKOLA | BE67: U K | BF67: U K | BG67: 581314 | BH67: Y | BI67: N | BK67: 0 | BL67: A | BN67: 0 | BO67: 0 | BP67: 0 | BQ67: 0 | BS67: CONVERTION | BT67: 1997-04-10 | BU67: =+X67*21% -> 1050 | BV67: 0 | BW67: 1050
A68: 66 | B68: 463 | C68: 7 | D68: 2252269 | E68: CD | G68: 1995-06-29 | H68: MRS | I68: =COUNTIFS(J:J,J68,R:R,R68,S:S,S68,T:T,T68,U:U,U68,V:V,V68) -> 1 | J68: ACCAMMA P A | O68: N | R68: 'CAUVERY KRIPA' | S68: DECHOOR | T68: MADIKERI | U68: MADIKERI | V68: 571201 | W68: N | X68: 100000 | Y68: 1995-06-29 | Z68: 1995-06-29 | AA68: 0 | AB68: 0 | AC68: 0 | AD68: 2000-06-29 | AE68: 200600 | AF68: 1 | AG68: 512 | AI68: 1 | AJ68: 3K0051 | AK68: KUMAR C M | AL68: 60 | AM68: 0 | AN68: M | AO68: 2 | AP68: 14 | AQ68: 20.12 | AR68: N | BC68: 'CAUVERY KRIPA' | BD68: DECHOOR | BE68: MADIKERI | BF68: MADIKERI | BG68: 571201 | BH68: Y | BI68: N | BK68: 0 | BL68: A | BN68: 0 | BO68: 0 | BP68: 0 | BQ68: 0 | BS68: CONVERTION | BT68: 1997-04-10 | BU68: 21000 | BV68: 0 | BW68: 21000
A69: 67 | B69: 464 | C69: 30 | D69: 2282113 | E69: CD | G69: 1998-07-16 | H69: MRS | I69: =COUNTIFS(J:J,J69,R:R,R69,S:S,S69,T:T,T69,U:U,U69,V:V,V69) -> 1 | J69: ACHALA B K | O69: N | R69: RAJENDRA NAGAR | S69: , | T69: , | U69: SHIMOGA | V69: , | W69: Y | X69: 14000 | Y69: 1998-07-13 | Z69: 1996-07-11 | AA69: 126.44 | AB69: 202.42 | AC69: -5186.86 | AD69: 2000-07-14 | AE69: 18858 | AF69: 1 | AG69: 512 | AI69: 1 | AJ69: 3A0070 | AK69: AMITHA RAI | AL69: 24 | AM69: 1 | AN69: M | AO69: 2 | AP69: 15 | AQ69: 17.35 | AR69: N | BC69: RAJENDRA NAGAR | BF69: SHIMOGA | BH69: N | BI69: N | BK69: 0 | BL69: A | BM69: 1999-05-11 | BN69: 0 | BO69: 0 | BP69: 0 | BQ69: 0 | BS69: VINOD | BT69: 1998-07-17 | BU69: 2940 | BV69: 0 | BW69: 2940
A70: 68 | B70: 465 | C70: 23 | D70: 2174283 | E70: FD | G70: 1998-03-08 | H70: MRS | I70: =COUNTIFS(J:J,J70,R:R,R70,S:S,S70,T:T,T70,U:U,U70,V:V,V70) -> 1 | J70: ACHAMMA Y S | K70: MRS | L70: RUKMINI Y N | O70: N | R70: 133 3RD MAIN ROAD | S70: GANGA NAGAR LAYOUT | T70: BANGALORE | U70: KARNATAKA | V70: 560032 | W70: Y | X70: 16000 | Y70: 1998-03-02 | Z70: 1997-03-01 | AA70: 0 | AB70: 0 | AC70: 0 | AD70: 1999-03-03 | AE70: 18240 | AF70: 1 | AG70: 512 | AI70: 2 | AJ70: 3I0003 | AK70: INTEGRATED ENTERPRISES | AL70: 12 | AM70: 1 | AN70: M | AO70: 2 | AP70: 14 | AQ70: 14 | AR70: N | AS70: 23602102 | BC70: 133 3RD MAIN ROAD | BD70: GANGA NAGAR LAYOUT | BE70: BANGALORE | BF70: KARNATAKA | BG70: 560032 | BH70: Y | BI70: N | BK70: 0 | BL70: A | BM70: 1998-03-10 | BN70: 0 | BO70: 0 | BP70: 0 | BQ70: 0 | BS70: TIGER | BT70: 1998-03-10 | BU70: 3360 | BV70: 0 | BW70: 3360
A71: 69 | B71: 466 | C71: 5 | D71: 2243125 | E71: CD | G71: 1994-09-22 | H71: MR | I71: =COUNTIFS(J:J,J71,R:R,R71,S:S,S71,T:T,T71,U:U,U71,V:V,V71) -> 1 | J71: ACHANTA SURYA PRAKASHA RAO | L71: MRS ACHANTA VENKATALAKSHMI | O71: N | R71: RETIRED M.E.O. | S71: MUNCIPAL OFFICE ROAD | T71: PATHA PALONCHA | U71: KHAMMAM (A P) | V71: 507115 | W71: N | X71: 10000 | Y71: 1994-09-22 | Z71: 1994-09-22 | AA71: 0 | AB71: 0 | AC71: 0 | AD71: 1999-09-22 | AE71: 20060 | AF71: 1 | AG71: 512 | AI71: 2 | AJ71: 3L0022 | AK71: LAXMI SECURITIES & ADVISO | AL71: 60 | AM71: 0 | AN71: M | AO71: 2 | AP71: 14 | AQ71: 20.12 | AR71: N | BC71: RETIRED M.E.O. | BD71: MUNCIPAL OFFICE ROAD | BE71: PATHA PALONCHA | BF71: KHAMMAM (A P) | BG71: 507115 | BH71: Y | BI71: N | BK71: 0 | BL71: A | BN71: 4046.78 | BO71: 0 | BP71: 163.87 | BQ71: 0 | BS71: CONVERTION | BT71: 1997-04-10 | BU71: 2100 | BV71: 0 | BW71: 2100
A72: 70 | B72: 467 | C72: 7 | D72: 2162438 | E72: FD | G72: 1996-10-18 | H72: MR | I72: =COUNTIFS(J:J,J72,R:R,R72,S:S,S72,T:T,T72,U:U,U72,V:V,V72) -> 1 | J72: ACHAPPA M J | L72: MR RAJOO M J | O72: N | R72: TEMPLE VIEW | S72: GONIKOPAL POST | T72: P B NO.10, SOUTH KODAGU | U72: KARNATAKA | V72: 571213 | W72: N | X72: 10000 | Y72: 1996-10-18 | Z72: 1996-10-18 | AA72: 0 | AB72: 0 | AC72: 0 | AD72: 1999-10-18 | AE72: 10000 | AF72: 1 | AG72: 512 | AI72: 2 | AJ72: 3S0281 | AK72: SUMI UTTAPPA | AL72: 36 | AM72: 0 | AN72: M | AO72: 2 | AP72: 15 | AQ72: 15 | AR72: N | BC72: TEMPLE VIEW | BD72: GONIKOPAL POST | BE72: P B NO.10, SOUTH KODAGU | BF72: KARNATAKA | BG72: 571213 | BH72: Y | BI72: N | BK72: 0 | BL72: A | BM72: 1996-10-18 | BN72: 558 | BO72: 0 | BP72: 125 | BQ72: 0 | BS72: CONVERTION | BT72: 1997-04-10 | BU72: 2100 | BV72: 2000 | BW72: 100
A73: 71 | B73: 468 | C73: 33 | D73: 2181628 | E73: FD | G73: 1998-10-15 | H73: MR | I73: =COUNTIFS(J:J,J73,R:R,R73,S:S,S73,T:T,T73,U:U,U73,V:V,V73) -> 1 | J73: ACHAR C G M | O73: N | R73: NO 478/1 4TH CROSS | S73: K B EXTENSION | T73: , | U73: DAVANGERE | V73: 577002 | W73: Y | X73: 28000 | Y73: 1998-10-09 | Z73: 1996-10-07 | AA73: 0 | AB73: 0 | AC73: 0 | AD73: 2000-10-10 | AE73: 36400 | AF73: 1 | AG73: 512 | AI73: 1 | AJ73: 3V0078 | AK73: VEDA MURALIDHAR | AL73: 24 | AM73: 1 | AN73: M | AO73: 1 | AP73: 15 | AQ73: 15 | AR73: N | BC73: NO 478/1 4TH CROSS | BD73: K B EXTENSION | BF73: DAVANGERE | BG73: 577002 | BH73: Y | BI73: N | BK73: 0 | BL73: A | BM73: 1998-10-20 | BN73: 0 | BO73: 0 | BP73: 0 | BQ73: 0 | BS73: TIGER | BT73: 1998-11-18 | BU73: 5880 | BV73: 1135 | BW73: 4745
A74: 72 | B74: 469 | C74: 33 | D74: 2284939 | E74: CD | G74: 1998-11-06 | H74: MR | I74: =COUNTIFS(J:J,J74,R:R,R74,S:S,S74,T:T,T74,U:U,U74,V:V,V74) -> 1 | J74: ACHAR C G M | K74: MS | L74: KAMALA C G (MINOR) | O74: Y | P74: MR MURALIDHARA C M | Q74: 1983-09-08 | R74: NO 478/1 IV CROSS | S74: K B EXTENSION | T74: , | U74: DAVANGERE | V74: 577102 | W74: Y | X74: 20000 | Y74: 1998-11-04 | Z74: 1996-11-02 | AA74: 256.68 | AB74: 289.17 | AC74: -7485.85 | AD74: 2000-11-05 | AE74: 26940 | AF74: 1 | AG74: 512 | AI74: 2 | AJ74: 3V0078 | AK74: VEDA MURALIDHAR | AL74: 24 | AM74: 1 | AN74: M | AO74: 2 | AP74: 15 | AQ74: 17.35 | AR74: N | BC74: NO 478/1 IV CROSS | BD74: K B EXTENSION | BF74: DAVANGERE | BG74: 577102 | BH74: Y | BI74: N | BK74: 0 | BL74: A | BM74: 1999-05-11 | BN74: 0 | BO74: 0 | BP74: 0 | BQ74: 0 | BS74: MOHAN | BT74: 1998-11-06 | BU74: 4200 | BV74: 0 | BW74: 4200
A75: 73 | B75: 470 | C75: 33 | D75: 2380219 | E75: CC | G75: 1998-07-25 | H75: MR | I75: =COUNTIFS(J:J,J75,R:R,R75,S:S,S75,T:T,T75,U:U,U75,V:V,V75) -> 1 | J75: ACHAR C G M | O75: N | R75: 478/1 4TH CROSS | S75: K B EXTENSION | T75: , | U75: DAVANGERE | V75: 577202 | W75: Y | X75: 33390 | Y75: 1998-07-25 | Z75: 1996-07-23 | AA75: 96.05 | AB75: 417.38 | AC75: -5502.74 | AD75: 2000-07-26 | AE75: 45000 | AF75: 1 | AG75: 512 | AI75: 1 | AJ75: 3V0078 | AK75: VEDA MURALIDHAR | AL75: 24 | AM75: 1 | AN75: M | AO75: 2 | AP75: 15 | AQ75: 17.35 | AR75: N | BC75: 478/1 4TH CROSS | BD75: K B EXTENSION | BF75: DAVANGERE | BG75: 577202 | BH75: Y | BI75: N | BK75: 0 | BL75: A | BM75: 1999-05-11 | BN75: 0 | BO75: 0 | BP75: 0 | BQ75: 0 | BS75: TIGER | BT75: 1998-07-30 | BU75: 7011.9 | BV75: 0 | BW75: 7011.9
A76: 74 | B76: 471 | C76: 5 | D76: 2282644 | E76: CD | G76: 1998-08-06 | H76: MR | I76: =COUNTIFS(J:J,J76,R:R,R76,S:S,S76,T:T,T76,U:U,U76,V:V,V76) -> 1 | J76: ACHAR P L | K76: MRS | L76: VISHALAKSHI P L | O76: N | R76: PADEBETTU VILLAGE | S76: PADUBIDRI POST | T76: UDUPI DIST | U76: , | V76: , | W76: Y | X76: 15000 | Y76: 1998-07-29 | Z76: 1996-07-27 | AA76: 205.99 | AB76: 187.5 | AC76: -2643.49 | AD76: 1999-07-30 | AE76: 17250 | AF76: 1 | AG76: 512 | AI76: 2 | AJ76: 3R0103 | AK76: RATHNA R SHETTY | AL76: 12 | AM76: 1 | AN76: M | AO76: 2 | AP76: 14 | AQ76: 15 | AR76: N | BC76: PADEBETTU VILLAGE | BD76: PADUBIDRI POST | BE76: UDUPI DIST | BH76: N | BI76: N | BK76: 0 | BL76: A | BM76: 1999-05-11 | BN76: 0 | BO76: 0 | BP76: 0 | BQ76: 0 | BS76: ANITHA | BT76: 1998-08-10 | BU76: 3150 | BV76: 0 | BW76: 3150
A77: 75 | B77: 472 | C77: 11 | D77: 2282188 | E77: CD | G77: 1998-07-20 | H77: MR | I77: =COUNTIFS(J:J,J77,R:R,R77,S:S,S77,T:T,T77,U:U,U77,V:V,V77) -> 1 | J77: ACHAR RAGHAVENDRA | O77: N | R77: S/O MR ACHAR K A | S77: FERNANDES BLDG | T77: DENDOOR KATTE | U77: MANIPURA EAST UDUPI | V77: , | W77: Y | X77: 14000 | Y77: 1998-06-11 | Z77: 1996-06-09 | AA77: 290.07 | AB77: 175 | AC77: -2565.07 | AD77: 1999-06-12 | AE77: 16100 | AF77: 1 | AG77: 512 | AI77: 1 | AJ77: 3N0012 | AK77: NARASAMMA SHEDTHI | AL77: 12 | AM77: 1 | AN77: M | AO77: 2 | AP77: 14 | AQ77: 15 | AR77: N | BC77: S/O MR ACHAR K A | BD77: FERNANDES BLDG | BE77: DENDOOR KATTE | BF77: MANIPURA EAST UDUPI | BH77: N | BI77: N | BK77: 0 | BL77: A | BM77: 1999-05-11 | BN77: 0 | BO77: 0 | BP77: 0 | BQ77: 0 | BS77: VINOD | BT77: 1998-07-21 | BU77: 2940 | BV77: 2000 | BW77: 940
A78: 76 | B78: 473 | C78: 28 | D78: 2286159 | E78: CD | G78: 1999-01-12 | H78: MR | I78: =COUNTIFS(J:J,J78,R:R,R78,S:S,S78,T:T,T78,U:U,U78,V:V,V78) -> 1 | J78: ACHARI B U | O78: N | R78: ULLUR | S78: KHAMBADAKONE POST | T78: KUNDAPUR TQ | U78: , | V78: 576219 | W78: Y | X78: 10000 | Y78: 1998-11-18 | Z78: 1996-11-16 | AA78: 353.73 | AB78: 144.58 | AC78: -3968.32 | AD78: 2000-11-19 | AE78: 13470 | AF78: 1 | AG78: 512 | AI78: 1 | AJ78: 3M0075 | AK78: MANJULA | AL78: 24 | AM78: 1 | AN78: M | AO78: 2 | AP78: 15 | AQ78: 17.35 | AR78: N | BC78: ULLUR | BD78: KHAMBADAKONE POST | BE78: KUNDAPUR TQ | BG78: 576219 | BH78: N | BI78: N | BK78: 0 | BL78: A | BM78: 1999-05-11 | BN78: 0 | BO78: 0 | BP78: 0 | BQ78: 0 | BS78: RADHESH | BT78: 1999-01-12 | BU78: 2100 | BV78: 0 | BW78: 2100
A79: 77 | B79: 474 | C79: 28 | D79: 2290862 | E79: CD | G79: 1999-09-06 | H79: MR | I79: =COUNTIFS(J:J,J79,R:R,R79,S:S,S79,T:T,T79,U:U,U79,V:V,V79) -> 1 | J79: ACHARYA H S | K79: DR | L79: SHOBHA | O79: N | R79: HAIKADY | S79: POST HILIYANE | T79: KUNDAPUR TALUK | U79: UDUPI DIST | V79: , | W79: Y | X79: 13000 | Y79: 1999-06-22 | Z79: 1996-06-19 | AA79: 536.47 | AB79: 162.5 | AC79: -2648.97 | AD79: 2000-06-23 | AE79: 14950 | AF79: 1 | AG79: 512 | AI79: 2 | AJ79: 3P0056 | AK79: PREMAVATHI S HEGDE | AL79: 12 | AM79: 1 | AN79: M | AO79: 2 | AP79: 14 | AQ79: 15 | AR79: N | BC79: HAIKADY | BD79: POST HILIYANE | BE79: KUNDAPUR TALUK | BF79: UDUPI DIST | BH79: N | BI79: N | BK79: 0 | BL79: A | BM79: 2000-04-24 | BN79: 0 | BO79: 0 | BP79: 0 | BQ79: 0 | BS79: GEETHA | BT79: 1999-09-07 | BU79: 2730 | BV79: 0 | BW79: 2730
A80: 78 | B80: 475 | C80: 17 | D80: 2290617 | E80: CD | G80: 1999-07-19 | H80: MR | I80: =COUNTIFS(J:J,J80,R:R,R80,S:S,S80,T:T,T80,U:U,U80,V:V,V80) -> 1 | J80: ACHARYA U M | O80: N | R80: S/O NARAYANA ACHARYA | S80: POST MOODUMATA | T80: , | U80: KUNDAPUR | V80: 576219 | X80: 6000 | Y80: 1999-07-09 | AA80: 65.6 | AB80: 86.75 | AC80: -2234.35 | AD80: 2001-07-10 | AE80: 8082 | AF80: 1 | AG80: 512 | AI80: 1 | AJ80: 3M0075 | AK80: MANJULA | AL80: 24 | AM80: 1 | AN80: M | AO80: 2 | AP80: 15 | AQ80: 17.35 | BC80: S/O NARAYANA ACHARYA | BD80: POST MOODUMATA | BF80: KUNDAPUR | BG80: 576219 | BH80: N | BI80: N | BK80: 0 | BL80: A | BM80: 2000-04-24 | BN80: 0 | BO80: 0 | BP80: 0 | BQ80: 0 | BS80: SARASWATHI | BT80: 1999-07-20 | BU80: 1260 | BV80: 0 | BW80: 1260
A81: 79 | B81: 476 | C81: 11 | D81: 2263641 | E81: CD | G81: 1996-07-18 | H81: MR | I81: =COUNTIFS(J:J,J81,R:R,R81,S:S,S81,T:T,T81,U:U,U81,V:V,V81) -> 1 | J81: ACHUT BHAT H N | O81: N | R81: ANIL ROAD | S81: 5TH CROSS | T81: VENKATESH NAGAR | U81: SHIMOGA | V81: , | W81: N | X81: 11000 | Y81: 1996-07-18 | Z81: 1996-07-18 | AA81: 0 | AB81: 0 | AC81: 0 | AD81: 1999-07-18 | AE81: 17204 | AF81: 1 | AG81: 512 | AI81: 1 | AJ81: 3V0062 | AK81: VINAYAK G P | AL81: 36 | AM81: 0 | AN81: M | AO81: 2 | AP81: 15 | AQ81: 18.8 | AR81: N | BC81: ANIL ROAD | BD81: 5TH CROSS | BE81: VENKATESH NAGAR | BF81: SHIMOGA | BH81: Y | BI81: N | BK81: 0 | BL81: A | BN81: 1068.35 | BO81: 0 | BP81: 150.85 | BQ81: 0 | BS81: CONVERTION | BT81: 1997-04-10 | BU81: 2310 | BV81: 2000 | BW81: 310
A82: 80 | B82: 477 | C82: 11 | D82: 2266778 | E82: CD | G82: 1996-09-10 | H82: MR | I82: =COUNTIFS(J:J,J82,R:R,R82,S:S,S82,T:T,T82,U:U,U82,V:V,V82) -> 1 | J82: ACHUT BHAT H N | O82: N | R82: A N K ROAD | S82: 5TH CROSS | T82: VENKATESH NAGAR | U82: SHIMOGA | V82: , | W82: N | X82: 11000 | Y82: 1996-09-10 | Z82: 1996-09-10 | AA82: 0 | AB82: 0 | AC82: 0 | AD82: 1999-09-10 | AE82: 17204 | AF82: 1 | AG82: 512 | AI82: 1 | AJ82: 3V0062 | AK82: VINAYAK G P | AL82: 36 | AM82: 0 | AN82: M | AO82: 2 | AP82: 15 | AQ82: 18.8 | AR82: N | BC82: A N K ROAD | BD82: 5TH CROSS | BE82: VENKATESH NAGAR | BF82: SHIMOGA | BH82: Y | BI82: N | BK82: 0 | BL82: A | BN82: 805.9 | BO82: 0 | BP82: 147.57 | BQ82: 0 | BS82: CONVERTION | BT82: 1997-04-10 | BU82: 2310 | BV82: 2000 | BW82: 310
A83: 81 | B83: 478 | C83: 17 | D83: 2279433 | E83: CD | G83: 1997-11-06 | H83: MR | I83: =COUNTIFS(J:J,J83,R:R,R83,S:S,S83,T:T,T83,U:U,U83,V:V,V83) -> 1 | J83: ACHUTHA HEBBAR J | K83: MRS | L83: GULABHI A HEBBAR | O83: N | R83: "VAIDEHI" | S83: POST KERGAL | T83: , | U83: KUNDAPUR TQ | V83: 576219 | W83: Y | X83: 33000 | Y83: 1997-11-01 | Z83: 1995-11-01 | AA83: 470.59 | AB83: 477.13 | AC83: -12398.71 | AD83: 1999-11-02 | AE83: 44451 | AF83: 1 | AG83: 512 | AI83: 2 | AJ83: 3M0075 | AK83: MANJULA | AL83: 24 | AM83: 1 | AN83: M | AO83: 2 | AP83: 15 | AQ83: 17.35 | AR83: N | BC83: "VAIDEHI" | BD83: POST KERGAL | BF83: KUNDAPUR TQ | BG83: 576219 | BH83: Y | BI83: N | BK83: 0 | BL83: A | BM83: 1998-04-08 | BN83: 0 | BO83: 0 | BP83: 0 | BQ83: 0 | BS83: VINOD | BT83: 1997-11-11 | BU83: 6930 | BV83: 3000 | BW83: 3930
A84: 82 | B84: 479 | C84: 17 | D84: 2370661 | E84: CC | G84: 1998-03-10 | H84: MR | I84: =COUNTIFS(J:J,J84,R:R,R84,S:S,S84,T:T,T84,U:U,U84,V:V,V84) -> 1 | J84: ACHUTHA HEBBAR J | K84: MRS | L84: GULABI A HEBBAR | O84: N | R84: VAIDEHI | S84: POST KERGAL | T84: KUNDAPUR TALUK | U84: D.K | V84: 576219 | W84: Y | X84: 1484 | Y84: 1998-03-01 | Z84: 1996-03-01 | AA84: 21.87 | AB84: 21.46 | AC84: -559.32 | AD84: 2000-03-02 | AE84: 2000 | AF84: 1 | AG84: 512 | AI84: 2 | AJ84: 3M0075 | AK84: MANJULA | AL84: 24 | AM84: 1 | AN84: M | AO84: 2 | AP84: 15 | AQ84: 17.35 | AR84: N | BC84: VAIDEHI | BD84: POST KERGAL | BE84: KUNDAPUR TALUK | BF84: D.K | BG84: 576219 | BH84: N | BI84: N | BK84: 0 | BL84: A | BM84: 1998-04-08 | BN84: 0 | BO84: 0 | BP84: 0 | BQ84: 0 | BS84: ANITHA | BT84: 1998-03-11 | BU84: 311.64 | BV84: 0 | BW84: 311.64
A85: 83 | B85: 480 | C85: 17 | D85: 2675103 | E85: CD | G85: 1998-03-09 | H85: MR | I85: =COUNTIFS(J:J,J85,R:R,R85,S:S,S85,T:T,T85,U:U,U85,V:V,V85) -> 1 | J85: ACHUTHA HEBBAR J | K85: MRS | L85: GULABI A HEBBAR | O85: N | R85: ' VAIDEHI ' | S85: POST KERGAL | T85: KUNDAPURA TQ | U85: D.K | V85: 576219 | W85: Y | X85: 3000 | Y85: 1998-01-24 | Z85: 1997-01-23 | AA85: 94.71 | AB85: 43.38 | AC85: -1179.09 | AD85: 2000-01-25 | AE85: 4041 | AF85: 1 | AG85: 512 | AI85: 2 | AJ85: 3M0075 | AK85: MANJULA | AL85: 24 | AM85: 1 | AN85: M | AO85: 2 | AP85: 15 | AQ85: 17.35 | AR85: N | BC85: ' VAIDEHI ' | BD85: POST KERGAL | BE85: KUNDAPURA TQ | BF85: D.K | BG85: 576219 | BH85: N | BI85: N | BK85: 0 | BL85: A | BM85: 1998-04-08 | BN85: 0 | BO85: 0 | BP85: 0 | BQ85: 0 | BS85: ANITHA | BT85: 1998-03-10 | BU85: 630 | BV85: 0 | BW85: 630
A86: 84 | B86: 481 | C86: 9 | D86: 2290038 | E86: CD | G86: 1999-04-15 | H86: MR | I86: =COUNTIFS(J:J,J86,R:R,R86,S:S,S86,T:T,T86,U:U,U86,V:V,V86) -> 1 | J86: ACHUTHAMURTHY U P | K86: MRS | L86: JAYAMMA G K | O86: N | R86: `SRI RAM PRASAD' | S86: VIDYANAGAR | T86: , | U86: HASSAN | V86: 573201 | X86: 15000 | Y86: 1999-04-12 | AA86: 135.47 | AB86: 216.88 | AC86: -5557.35 | AD86: 2001-04-13 | AE86: 20205 | AF86: 1 | AG86: 512 | AI86: 2 | AJ86: 3S0140 | AK86: SHYAMALA SHEKAR (MADRAS) | AL86: 24 | AM86: 1 | AN86: M | AO86: 2 | AP86: 15 | AQ86: 17.35 | BC86: `SRI RAM PRASAD' | BD86: VIDYANAGAR | BF86: HASSAN | BG86: 573201 | BH86: N | BI86: N | BK86: 0 | BL86: A | BM86: 2000-04-24 | BN86: 0 | BO86: 0 | BP86: 0 | BQ86: 0 | BS86: GEETHA | BT86: 1999-04-16 | BU86: 3150 | BV86: 0 | BW86: 3150
A87: 85 | B87: 482 | C87: 29 | D87: 2668499 | E87: CD | G87: 1997-02-24 | H87: DR | I87: =COUNTIFS(J:J,J87,R:R,R87,S:S,S87,T:T,T87,U:U,U87,V:V,V87) -> 1 | J87: ACHUTHAN K | O87: N | R87: ' KARUNA ' | S87: P O IRIM PANOM | T87: ERNAKULAM DIST | U87: KERALA | V87: 682309 | W87: Y | X87: 10000 | Y87: 1997-02-24 | Z87: 1997-02-24 | AA87: 0 | AB87: 0 | AC87: 0 | AD87: 1998-02-25 | AE87: 11610 | AF87: 1 | AG87: 512 | AI87: 1 | AJ87: 3L0025 | AK87: LEELA S SHETTY | AL87: 12 | AM87: 0 | AN87: M | AO87: 2 | AP87: 15 | AQ87: 16.1 | AR87: N | BC87: ' KARUNA ' | BD87: P O IRIM PANOM | BE87: ERNAKULAM DIST | BF87: KERALA | BG87: 682309 | BH87: Y | BI87: N | BK87: 0 | BL87: A | BN87: 20.54 | BO87: 0 | BP87: 125.25 | BQ87: 0 | BS87: CONVERTION | BT87: 1997-04-10 | BU87: 2100 | BV87: 0 | BW87: 2100
A88: 86 | B88: 483 | C88: 30 | D88: 2153496 | E88: FD | G88: 1996-02-13 | H88: MRS | I88: =COUNTIFS(J:J,J88,R:R,R88,S:S,S88,T:T,T88,U:U,U88,V:V,V88) -> 1 | J88: ADA PRABHU | L88: MISS ROSE MARIE MATHIAS PRABHU | N88: /52 SYNDICATE BANK | O88: N | R88: BALEHALLI VILLAGE | S88: VIDYA NAGAR | T88: OPP MOUNTAIN VIEW SCHOOL | U88: CHICKMAGALUR | V88: 577101 | W88: N | X88: 15000 | Y88: 1996-02-13 | Z88: 1996-02-13 | AA88: 0 | AB88: 0 | AC88: 0 | AD88: 2001-02-13 | AE88: 15000 | AF88: 1 | AG88: 512 | AI88: 1 | AJ88: 3D0036 | AK88: DAYANANDA RAO | AL88: 60 | AM88: 0 | AN88: M | AO88: 8 | AP88: 15 | AQ88: 15 | AR88: Y | AU88: MISS ROSE MARIE M PRABHU | AW88: SYNDICATE BANK | AX88: CHICKMAGALUR | BA88: 577101 | BB88: 40804/52 | BC88: BALEHALLI VILLAGE | BD88: VIDYA NAGAR | BE88: OPP MOUNTAIN VIEW SCHOOL | BF88: CHICKMAGALUR | BG88: 577101 | BH88: Y | BI88: N | BK88: 0 | BL88: A | BM88: 1996-02-13 | BN88: 2354 | BO88: 0 | BP88: 188 | BQ88: 0 | BS88: CONVERTION | BT88: 1997-04-10 | BU88: 3150 | BV88: 0 | BW88: 3150
A89: 87 | B89: 484 | C89: 6 | D89: 2370646 | E89: CC | G89: 1998-02-27 | H89: MR | I89: =COUNTIFS(J:J,J89,R:R,R89,S:S,S89,T:T,T89,U:U,U89,V:V,V89) -> 1 | J89: ADAPPA RAJSHEKAR | O89: N | R89: AGRICULTURIST | S89: MAIRE GUTHU HOUSE | T89: BAJAL | U89: MANGALORE | V89: 575007 | W89: Y | X89: 31320 | Y89: 1998-02-21 | Z89: 1997-02-20 | AA89: 102.97 | AB89: 391.5 | AC89: -5174.47 | AD89: 1999-02-22 | AE89: 36000 | AF89: 1 | AG89: 512 | AI89: 1 | AJ89: 3K0050 | AK89: KINI M S | AL89: 12 | AM89: 1 | AN89: M | AO89: 2 | AP89: 14 | AQ89: 15 | AR89: N | BC89: AGRICULTURIST | BD89: MAIRE GUTHU HOUSE | BE89: BAJAL | BF89: MANGALORE | BG89: 575007 | BH89: Y | BI89: N | BK89: 0 | BL89: A | BM89: 1998-04-08 | BN89: 0 | BO89: 0 | BP89: 0 | BQ89: 0 | BS89: ANITHA | BT89: 1998-03-02 | BU89: 6577.2 | BV89: 0 | BW89: 6577.2
A90: 88 | B90: 485 | C90: 14 | D90: 2284420 | E90: CD | G90: 1998-10-12 | H90: MSTR | I90: =COUNTIFS(J:J,J90,R:R,R90,S:S,S90,T:T,T90,U:U,U90,V:V,V90) -> 1 | J90: ADARSH (MINOR) | O90: Y | P90: MRS INDIRA V BHAT | Q90: 1992-04-24 | R90: CANARA BANK | S90: BELVAI | T90: KESARA GADDE POST | U90: KARKALA TALUK | V90: , | W90: Y | X90: 12000 | Y90: 1998-09-26 | Z90: 1996-09-24 | AA90: 174.66 | AB90: 150 | AC90: -2124.66 | AD90: 1999-09-27 | AE90: 13800 | AF90: 1 | AG90: 512 | AI90: 1 | AJ90: 3Y0006 | AK90: YESHODARA S SHETTY | AL90: 12 | AM90: 1 | AN90: M | AO90: 2 | AP90: 14 | AQ90: 15 | AR90: N | BC90: CANARA BANK | BD90: BELVAI | BE90: KESARA GADDE POST | BF90: KARKALA TALUK | BH90: N | BI90: N | BK90: 0 | BL90: A | BM90: 1999-05-11 | BN90: 0 | BO90: 0 | BP90: 0 | BQ90: 0 | BS90: RADHESH | BT90: 1998-10-12 | BU90: 2520 | BV90: 2000 | BW90: 520
A91: 89 | B91: 486 | C91: 10 | D91: 2271250 | E91: CD | G91: 1997-05-08 | H91: MR | I91: =COUNTIFS(J:J,J91,R:R,R91,S:S,S91,T:T,T91,U:U,U91,V:V,V91) -> 1 | J91: ADARSH B S | K91: MRS | L91: ARUNA M K | O91: N | R91: BANNAHALLI | S91: K BELLUR POST | T91: MADDUR TQ | U91: MANDYA DIST | V91: , | X91: 35000 | Y91: 1997-04-23 | AA91: 692.55 | AB91: 548.33 | AC91: -20980.89 | AD91: 2000-04-23 | AE91: 54740 | AF91: 1 | AG91: 512 | AI91: 2 | AJ91: 3S0018 | AK91: SHANKARA NARAYAN T | AL91: 36 | AM91: 0 | AN91: M | AP91: 15 | AQ91: 18.8 | BC91: BANNAHALLI | BD91: K BELLUR POST | BE91: MADDUR TQ | BF91: MANDYA DIST | BH91: Y | BI91: N | BK91: 0 | BL91: A | BM91: 1998-04-08 | BN91: 0 | BO91: 0 | BP91: 0 | BQ91: 0 | BS91: TEST | BT91: 1997-05-16 | BU91: 7350 | BV91: 0 | BW91: 7350
A92: 90 | B92: 487 | C92: 25 | D92: 2281833 | E92: CD | G92: 1998-07-07 | H92: MR | I92: =COUNTIFS(J:J,J92,R:R,R92,S:S,S92,T:T,T92,U:U,U92,V:V,V92) -> 1 | J92: ADARSH E | O92: N | R92: SNEH | S92: RAJEEV NAGAR | T92: CALICUT DIST | U92: KERALA STATE | V92: 673004 | W92: Y | X92: 10000 | Y92: 1998-07-06 | Z92: 1996-07-04 | AA92: 123.59 | AB92: 144.58 | AC92: -3738.17 | AD92: 2000-07-07 | AE92: 13470 | AF92: 1 | AG92: 512 | AI92: 1 | AJ92: 3B0037 | AK92: BALACHANDRAN NAIR | AL92: 24 | AM92: 1 | AN92: M | AO92: 2 | AP92: 15 | AQ92: 17.35 | AR92: N | BC92: SNEH | BD92: RAJEEV NAGAR | BE92: CALICUT DIST | BF92: KERALA STATE | BG92: 673004 | BH92: N | BI92: N | BK92: 0 | BL92: A | BM92: 1999-05-11 | BN92: 0 | BO92: 0 | BP92: 0 | BQ92: 0 | BS92: VINOD | BT92: 1998-07-08 | BU92: 2100 | BV92: 0 | BW92: 2100
A93: 91 | B93: 488 | C93: 2 | D93: 2665386 | E93: CD | G93: 1996-12-10 | H93: MSTR | I93: =COUNTIFS(J:J,J93,R:R,R93,S:S,S93,T:T,T93,U:U,U93,V:V,V93) -> 1 | J93: ADARSH R SHETTY (MINOR) | L93: MRS SUJATHA R SHETTY | O93: Y | P93: M/G MR RAMAYA T SHETTY | R93: 30/2052 MHB COLONY | S93: ABHYUDAYA NAGAR | T93: KALACHOWKI | U93: MUMABI | V93: 400033 | W93: N | X93: 10000 | Y93: 1996-12-10 | Z93: 1996-12-10 | AA93: 0 | AB93: 0 | AC93: 0 | AD93: 2001-12-10 | AE93: 21070 | AF93: 1 | AG93: 512 | AI93: 2 | AJ93: 3H0039 | AK93: H B SHETTY | AL93: 60 | AM93: 0 | AN93: M | AO93: 2 | AP93: 15 | AQ93: 22.14 | AR93: N | BC93: 30/2052 MHB COLONY | BD93: ABHYUDAYA NAGAR | BE93: KALACHOWKI | BF93: MUMABI | BG93: 400033 | BH93: Y | BI93: N | BK93: 0 | BL93: A | BN93: 0 | BO93: 0 | BP93: 0 | BQ93: 0 | BS93: CONVERTION | BT93: 1997-04-10 | BU93: 2100 | BV93: 0 | BW93: 2100
A94: 92 | B94: 489 | C94: 29 | D94: 2242017 | E94: CD | G94: 1994-07-28 | H94: MISS | I94: =COUNTIFS(J:J,J94,R:R,R94,S:S,S94,T:T,T94,U:U,U94,V:V,V94) -> 1 | J94: ADEKSHA MAHABALA SHETTY (MINOR | O94: Y | P94: M/G MR MAHABALA B SHETTY | R94: HOTEL NEELAM | S94: OPP: PUNE RAILWAY STATION | T94: PUNE | U94: PUNE | V94: 411001 | W94: N | X94: 10000 | Y94: 1994-07-28 | Z94: 1994-07-28 | AA94: 0 | AB94: 0 | AC94: 0 | AD94: 1999-07-28 | AE94: 20060 | AF94: 1 | AG94: 512 | AI94: 1 | AL94: 60 | AM94: 0 | AN94: M | AO94: 2 | AP94: 14 | AQ94: 20.12 | AR94: N | BC94: HOTEL NEELAM | BD94: OPP: PUNE RAILWAY STATION | BE94: PUNE | BF94: PUNE | BG94: 411001 | BH94: Y | BI94: N | BK94: 0 | BL94: A | BN94: 4348.73 | BO94: 0 | BP94: 167.4 | BQ94: 0 | BS94: CONVERTION | BT94: 1997-04-10 | BU94: 2100 | BV94: 2000 | BW94: 100
A95: 93 | B95: 490 | C95: 6 | D95: 2370674 | E95: CC | G95: 1998-03-20 | H95: MSTR | I95: =COUNTIFS(J:J,J95,R:R,R95,S:S,S95,T:T,T95,U:U,U95,V:V,V95) -> 1 | J95: ADHIP B BHANDARY (MINOR) | O95: Y | P95: MR B T BHANDARY | Q95: 1980-07-26 | R95: C '7' , RASHMI | S95: 11, CARMICHAEL ROAD | T95: , | U95: MUMBAI | V95: 400026 | W95: Y | X95: 10440 | Y95: 1997-10-10 | Z95: 1996-10-09 | AA95: 739.74 | AB95: 130.5 | AC95: -2430.24 | AD95: 1998-10-11 | AE95: 12000 | AF95: 1 | AG95: 512 | AI95: 1 | AJ95: 3B0029 | AK95: B V SHETTY | AL95: 12 | AM95: 1 | AN95: M | AO95: 2 | AP95: 14 | AQ95: 15 | AR95: N | BC95: C '7' , RASHMI | BD95: 11, CARMICHAEL ROAD | BF95: MUMBAI | BG95: 400026 | BH95: N | BI95: N | BK95: 0 | BL95: A | BM95: 1998-04-08 | BN95: 0 | BO95: 0 | BP95: 0 | BQ95: 0 | BS95: ANITHA | BT95: 1998-03-23 | BU95: 2192.4 | BV95: 2000 | BW95: 192.4
A96: 94 | B96: 491 | C96: 9 | D96: 2666694 | E96: CD | G96: 1997-01-20 | H96: SRI | I96: =COUNTIFS(J:J,J96,R:R,R96,S:S,S96,T:T,T96,U:U,U96,V:V,V96) -> 1 | J96: ADICHUNCHANAGIRI VIDYARTI SANG | O96: N | R96: RAVINDRA NAGAR | S96: HASSAN | T96: , | U96: , | V96: 573201 | W96: Y | X96: 64000 | Y96: 1997-01-20 | Z96: 1997-01-20 | AA96: 0 | AB96: 0 | AC96: 0 | AD96: 2002-01-20 | AE96: 134848 | AF96: 1 | AG96: 512 | AI96: 1 | AJ96: 3S0140 | AK96: SHYAMALA SHEKAR (MADRAS) | AL96: 60 | AM96: 0 | AN96: M | AO96: 2 | AP96: 15 | AQ96: 22.14 | AR96: N | BC96: RAVINDRA NAGAR | BD96: HASSAN | BG96: 573201 | BH96: Y | BI96: N | BK96: 0 | BL96: A | BN96: 0 | BO96: 0 | BP96: 0 | BQ96: 0 | BS96: CONVERTION | BT96: 1997-04-10 | BU96: 13440 | BV96: 0 | BW96: 13440
A97: 95 | B97: 492 | C97: 13 | D97: 2181615 | E97: FD | G97: 1998-10-15 | H97: MR | I97: =COUNTIFS(J:J,J97,R:R,R97,S:S,S97,T:T,T97,U:U,U97,V:V,V97) -> 1 | J97: ADIDEVA SHASTRY | K97: MRS | L97: YASHODA C M | O97: N | R97: NAVAMANILA HOUSE | S97: POST PUNCHA | T97: BANTWAL TALUK | U97: D K | V97: 574281 | W97: Y | X97: 9000 | Y97: 1998-10-06 | Z97: 1996-10-04 | AA97: 0 | AB97: 0 | AC97: 0 | AD97: 2000-10-07 | AE97: 11734.2 | AF97: 1 | AG97: 512 | AI97: 2 | AJ97: 3M0034 | AK97: MALATHI BHANDARY (PUTTUR) | AL97: 24 | AM97: 1 | AN97: Q | AO97: 2 | AP97: 15 | AQ97: 15.19 | AR97: N | AS97: 23602102 | BC97: NAVAMANILA HOUSE | BD97: POST PUNCHA | BE97: BANTWAL TALUK | BF97: D K | BG97: 574281 | BH97: N | BI97: N | BK97: 0 | BL97: A | BM97: 1998-10-20 | BN97: 0 | BO97: 0 | BP97: 0 | BQ97: 0 | BS97: MOHAN | BT97: 1998-10-16 | BU97: 1890 | BV97: 0 | BW97: 1890
A98: 96 | B98: 493 | C98: 13 | D98: 2180838 | E98: FD | G98: 1998-07-16 | H98: MR | I98: =COUNTIFS(J:J,J98,R:R,R98,S:S,S98,T:T,T98,U:U,U98,V:V,V98) -> 1 | J98: ADIDEVA SHASTRY C H | K98: MRS | L98: YASHODA C M | O98: N | R98: NAVAMANILA HOUSE | S98: POST PUNCHA | T98: , | U98: D K | V98: 574281 | W98: Y | X98: 6000 | Y98: 1998-07-13 | Z98: 1996-07-11 | AA98: 0 | AB98: 0 | AC98: 0 | AD98: 2000-07-14 | AE98: 7822.8 | AF98: 1 | AG98: 512 | AI98: 2 | AJ98: 3S0035 | AK98: SUJATHA SHETTY | AL98: 24 | AM98: 1 | AN98: Q | AO98: 2 | AP98: 15 | AQ98: 15.19 | AR98: N | AS98: 23602102 | BC98: NAVAMANILA HOUSE | BD98: POST PUNCHA | BF98: D K | BG98: 574281 | BH98: N | BI98: N | BK98: 0 | BL98: A | BM98: 1998-07-21 | BN98: 0 | BO98: 0 | BP98: 0 | BQ98: 0 | BS98: VINOD | BT98: 1998-07-20 | BU98: 1260 | BV98: 0 | BW98: 1260
A99: 97 | B99: 494 | C99: 11 | D99: 2264707 | E99: CD | G99: 1996-08-13 | H99: DR | I99: =COUNTIFS(J:J,J99,R:R,R99,S:S,S99,T:T,T99,U:U,U99,V:V,V99) -> 1 | J99: ADIGA B L N | L99: MRS JAYALAXMI B | O99: N | R99: SHEDIGUDDE | S99: POST BARKUR | T99: UDUPI TALUK | U99: DAKSHINA KANNADA | V99: 576210 | W99: N | X99: 10000 | Y99: 1996-08-13 | Z99: 1996-08-13 | AA99: 0 | AB99: 0 | AC99: 0 | AD99: 1999-08-13 | AE99: 15640 | AF99: 1 | AG99: 512 | AI99: 2 | AJ99: 3P0044 | AK99: PRAVEEN KUMAR SHETTY | AL99: 36 | AM99: 0 | AN99: M | AO99: 2 | AP99: 15 | AQ99: 18.8 | AR99: N | BC99: SHEDIGUDDE | BD99: POST BARKUR | BE99: UDUPI TALUK | BF99: DAKSHINA KANNADA | BG99: 576210 | BH99: Y | BI99: N | BK99: 0 | BL99: A | BN99: 857.92 | BO99: 0 | BP99: 135.72 | BQ99: 0 | BS99: CONVERTION | BT99: 1997-04-10 | BU99: 2100 | BV99: 2000 | BW99: 100
A100: 98 | B100: 495 | C100: 11 | D100: 2271724 | E100: CD | G100: 1997-05-15 | H100: MR | I100: =COUNTIFS(J:J,J100,R:R,R100,S:S,S100,T:T,T100,U:U,U100,V:V,V100) -> 1 | J100: ADIGA B L N | K100: MRS | L100: JAYALAXMI B | O100: N | R100: SHEDIGUDDE | S100: BARKUR | T100: UDUPI TQ | U100: , | V100: 576210 | X100: 10000 | Y100: 1997-05-17 | AA100: 71.3 | AB100: 144.58 | AC100: -3685.88 | AD100: 1999-05-17 | AE100: 13470 | AF100: 1 | AG100: 512 | AI100: 2 | AJ100: 3P0044 | AK100: PRAVEEN KUMAR SHETTY | AL100: 24 | AM100: 0 | AN100: M | AP100: 15 | AQ100: 17.35 | BC100: SHEDIGUDDE | BD100: BARKUR | BE100: UDUPI TQ | BG100: 576210 | BH100: N | BI100: N | BK100: 0 | BL100: A | BM100: 1998-04-08 | BN100: 0 | BO100: 0 | BP100: 0 | BQ100: 0 | BS100: TEST | BT100: 1997-05-30 | BU100: 2100 | BV100: 2000 | BW100: 100
A101: 99 | B101: 496 | C101: 11 | D101: 2272679 | E101: CD | G101: 1997-06-12 | H101: MR | I101: =COUNTIFS(J:J,J101,R:R,R101,S:S,S101,T:T,T101,U:U,U101,V:V,V101) -> 1 | J101: ADIGA B L N | O101: N | R101: BARKUR SHEDIGUDDE | S101: HANEHALLI | T101: MOODUKERI | U101: BARKUR | V101: , | X101: 11000 | Y101: 1997-06-10 | AA101: 118.98 | AB101: 172.33 | AC101: -6495.31 | AD101: 2000-06-10 | AE101: 17204 | AF101: 1 | AG101: 512 | AI101: 1 | AJ101: 3P0044 | AK101: PRAVEEN KUMAR SHETTY | AL101: 36 | AM101: 0 | AN101: M | AP101: 15 | AQ101: 18.8 | BC101: BARKUR SHEDIGUDDE | BD101: HANEHALLI | BE101: MOODUKERI | BF101: BARKUR | BH101: N | BI101: N | BK101: 0 | BL101: A | BM101: 1998-04-08 | BN101: 0 | BO101: 0 | BP101: 0 | BQ101: 0 | BS101: TEST | BT101: 1997-07-01 | BU101: 2310 | BV101: 0 | BW101: 2310
A102: 100 | B102: 497 | C102: 17 | D102: 2290516 | E102: CD | G102: 1999-07-02 | H102: MR | I102: =COUNTIFS(J:J,J102,R:R,R102,S:S,S102,T:T,T102,U:U,U102,V:V,V102) -> 1 | J102: ADIGA K V | K102: MR | L102: KRISHNA ADIGA | O102: N | R102: KOOTADY HOUSE | S102: P.O. KIRIMANJESHWAR | T102: KUNDAPUR TALUK | U102: UDUPI DIST | V102: 576253 | W102: Y | X102: 10000 | Y102: 1999-06-19 | Z102: 1995-06-19 | AA102: 201.62 | AB102: 144.58 | AC102: -3816.21 | AD102: 2001-06-20 | AE102: 13470 | AF102: 1 | AG102: 512 | AI102: 2 | AJ102: 3M0075 | AK102: MANJULA | AL102: 24 | AM102: 1 | AN102: M | AO102: 2 | AP102: 15 | AQ102: 17.35 | AR102: N | BC102: KOOTADY HOUSE | BD102: P.O. KIRIMANJESHWAR | BE102: KUNDAPUR TALUK | BF102: UDUPI DIST | BG102: 576253 | BH102: N | BI102: N | BK102: 0 | BL102: A | BM102: 2000-04-24 | BN102: 0 | BO102: 0 | BP102: 0 | BQ102: 0 | BS102: GEETHA | BT102: 1999-07-02 | BU102: 2100 | BV102: 0 | BW102: 2100
A103: 101 | B103: 498 | C103: 33 | D103: 2290683 | E103: CD | G103: 1999-08-05 | H103: MR | I103: =COUNTIFS(J:J,J103,R:R,R103,S:S,S103,T:T,T103,U:U,U103,V:V,V103) -> 1 | J103: ADINARAYANA GUPTA M K | K103: MRS | L103: BHARATHI K N | O103: N | R103: NO 1295/8, VASAVI NILAYA | S103: 6TH CROSS ROAD | T103: SRIRAMA PURAM | U103: BANGALORE | V103: 560021 | W103: Y | X103: 12000 | Y103: 1999-05-21 | Z103: 1996-05-20 | AA103: 505.07 | AB103: 150 | AC103: -2455.07 | AD103: 2000-05-22 | AE103: 13800 | AF103: 1 | AG103: 512 | AI103: 2 | AJ103: 3D9999 | AK103: DIRECT DEPOSIT | AL103: 12 | AM103: 1 | AN103: M | AO103: 2 | AP103: 14 | AQ103: 15 | AR103: N | BC103: NO 1295/8, VASAVI NILAYA | BD103: 6TH CROSS ROAD | BE103: SRIRAMA PURAM | BF103: BANGALORE | BG103: 560021 | BH103: N | BI103: N | BK103: 0 | BL103: A | BM103: 2000-04-24 | BN103: 0 | BO103: 0 | BP103: 0 | BQ103: 0 | BS103: GEETHA | BT103: 1999-08-05 | BU103: 2520 | BV103: 0 | BW103: 2520
A104: 102 | B104: 499 | C104: 33 | D104: 2284506 | E104: CD | G104: 1998-10-14 | H104: MR | I104: =COUNTIFS(J:J,J104,R:R,R104,S:S,S104,T:T,T104,U:U,U104,V:V,V104) -> 1 | J104: ADINARAYANA GUPTHA M K | O104: N | R104: NO 1295/8 "VASAVI NILAYA " | S104: 6TH CROSS ROAD | T104: SRIRAMPURAM | U104: BANGALORE | V104: 560021 | W104: Y | X104: 15000 | Y104: 1998-10-09 | AA104: 23810.5 | AB104: 216.88 | AC104: -29232.37 | AD104: 2000-10-10 | AE104: 20205 | AF104: 1 | AG104: 512 | AI104: 1 | AJ104: 3D9999 | AK104: DIRECT DEPOSIT | AL104: 24 | AM104: 1 | AN104: M | AO104: 2 | AP104: 15 | AQ104: 17.35 | BC104: NO 1295/8 "VASAVI NILAYA " | BD104: 6TH CROSS ROAD | BE104: SRIRAMPURAM | BF104: BANGALORE | BG104: 560021 | BH104: N | BI104: N | BK104: 0 | BL104: A | BM104: 1999-05-11 | BN104: 0 | BO104: 0 | BP104: 0 | BQ104: 0 | BS104: RADHESH | BT104: 1998-10-14 | BU104: 3150 | BV104: 0 | BW104: 3150
A105: 103 | B105: 500 | C105: 2 | D105: 2655277 | E105: CD | G105: 1996-02-29 | H105: MR | I105: =COUNTIFS(J:J,J105,R:R,R105,S:S,S105,T:T,T105,U:U,U105,V:V,V105) -> 1 | J105: ADIP K SHETTY | L105: MRS KALPANA K SHETTY | O105: N | R105: 1,DINATH TERRACE | S105: L J ROAD | T105: MAHIM | U105: BOMBAY | V105: 400016 | W105: N | X105: 8000 | Y105: 1996-02-29 | Z105: 1996-02-29 | AA105: 0 | AB105: 0 | AC105: 0 | AD105: 2001-02-28 | AE105: 16856 | AF105: 1 | AG105: 512 | AI105: 2 | AL105: 60 | AM105: 0 | AN105: M | AO105: 2 | AP105: 15 | AQ105: 22.14 | AR105: N | BC105: 1,DINATH TERRACE | BD105: L J ROAD | BE105: MAHIM | BF105: BOMBAY | BG105: 400016 | BH105: Y | BI105: N | BK105: 0 | BL105: A | BN105: 0 | BO105: 0 | BP105: 0 | BQ105: 0 | BS105: CONVERTION | BT105: 1997-04-10 | BU105: 1680 | BV105: 0 | BW105: 1680
A106: 104 | B106: 501 | C106: 11 | D106: 2285217 | E106: CD | G106: 1998-11-18 | H106: MR | I106: =COUNTIFS(J:J,J106,R:R,R106,S:S,S106,T:T,T106,U:U,U106,V:V,V106) -> 1 | J106: ADITHYA S SHETTY | K106: MRS | L106: JYOTHI S SHETTY | O106: N | R106: ' RAMPRASAD ' | S106: ONTHI BETTU | T106: HIRIADKA POST | U106: UDUPI DIST | V106: 576113 | W106: Y | X106: 16000 | Y106: 1998-11-11 | Z106: 1996-11-09 | AA106: 131.51 | AB106: 200 | AC106: -2731.51 | AD106: 1999-11-12 | AE106: 18400 | AF106: 1 | AG106: 512 | AI106: 2 | AJ106: 3R0069 | AK106: ROSHAN SHETTY A | AL106: 12 | AM106: 1 | AN106: M | AO106: 2 | AP106: 14 | AQ106: 15 | AR106: N | BC106: ' RAMPRASAD ' | BD106: ONTHI BETTU | BE106: HIRIADKA POST | BF106: UDUPI DIST | BG106: 576113 | BH106: N | BI106: N | BK106: 0 | BL106: A | BM106: 1999-05-11 | BN106: 0 | BO106: 0 | BP106: 0 | BQ106: 0 | BS106: RADHESH | BT106: 1998-11-18 | BU106: 3360 | BV106: 0 | BW106: 3360
A107: 105 | B107: 502 | C107: 3 | D107: 2672153 | E107: CD | G107: 1997-11-21 | H107: MS | I107: =COUNTIFS(J:J,J107,R:R,R107,S:S,S107,T:T,T107,U:U,U107,V:V,V107) -> 1 | J107: ADITI HOMBALI (M) | K107: MRS | L107: SAHANA HOMBALI | M107: MR | N107: SATISH HOMBALI | O107: Y | P107: MRS SAHANA HOMBALI | Q107: 1987-02-12 | R107: OPP KALYAN MANTAP | S107: DESHPANDE NAGAR | T107: , | U107: HUBLI | V107: 580029 | W107: Y | X107: 13000 | Y107: 1997-11-14 | Z107: 1995-11-14 | AA107: 105.05 | AB107: 187.96 | AC107: -4804.01 | AD107: 1999-11-15 | AE107: 17511 | AF107: 1 | AG107: 512 | AI107: 3 | AJ107: 3B0024 | AK107: BHARATHI G HEGDE | AL107: 24 | AM107: 1 | AN107: M | AO107: 2 | AP107: 15 | AQ107: 17.35 | AR107: N | BC107: OPP KALYAN MANTAP | BD107: DESHPANDE NAGAR | BF107: HUBLI | BG107: 580029 | BH107: N | BI107: N | BK107: 0 | BL107: A | BM107: 1998-04-08 | BN107: 0 | BO107: 0 | BP107: 0 | BQ107: 0 | BS107: VINOD | BT107: 1997-11-22 | BU107: 2730 | BV107: 0 | BW107: 2730
A108: 106 | B108: 503 | C108: 4 | D108: 2173000 | E108: FD | G108: 1997-11-11 | H108: MS | I108: =COUNTIFS(J:J,J108,R:R,R108,S:S,S108,T:T,T108,U:U,U108,V:V,V108) -> 1 | J108: ADITI N ASTEKAR | K108: MRS | L108: KSHAMA N ASHTEKAR | O108: N | R108: 14 KHADE BAZAR | S108: SHAHAPUR | T108: , | U108: BELGAUM | V108: 590003 | X108: 15000 | Y108: 1997-11-10 | AA108: 0 | AB108: 0 | AC108: 0 | AD108: 1999-11-11 | AE108: 19830 | AF108: 1 | AG108: 512 | AI108: 2 | AJ108: 3N0010 | AK108: NITIN RAMACHANDRA | AL108: 24 | AM108: 1 | AN108: Y | AO108: 2 | AP108: 15 | AQ108: 16.1 | AR108: N | AS108: 23602102 | BC108: 14 KHADE BAZAR | BD108: SHAHAPUR | BF108: BELGAUM | BG108: 590003 | BH108: N | BI108: N | BK108: 0 | BL108: A | BM108: 1997-11-10 | BN108: 0 | BO108: 0 | BP108: 0 | BQ108: 0 | BS108: VINOD | BT108: 1997-11-13 | BU108: 3150 | BV108: 2000 | BW108: 1150
A109: 107 | B109: 504 | C109: 3 | D109: 2272124 | E109: CD | G109: 1997-06-02 | H109: MISS | I109: =COUNTIFS(J:J,J109,R:R,R109,S:S,S109,T:T,T109,U:U,U109,V:V,V109) -> 1 | J109: ADITI S HOMBALI (MINOR) | K109: MR | L109: SATISH B HOMBALI | O109: Y | P109: M/G MRS SAHANA S HOMBALI | Q109: 1996-05-08 | R109: OPP: KALYAN MANTAP | S109: DESHPANDE NAGAR | T109: HUBLI | U109: HUBLI | V109: 580029 | W109: Y | X109: 14000 | Y109: 1997-05-30 | Z109: 1995-05-30 | AA109: 209.07 | AB109: 202.42 | AC109: -5269.49 | AD109: 1999-05-30 | AE109: 18858 | AF109: 1 | AG109: 512 | AI109: 2 | AJ109: 3B0024 | AK109: BHARATHI G HEGDE | AL109: 24 | AM109: 0 | AN109: M | AO109: 2 | AP109: 15 | AQ109: 17.35 | AR109: N | BC109: OPP: KALYAN MANTAP | BD109: DESHPANDE NAGAR | BE109: HUBLI | BF109: HUBLI | BG109: 580029 | BH109: N | BI109: N | BK109: 0 | BL109: A | BM109: 1998-04-08 | BN109: 0 | BO109: 0 | BP109: 0 | BQ109: 0 | BS109: TEST | BT109: 1997-06-12 | BU109: 2940 | BV109: 0 | BW109: 2940
A110: 108 | B110: 505 | C110: 3 | D110: 2272534 | E110: CD | G110: 1997-06-09 | H110: MISS | I110: =COUNTIFS(J:J,J110,R:R,R110,S:S,S110,T:T,T110,U:U,U110,V:V,V110) -> 1 | J110: ADITI S HOMBALI (MINOR) | K110: MRS | L110: SAHANA S HOMBALI | O110: Y | P110: MR SATISH B HOMBALI | Q110: 1986-05-08 | R110: OPP:KALYAN MANTAP | S110: DESHPANDE NAGAR | T110: , | U110: HUBLI | V110: 580029 | X110: 14000 | Y110: 1997-05-30 | AA110: 209.07 | AB110: 202.42 | AC110: -5269.49 | AD110: 1999-05-30 | AE110: 18858 | AF110: 1 | AG110: 512 | AI110: 2 | AJ110: 3B0024 | AK110: BHARATHI G HEGDE | AL110: 24 | AM110: 0 | AN110: M | AP110: 15 | AQ110: 17.35 | BC110: OPP:KALYAN MANTAP | BD110: DESHPANDE NAGAR | BF110: HUBLI | BG110: 580029 | BH110: N | BI110: N | BK110: 0 | BL110: A | BM110: 1998-04-08 | BN110: 0 | BO110: 0 | BP110: 0 | BQ110: 0 | BS110: TEST | BT110: 1997-06-24 | BU110: 2940 | BV110: 2000 | BW110: 940
A111: 109 | B111: 506 | C111: 4 | D111: 2174184 | E111: FD | G111: 1998-02-20 | H111: MS | I111: =COUNTIFS(J:J,J111,R:R,R111,S:S,S111,T:T,T111,U:U,U111,V:V,V111) -> 1 | J111: ADITI UDAY BANDEKAR | K111: MRS | L111: UMA UDAY BANDEKAR | O111: N | R111: 403 MANASAROVAR APT | S111: MARATHA COLONY | T111: TILAKWADI | U111: BELGAUM | V111: 590006 | W111: Y | X111: 15000 | Y111: 1998-02-15 | Z111: 1997-02-14 | AA111: 0 | AB111: 0 | AC111: 0 | AD111: 2000-02-16 | AE111: 19830 | AF111: 1 | AG111: 512 | AI111: 2 | AJ111: 3S0244 | AK111: SHRIMA SHETTY | AL111: 24 | AM111: 1 | AN111: Y | AO111: 9 | AP111: 15 | AQ111: 16.1 | AR111: Y | AS111: 23602102 | AU111: MRS UMA UDAY BANDEKAR | BC111: 403 MANASAROVAR APT | BD111: MARATHA COLONY | BE111: TILAKWADI | BF111: BELGAUM | BG111: 590006 | BH111: N | BI111: N | BK111: 0 | BL111: A | BM111: 1998-02-23 | BN111: 0 | BO111: 0 | BP111: 0 | BQ111: 0 | BS111: VINOD | BT111: 1998-02-21 | BU111: 3150 | BV111: 0 | BW111: 3150
A112: 110 | B112: 507 | C112: 6 | D112: 2251608 | E112: CD | G112: 1995-06-09 | H112: MSTR | I112: =COUNTIFS(J:J,J112,R:R,R112,S:S,S112,T:T,T112,U:U,U112,V:V,V112) -> 1 | J112: ADITYA (MINOR) | O112: Y | P112: M/G MR SHET K K R | R112: S/O K DINESH SHET | S112: B.E.M. HIGH SCHOOL ROAD | T112: MANGALORE | U112: MANGALORE | V112: , | W112: N | X112: 1000 | Y112: 1995-06-09 | Z112: 1995-06-09 | AA112: 0 | AB112: 0 | AC112: 0 | AD112: 1998-06-09 | AE112: 1518 | AF112: 1 | AG112: 512 | AI112: 1 | AJ112: 3P0024 | AK112: PRADEEP KUMAR (MANGALORE) | AL112: 36 | AM112: 0 | AN112: M | AO112: 2 | AP112: 14 | AQ112: 17.27 | AR112: N | BC112: S/O K DINESH SHET | BD112: B.E.M. HIGH SCHOOL ROAD | BE112: MANGALORE | BF112: MANGALORE | BH112: Y | BI112: N | BK112: 0 | BL112: A | BN112: 271.61 | BO112: 0 | BP112: 14.83 | BQ112: 0 | BS112: CONVERTION | BT112: 1997-04-10 | BU112: 210 | BV112: 0 | BW112: 210
A113: 111 | B113: 508 | C113: 6 | D113: 2370673 | E113: CC | G113: 1998-03-20 | H113: MR | I113: =COUNTIFS(J:J,J113,R:R,R113,S:S,S113,T:T,T113,U:U,U113,V:V,V113) -> 1 | J113: ADITYA B BHANDARY | O113: N | R113: 'C' 7, RASHMI | S113: 11, CARMICHAEL ROAD | T113: , | U113: MUMBAI | V113: 400026 | W113: Y | X113: 10440 | Y113: 1997-10-10 | Z113: 1996-10-09 | AA113: 739.74 | AB113: 130.5 | AC113: -2430.24 | AD113: 1998-10-11 | AE113: 12000 | AF113: 1 | AG113: 512 | AI113: 1 | AJ113: 3B0029 | AK113: B V SHETTY | AL113: 12 | AM113: 1 | AN113: M | AO113: 2 | AP113: 14 | AQ113: 15 | AR113: N | BC113: 'C' 7, RASHMI | BD113: 11, CARMICHAEL ROAD | BF113: MUMBAI | BG113: 400026 | BH113: N | BI113: N | BK113: 0 | BL113: A | BM113: 1998-04-08 | BN113: 0 | BO113: 0 | BP113: 0 | BQ113: 0 | BS113: ANITHA | BT113: 1998-03-23 | BU113: 2192.4 | BV113: 0 | BW113: 2192.4
A114: 112 | B114: 509 | C114: 33 | D114: 2285568 | E114: CD | G114: 1998-12-07 | H114: MSTR | I114: =COUNTIFS(J:J,J114,R:R,R114,S:S,S114,T:T,T114,U:U,U114,V:V,V114) -> 1 | J114: ADITYA GAUTAM UBHAYAKAR | K114: MRS | L114: SHRUTI GAUTAM UBHAYAKAR | M114: MR | N114: GAUTAM U R | O114: Y | P114: MRS SHRUTI GAUTAM UBHAYAKR | Q114: 1901-01-01 | R114: # 65/V | S114: R&DE(E) COLONY | T114: DIGHI | U114: PUNE | V114: 411015 | W114: Y | X114: 30000 | Y114: 1998-11-23 | Z114: 1996-11-21 | AA114: 593.62 | AB114: 470 | AC114: -17983.62 | AD114: 2001-11-23 | AE114: 46920 | AF114: 1 | AG114: 512 | AI114: 3 | AJ114: 3R0117 | AK114: ROBERT | AL114: 36 | AM114: 0 | AN114: M | AO114: 2 | AP114: 15 | AQ114: 18.8 | AR114: N | AS114: 23602102 | BC114: C/O GAUTAM U R | BD114: D 4/3 DR NO TOWNSHIP | BE114: C V RAMAN NAGAR | BF114: BANGALORE | BG114: 560093 | BH114: Y | BI114: N | BK114: 0 | BL114: A | BM114: 1999-05-11 | BN114: 0 | BO114: 0 | BP114: 0 | BQ114: 0 | BS114: INDIRA | BT114: 2001-02-07 | BU114: 6300 | BV114: 0 | BW114: 6300
A115: 113 | B115: 510 | C115: 33 | D115: 2666120 | E115: CD | G115: 1997-01-07 | H115: MR | I115: =COUNTIFS(J:J,J115,R:R,R115,S:S,S115,T:T,T115,U:U,U115,V:V,V115) -> 1 | J115: ADITYA KUMAR | L115: MS RAJENDRA KUMAR H N | O115: N | R115: 442/A 15TH MAIN 1ST BLOCK | S115: III STAGE | T115: BASAVESHWARA NAGAR | U115: BANGALORE | V115: 560079 | W115: N | X115: 6000 | Y115: 1997-01-07 | Z115: 1997-01-07 | AA115: 0 | AB115: 0 | AC115: 0 | AD115: 2002-01-07 | AE115: 12642 | AF115: 1 | AG115: 512 | AI115: 2 | AJ115: 3S0298 | AK115: SHIVA SHANKAR P K | AL115: 60 | AM115: 0 | AN115: M | AO115: 2 | AP115: 15 | AQ115: 22.14 | AR115: N | BC115: 442/A 15TH MAIN 1ST BLOCK | BD115: III STAGE | BE115: BASAVESHWARA NAGAR | BF115: BANGALORE | BG115: 560079 | BH115: Y | BI115: N | BK115: 0 | BL115: A | BN115: 0 | BO115: 0 | BP115: 0 | BQ115: 0 | BS115: CONVERTION | BT115: 1997-04-10 | BU115: 1260 | BV115: 0 | BW115: 1260
A116: 114 | B116: 511 | C116: 33 | D116: 2675352 | E116: CD | G116: 1998-03-23 | H116: MSTR | I116: =COUNTIFS(J:J,J116,R:R,R116,S:S,S116,T:T,T116,U:U,U116,V:V,V116) -> 1 | J116: ADITYA PAI M (MINOR) | O116: Y | P116: MR ANANDARAYA PAI M | R116: CANARA GOODS TRANSPORT | S116: 1/4 OPP: SJP POLICE STATION | T116: KUMBARGUNDI ROAD | U116: KALASIPALYAM NEW EXT | V116: 560002 | W116: Y | X116: 22000 | Y116: 1997-11-16 | Z116: 1996-11-15 | AA116: 1416.12 | AB116: 318.08 | AC116: -9368.21 | AD116: 1999-11-17 | AE116: 29634 | AF116: 1 | AG116: 512 | AI116: 1 | AJ116: 3R0117 | AK116: ROBERT | AL116: 24 | AM116: 1 | AN116: M | AO116: 2 | AP116: 15 | AQ116: 17.35 | AR116: N | BC116: CANARA GOODS TRANSPORT | BD116: 1/4 OPP: SJP POLICE STATION | BE116: KUMBARGUNDI ROAD | BF116: KALASIPALYAM NEW EXT | BG116: 560002 | BH116: Y | BI116: N | BK116: 0 | BL116: A | BM116: 1998-04-08 | BN116: 0 | BO116: 0 | BP116: 0 | BQ116: 0 | BS116: SARASWATHI | BT116: 1998-03-30 | BU116: 4620 | BV116: 4000 | BW116: 620
A117: 115 | B117: 512 | C117: 20 | D117: 2254593 | E117: CD | G117: 1995-09-16 | H117: MSTR | I117: =COUNTIFS(J:J,J117,R:R,R117,S:S,S117,T:T,T117,U:U,U117,V:V,V117) -> 1 | J117: ADITYA R RAI | O117: Y | P117: M/G MISS VIDYAMANI B S | R117: S/O RAMA MOHANA RAI M K | S117: THE PUTTUR CO-OP TOWN BANK LTD | T117: PUTTUR (DK) | U117: PUTTUR (DK) | V117: 574201 | W117: N | X117: 10000 | Y117: 1995-09-16 | Z117: 1995-09-16 | AA117: 0 | AB117: 0 | AC117: 0 | AD117: 2000-09-16 | AE117: 20060 | AF117: 1 | AG117: 512 | AI117: 1 | AJ117: 3S0205 | AK117: SHREE KRISHNA INVESTMENT | AL117: 60 | AM117: 0 | AN117: M | AO117: 2 | AP117: 14 | AQ117: 20.12 | AR117: N | BC117: S/O RAMA MOHANA RAI M K | BD117: THE PUTTUR CO-OP TOWN BANK LTD | BE117: PUTTUR (DK) | BF117: PUTTUR (DK) | BG117: 574201 | BH117: Y | BI117: N | BK117: 0 | BL117: A | BN117: 0 | BO117: 0 | BP117: 0 | BQ117: 0 | BS117: CONVERTION | BT117: 1997-04-10 | BU117: 2100 | BV117: 0 | BW117: 2100
A118: 116 | B118: 513 | C118: 9 | D118: 2286792 | E118: CD | G118: 1999-03-23 | H118: MSTR | I118: =COUNTIFS(J:J,J118,R:R,R118,S:S,S118,T:T,T118,U:U,U118,V:V,V118) -> 1 | J118: ADITYA YAJI | K118: MR | L118: PRAKASH S YAJI | O118: Y | P118: MR PRAKASH S YAJI | Q118: 1994-03-25 | R118: LIG 303, 21ST CROSS | S118: KUVEMPUNAGAR | T118: , | U118: HASSAN | V118: 573201 | X118: 15000 | Y118: 1999-03-22 | AA118: 71.3 | AB118: 216.88 | AC118: -5493.18 | AD118: 2001-03-23 | AE118: 20205 | AF118: 1 | AG118: 512 | AI118: 2 | AJ118: 3S0140 | AK118: SHYAMALA SHEKAR (MADRAS) | AL118: 24 | AM118: 1 | AN118: M | AO118: 2 | AP118: 15 | AQ118: 17.35 | BC118: LIG 303, 21ST CROSS | BD118: KUVEMPUNAGAR | BF118: HASSAN | BG118: 573201 | BH118: N | BI118: N | BK118: 0 | BL118: A | BM118: 1999-05-11 | BN118: 0 | BO118: 0 | BP118: 0 | BQ118: 0 | BS118: GEETHA | BT118: 1999-03-24 | BU118: 3150 | BV118: 0 | BW118: 3150
A119: 117 | B119: 514 | C119: 3 | D119: 2281779 | E119: CD | G119: 1998-07-04 | H119: MR | I119: =COUNTIFS(J:J,J119,R:R,R119,S:S,S119,T:T,T119,U:U,U119,V:V,V119) -> 1 | J119: ADIVEPPA B BADNI | O119: N | R119: 189 KESHWAPUR | S119: NEAR MARUTHI TEMPLE | T119: , | U119: HUBLI | V119: 580023 | W119: Y | X119: 44000 | Y119: 1998-07-02 | Z119: 1995-07-02 | AA119: 542.47 | AB119: 550 | AC119: -7692.47 | AD119: 1999-07-03 | AE119: 50600 | AF119: 1 | AG119: 512 | AI119: 1 | AJ119: 3R0080 | AK119: RAGHAVENDRA T. TAVANAPPAN | AL119: 12 | AM119: 1 | AN119: M | AO119: 2 | AP119: 14 | AQ119: 15 | AR119: N | BC119: 189 KESHWAPUR | BD119: NEAR MARUTHI TEMPLE | BF119: HUBLI | BG119: 580023 | BH119: Y | BI119: N | BK119: 0 | BL119: A | BM119: 1999-05-11 | BN119: 0 | BO119: 0 | BP119: 0 | BQ119: 0 | BS119: VINOD | BT119: 1998-07-06 | BU119: 9240 | BV119: 0 | BW119: 9240
A120: 118 | B120: 515 | C120: 6 | D120: 2180750 | E120: FD | G120: 1998-07-10 | H120: MR | I120: =COUNTIFS(J:J,J120,R:R,R120,S:S,S120,T:T,T120,U:U,U120,V:V,V120) -> 1 | J120: ADRIAN FERNANDES | K120: MRS | L120: JUDITH FERNANDES | O120: N | R120: LALBAGH HOUSE | S120: LALBAGH | T120: , | U120: MANGALORE | V120: 575003 | W120: Y | X120: 15000 | Y120: 1998-07-10 | Z120: 1996-07-08 | AA120: 0 | AB120: 0 | AC120: 0 | AD120: 1999-07-11 | AE120: 17124 | AF120: 1 | AG120: 512 | AI120: 2 | AJ120: 3R0072 | AK120: RAJEEV SHETTY | AL120: 12 | AM120: 1 | AN120: Q | AO120: 2 | AP120: 14 | AQ120: 14.16 | AR120: N | AS120: 23602102 | BC120: LALBAGH HOUSE | BD120: LALBAGH | BF120: MANGALORE | BG120: 575003 | BH120: N | BI120: N | BK120: 0 | BL120: A | BM120: 1998-07-14 | BN120: 0 | BO120: 0 | BP120: 0 | BQ120: 0 | BS120: VINOD | BT120: 1998-07-11 | BU120: 3150 | BV120: 3000 | BW120: 150
A121: 119 | B121: 516 | C121: 4 | D121: 2174206 | E121: FD | G121: 1998-02-24 | H121: MR | I121: =COUNTIFS(J:J,J121,R:R,R121,S:S,S121,T:T,T121,U:U,U121,V:V,V121) -> 1 | J121: ADRIAN MARSHAL PAUL | K121: MR | L121: ANIL GLADSTONE PAUL | M121: MR | N121: SUNIL CLINTON PAUL | O121: N | R121: 15/16 GOJE BLDG | S121: INDEPENDENCE ROAD | T121: CAMP | U121: BELGAUM | V121: 590001 | W121: Y | X121: 16000 | Y121: 1998-02-20 | Z121: 1997-02-19 | AA121: 0 | AB121: 0 | AC121: 0 | AD121: 2000-02-21 | AE121: 20800 | AF121: 1 | AG121: 512 | AI121: 3 | AJ121: 3S0244 | AK121: SHRIMA SHETTY | AL121: 24 | AM121: 1 | AN121: M | AO121: 2 | AP121: 15 | AQ121: 15 | AR121: N | AS121: 23602102 | BC121: 15/16 GOJE BLDG | BD121: INDEPENDENCE ROAD | BE121: CAMP | BF121: BELGAUM | BG121: 590001 | BH121: N | BI121: N | BK121: 0 | BL121: A | BM121: 1998-03-02 | BN121: 0 | BO121: 0 | BP121: 0 | BQ121: 0 | BS121: VINOD | BT121: 1998-02-25 | BU121: 3360 | BV121: 0 | BW121: 3360
A122: 120 | B122: 517 | C122: 29 | D122: 2242295 | E122: CD | G122: 1994-08-10 | H122: MISS | I122: =COUNTIFS(J:J,J122,R:R,R122,S:S,S122,T:T,T122,U:U,U122,V:V,V122) -> 1 | J122: ADVAITH ARVIND MANE (MINOR) | O122: Y | P122: M/G MRS AVLOKITA ARVIND MANE | R122: RADIANT TERRACES | S122: PLOT NO 8 GR. FLOOR | T122: NEAR RAMTEKDI | U122: PUNE | V122: 411013 | W122: N | X122: 10000 | Y122: 1994-08-10 | Z122: 1994-08-10 | AA122: 0 | AB122: 0 | AC122: 0 | AD122: 1999-08-10 | AE122: 20060 | AF122: 1 | AG122: 512 | AI122: 1 | AL122: 60 | AM122: 0 | AN122: M | AO122: 2 | AP122: 14 | AQ122: 20.12 | AR122: N | BC122: RADIANT TERRACES | BD122: PLOT NO 8 GR. FLOOR | BE122: NEAR RAMTEKDI | BF122: PUNE | BG122: 411013 | BH122: Y | BI122: N | BK122: 0 | BL122: A | BN122: 4281.3 | BO122: 0 | BP122: 166.61 | BQ122: 0 | BS122: CONVERTION | BT122: 1997-04-10 | BU122: 2100 | BV122: 2000 | BW122: 100
A123: 121 | B123: 518 | C123: 15 | D123: 2672682 | E123: CD | G123: 1997-12-05 | H123: MR | I123: =COUNTIFS(J:J,J123,R:R,R123,S:S,S123,T:T,T123,U:U,U123,V:V,V123) -> 1 | J123: ADWAIDH RAMAN | O123: N | R123: RAJITHA VILLA | S123: ROAD NO 6 | T123: CHEMBUR | U123: BOMBAY | V123: , | W123: Y | X123: 23000 | Y123: 1996-02-15 | Z123: 1995-02-14 | AA123: 7493.58 | AB123: 332.54 | AC123: -15807.12 | AD123: 1998-02-16 | AE123: 30981 | AF123: 1 | AG123: 512 | AI123: 1 | AJ123: 3P0034 | AK123: PRASEETHA SUNIL T D (MRS. | AL123: 24 | AM123: 1 | AN123: M | AO123: 2 | AP123: 15 | AQ123: 17.35 | AR123: N | BC123: RAJITHA VILLA | BD123: ROAD NO 6 | BE123: CHEMBUR | BF123: BOMBAY | BH123: Y | BI123: N | BK123: 0 | BL123: A | BN123: 0 | BO123: 0 | BP123: 0 | BQ123: 0 | BS123: TIGER | BT123: 1997-12-08 | BU123: 4830 | BV123: 0 | BW123: 4830
A124: 122 | B124: 519 | C124: 6 | D124: 2380258 | E124: CC | G124: 1998-08-13 | H124: DR | I124: =COUNTIFS(J:J,J124,R:R,R124,S:S,S124,T:T,T124,U:U,U124,V:V,V124) -> 1 | J124: ADYANTHAYA N V | O124: N | R124: 41,EVEREST APTS | S124: MOUNT PLEASANT ROAD | T124: MALABAR HILL | U124: MUMBAI | V124: 400026 | W124: Y | X124: 19140 | Y124: 1998-06-06 | Z124: 1996-06-04 | AA124: 679.73 | AB124: 239.25 | AC124: -3778.98 | AD124: 1999-06-07 | AE124: 22000 | AF124: 1 | AG124: 512 | AI124: 1 | AJ124: 3B0029 | AK124: B V SHETTY | AL124: 12 | AM124: 1 | AN124: M | AO124: 2 | AP124: 14 | AQ124: 15 | AR124: N | BC124: 41,EVEREST APTS | BD124: MOUNT PLEASANT ROAD | BE124: MALABAR HILL | BF124: MUMBAI | BG124: 400026 | BH124: N | BI124: Y | BK124: 0 | BL124: A | BM124: 1999-05-11 | BN124: 0 | BO124: 0 | BP124: 0 | BQ124: 0 | BS124: ANITHA | BT124: 1998-08-14 | BU124: 4019.4 | BV124: 0 | BW124: 4019.4
A125: 123 | B125: 520 | C125: 11 | D125: 2282846 | E125: CD | G125: 1998-08-13 | H125: MR | I125: =COUNTIFS(J:J,J125,R:R,R125,S:S,S125,T:T,T125,U:U,U125,V:V,V125) -> 1 | J125: AFWAN | K125: MR | L125: MAKBUL HAYATH | O125: N | R125: 1-130 A | S125: OPP:POLICE QUARTERS | T125: DODDANNAGUDDE | U125: UDUPI | V125: , | W125: Y | X125: 15000 | Y125: 1998-08-08 | AA125: 171.12 | AB125: 216.88 | AC125: -5593 | AD125: 2000-08-09 | AE125: 20205 | AF125: 1 | AG125: 512 | AI125: 2 | AJ125: 3Y0007 | AK125: YESHODA P SHETTY | AL125: 24 | AM125: 1 | AN125: M | AO125: 2 | AP125: 15 | AQ125: 17.35 | BC125: 1-130 A | BD125: OPP:POLICE QUARTERS | BE125: DODDANNAGUDDE | BF125: UDUPI | BH125: N | BI125: N | BK125: 0 | BL125: A | BM125: 1999-05-11 | BN125: 0 | BO125: 0 | BP125: 0 | BQ125: 0 | BS125: RADHESH | BT125: 1998-08-14 | BU125: 3150 | BV125: 0 | BW125: 3150
A126: 124 | B126: 521 | C126: 7 | D126: 2260372 | E126: CD | G126: 1996-04-12 | H126: MRS | I126: =COUNTIFS(J:J,J126,R:R,R126,S:S,S126,T:T,T126,U:U,U126,V:V,V126) -> 1 | J126: AFZA MAQBOOL | O126: N | R126: 22-7,KHALEEL MANZIL | S126: DASWAL | T126: MADIKERI | U126: KODAGU | V126: 571201 | W126: N | X126: 12000 | Y126: 1996-04-12 | Z126: 1996-04-12 | AA126: 0 | AB126: 0 | AC126: 0 | AD126: 1999-04-12 | AE126: 18768 | AF126: 1 | AG126: 512 | AI126: 1 | AJ126: 3M0085 | AK126: MAHABALESHWARA SHARMA P G | AL126: 36 | AM126: 0 | AN126: M | AO126: 2 | AP126: 15 | AQ126: 18.8 | AR126: N | BC126: 22-7,KHALEEL MANZIL | BD126: DASWAL | BE126: MADIKERI | BF126: KODAGU | BG126: 571201 | BH126: Y | BI126: N | BK126: 0 | BL126: A | BN126: 1693.29 | BO126: 0 | BP126: 171.16 | BQ126: 0 | BS126: CONVERTION | BT126: 1997-04-10 | BU126: 2520 | BV126: 2000 | BW126: 520
A127: 125 | B127: 522 | C127: 20 | D127: 2280744 | E127: CD | G127: 1998-05-20 | H127: MR | I127: =COUNTIFS(J:J,J127,R:R,R127,S:S,S127,T:T,T127,U:U,U127,V:V,V127) -> 1 | J127: AFZAL HUSSAIN | K127: MRS | L127: TAHERA BEGAUM | O127: N | R127: ILAHI MANZIL 4TH MAIN | S127: 3RD CROSS VINOBANAGAR | T127: , | U127: DAVANGERE | V127: , | W127: Y | X127: 16000 | Y127: 1997-10-20 | Z127: 1996-10-19 | AA127: 1469.04 | AB127: 200 | AC127: -4069.04 | AD127: 1998-10-21 | AE127: 18400 | AF127: 1 | AG127: 512 | AI127: 2 | AJ127: 3D9999 | AK127: DIRECT DEPOSIT | AL127: 12 | AM127: 1 | AN127: M | AO127: 2 | AP127: 14 | AQ127: 15 | AR127: N | BC127: ILAHI MANZIL 4TH MAIN | BD127: 3RD CROSS VINOBANAGAR | BF127: DAVANGERE | BH127: N | BI127: N | BK127: 0 | BL127: A | BN127: 0 | BO127: 0 | BP127: 0 | BQ127: 0 | BS127: RADHESH | BT127: 1998-05-21 | BU127: 3360 | BV127: 2000 | BW127: 1360
A128: 126 | B128: 523 | C128: 16 | D128: 2280900 | E128: CD | G128: 1998-05-28 | H128: MRS | I128: =COUNTIFS(J:J,J128,R:R,R128,S:S,S128,T:T,T128,U:U,U128,V:V,V128) -> 1 | J128: AGNES D'SOUZA | K128: MR | L128: PETER D'SOUZA | O128: N | R128: 'SHARLET VILLA' | S128: KATTINGERI POST | T128: VIA MOODUBELLE | U128: UDUPI DIST. | V128: , | W128: Y | X128: 13000 | Y128: 1998-05-27 | Z128: 1995-05-27 | AA128: 30.9 | AB128: 187.96 | AC128: -4729.86 | AD128: 2000-05-28 | AE128: 17511 | AF128: 1 | AG128: 512 | AI128: 2 | AJ128: 3P0057 | AK128: PREMA D SOUZA | AL128: 24 | AM128: 1 | AN128: M | AO128: 2 | AP128: 15 | AQ128: 17.35 | AR128: N | BC128: 'SHARLET VILLA' | BD128: KATTINGERI POST | BE128: VIA MOODUBELLE | BF128: UDUPI DIST. | BH128: N | BI128: N | BK128: 0 | BL128: A | BM128: 1999-05-11 | BN128: 0 | BO128: 0 | BP128: 0 | BQ128: 0 | BS128: ANITHA | BT128: 1998-05-29 | BU128: 2730 | BV128: 0 | BW128: 2730
A129: 127 | B129: 524 | C129: 25 | D129: 2290899 | E129: CD | G129: 1999-09-10 | H129: MRS | I129: =COUNTIFS(J:J,J129,R:R,R129,S:S,S129,T:T,T129,U:U,U129,V:V,V129) -> 1 | J129: AGNES VISWANATH | O129: N | R129: DIPTHI | S129: 27/805 KUTHIRAVATTAM | T129: CALICUT | U129: KERALA STATE | V129: 673016 | W129: Y | X129: 15000 | Y129: 1999-09-10 | Z129: 1996-09-09 | AA129: 149.73 | AB129: 216.88 | AC129: -5571.61 | AD129: 2001-09-11 | AE129: 20205 | AF129: 1 | AG129: 512 | AI129: 1 | AJ129: 3B0037 | AK129: BALACHANDRAN NAIR | AL129: 24 | AM129: 1 | AN129: M | AO129: 2 | AP129: 15 | AQ129: 17.35 | AR129: N | BC129: DIPTHI | BD129: 27/805 KUTHIRAVATTAM | BE129: CALICUT | BF129: KERALA STATE | BG129: 673016 | BH129: N | BI129: N | BK129: 0 | BL129: A | BM129: 2000-04-24 | BN129: 0 | BO129: 0 | BP129: 0 | BQ129: 0 | BS129: SARASWATHI | BT129: 1999-09-14 | BU129: 3150 | BV129: 0 | BW129: 3150
A130: 128 | B130: 525 | C130: 3 | D130: 2675105 | E130: CD | G130: 1998-03-09 | H130: MISS | I130: =COUNTIFS(J:J,J130,R:R,R130,S:S,S130,T:T,T130,U:U,U130,V:V,V130) -> 1 | J130: AGNESS MARY PEREIRA (M) | K130: MISS | L130: CALLEEN OLIVE PEREIRA (M) | M130: MSTR | N130: SOHAN JOSEPH PEREIRA (M) | O130: Y | P130: MRS JUENITE PEREIRA | Q130: 1994-06-29 | R130: COSEY NOOK | S130: T B ROAD | T130: DESHPANDE NAGAR | U130: HUBLI | V130: 580029 | W130: Y | X130: 25000 | Y130: 1998-02-19 | Z130: 1995-02-19 | AA130: 480.29 | AB130: 361.46 | AC130: -9516.75 | AD130: 2000-02-20 | AE130: 33675 | AF130: 1 | AG130: 512 | AI130: 3 | AJ130: 3B0024 | AK130: BHARATHI G HEGDE | AL130: 24 | AM130: 1 | AN130: M | AO130: 2 | AP130: 15 | AQ130: 17.35 | AR130: N | BC130: COSEY NOOK | BD130: T B ROAD | BE130: DESHPANDE NAGAR | BF130: HUBLI | BG130: 580029 | BH130: Y | BI130: N | BK130: 0 | BL130: A | BM130: 1998-04-08 | BN130: 0 | BO130: 0 | BP130: 0 | BQ130: 0 | BS130: ANITHA | BT130: 1998-03-10 | BU130: 5250 | BV130: 0 | BW130: 5250
A131: 129 | B131: 526 | C131: 5 | D131: 2282728 | E131: CD | G131: 1998-08-10 | H131: MRS | I131: =COUNTIFS(J:J,J131,R:R,R131,S:S,S131,T:T,T131,U:U,U131,V:V,V131) -> 1 | J131: AHALYA NADKARNI | K131: MRS | L131: VRINDA KARNAD N | O131: N | R131: 2 TARAPORE AVENUE | S131: HARRINGTON ROAD | T131: CHETPET | U131: CHENNAI | V131: 600031 | W131: Y | X131: 15000 | Y131: 1998-08-08 | Z131: 1996-08-06 | AA131: 147.95 | AB131: 187.5 | AC131: -2585.45 | AD131: 1999-08-09 | AE131: 17250 | AF131: 1 | AG131: 512 | AI131: 2 | AJ131: 3D0038 | AK131: DHANALAKSHMI R | AL131: 12 | AM131: 1 | AN131: M | AO131: 2 | AP131: 14 | AQ131: 15 | AR131: N | BC131: 2 TARAPORE AVENUE | BD131: HARRINGTON ROAD | BE131: CHETPET | BF131: CHENNAI | BG131: 600031 | BH131: N | BI131: N | BK131: 0 | BL131: A | BM131: 1999-05-11 | BN131: 0 | BO131: 0 | BP131: 0 | BQ131: 0 | BS131: SARASWATHI | BT131: 1998-08-12 | BU131: =+X131*21% -> 3150 | BV131: 2000 | BW131: 1150
A132: 130 | B132: 527 | C132: 5 | D132: 2282804 | E132: CD | G132: 1998-08-12 | H132: MRS | I132: =COUNTIFS(J:J,J132,R:R,R132,S:S,S132,T:T,T132,U:U,U132,V:V,V132) -> 1 | J132: AHALYA NADKARNI | O132: Y | P132: MS VRINDA KARNAD | Q132: 1991-03-20 | R132: 2,TARAPORE AVENUE | S132: HARRINGTON ROAD | T132: CHETPET | U132: CHENNAI | V132: 600031 | W132: Y | X132: 10000 | Y132: 1998-08-11 | Z132: 1996-08-09 | AA132: 86.3 | AB132: 125 | AC132: -1711.3 | AD132: 1999-08-12 | AE132: 11500 | AF132: 1 | AG132: 512 | AI132: 1 | AJ132: 3D0038 | AK132: DHANALAKSHMI R | AL132: 12 | AM132: 1 | AN132: M | AO132: 2 | AP132: 14 | AQ132: 15 | AR132: N | BC132: 2,TARAPORE AVENUE | BD132: HARRINGTON ROAD | BE132: CHETPET | BF132: CHENNAI | BG132: 600031 | BH132: N | BI132: N | BK132: 0 | BL132: A | BM132: 1999-05-11 | BN132: 0 | BO132: 0 | BP132: 0 | BQ132: 0 | BS132: SARASWATHI | BT132: 1998-08-13 | BU132: 2100 | BV132: 2000 | BW132: 100
A133: 131 | B133: 528 | C133: 5 | D133: 2284105 | E133: CD | G133: 1998-09-23 | H133: MRS | I133: =COUNTIFS(J:J,J133,R:R,R133,S:S,S133,T:T,T133,U:U,U133,V:V,V133) -> 1 | J133: AHALYA NADKARNI | O133: N | R133: NO.2 TARAPORE AVENUE | S133: HARRINGTON ROAD | T133: CHETPET | U133: CHENNAI | V133: 600031 | W133: Y | X133: 10000 | Y133: 1998-09-21 | Z133: 1996-09-19 | AA133: 41.1 | AB133: 125 | AC133: -1666.1 | AD133: 1999-09-22 | AE133: 11500 | AF133: 1 | AG133: 512 | AI133: 1 | AJ133: 3D0038 | AK133: DHANALAKSHMI R | AL133: 12 | AM133: 1 | AN133: M | AO133: 2 | AP133: 14 | AQ133: 15 | AR133: N | BC133: NO.2 TARAPORE AVENUE | BD133: HARRINGTON ROAD | BE133: CHETPET | BF133: CHENNAI | BG133: 600031 | BH133: N | BI133: N | BK133: 0 | BL133: A | BM133: 1999-05-11 | BN133: 0 | BO133: 0 | BP133: 0 | BQ133: 0 | BS133: ANITHA | BT133: 1998-09-25 | BU133: 2100 | BV133: 0 | BW133: 2100
A134: 132 | B134: 529 | C134: 5 | D134: 2284524 | E134: CD | G134: 1998-10-15 | H134: MRS | I134: =COUNTIFS(J:J,J134,R:R,R134,S:S,S134,T:T,T134,U:U,U134,V:V,V134) -> 1 | J134: AHALYA NADKARNI | K134: MRS | L134: VRINDA KARNAD | O134: N | R134: NO 2 TARAPORE AVENUE | S134: HARRINGTON ROAD | T134: CHETPET | U134: MADRAS | V134: 600031 | W134: Y | X134: 10000 | Y134: 1998-09-21 | Z134: 1996-09-19 | AA134: 166.1 | AB134: 125 | AC134: -1791.1 | AD134: 1999-09-22 | AE134: 11500 | AF134: 1 | AG134: 512 | AI134: 2 | AJ134: 3D0038 | AK134: DHANALAKSHMI R | AL134: 12 | AM134: 1 | AN134: M | AO134: 2 | AP134: 14 | AQ134: 15 | AR134: N | BC134: NO 2 TARAPORE AVENUE | BD134: HARRINGTON ROAD | BE134: CHETPET | BF134: MADRAS | BG134: 600031 | BH134: N | BI134: N | BK134: 0 | BL134: A | BM134: 1999-05-11 | BN134: 0 | BO134: 0 | BP134: 0 | BQ134: 0 | BS134: RADHESH | BT134: 1998-10-15 | BU134: 2100 | BV134: 0 | BW134: 2100
A135: 133 | B135: 530 | C135: 5 | D135: 2284742 | E135: CD | G135: 1998-10-27 | H135: MRS | I135: =COUNTIFS(J:J,J135,R:R,R135,S:S,S135,T:T,T135,U:U,U135,V:V,V135) -> 1 | J135: AHALYA NADKARNI | O135: N | R135: 2,TARAPORE AVENUE | S135: HARRINGTON ROAD | T135: CHETPET | U135: MADRAS | V135: 600031 | W135: Y | X135: 15000 | Y135: 1998-09-23 | Z135: 1996-09-21 | AA135: 236.82 | AB135: 187.5 | AC135: -2674.32 | AD135: 1999-09-24 | AE135: 17250 | AF135: 1 | AG135: 512 | AI135: 1 | AJ135: 3D0038 | AK135: DHANALAKSHMI R | AL135: 12 | AM135: 1 | AN135: M | AO135: 2 | AP135: 14 | AQ135: 15 | AR135: N | BC135: 2,TARAPORE AVENUE | BD135: HARRINGTON ROAD | BE135: CHETPET | BF135: MADRAS | BG135: 600031 | BH135: N | BI135: N | BK135: 0 | BL135: A | BM135: 1999-05-11 | BN135: 0 | BO135: 0 | BP135: 0 | BQ135: 0 | BS135: GEETHA | BT135: 1998-10-28 | BU135: 3150 | BV135: 0 | BW135: 3150
A136: 134 | B136: 531 | C136: 5 | D136: 2285038 | E136: CD | G136: 1998-11-09 | H136: MRS | I136: =COUNTIFS(J:J,J136,R:R,R136,S:S,S136,T:T,T136,U:U,U136,V:V,V136) -> 1 | J136: AHALYA NADKARNI | O136: N | R136: NO 2 TARAPORE AVENUE | S136: HARRINTON ROAD | T136: CHETPET | U136: MADRAS | V136: 600023 | W136: Y | X136: 10000 | Y136: 1998-09-21 | Z136: 1996-09-19 | AA136: 289.38 | AB136: 125 | AC136: -1914.38 | AD136: 1999-09-22 | AE136: 11500 | AF136: 1 | AG136: 512 | AI136: 1 | AJ136: 3D0038 | AK136: DHANALAKSHMI R | AL136: 12 | AM136: 1 | AN136: M | AO136: 2 | AP136: 14 | AQ136: 15 | AR136: N | BC136: NO 2 TARAPORE AVENUE | BD136: HARRINTON ROAD | BE136: CHETPET | BF136: MADRAS | BG136: 600023 | BH136: Y | BI136: N | BK136: 0 | BL136: A | BM136: 1999-05-11 | BN136: 0 | BO136: 0 | BP136: 0 | BQ136: 0 | BS136: TIGER | BT136: 1998-11-10 | BU136: 2100 | BV136: 0 | BW136: 2100
A137: 135 | B137: 532 | C137: 33 | D137: 2173110 | E137: FD | G137: 1997-11-19 | H137: MRS | I137: =COUNTIFS(J:J,J137,R:R,R137,S:S,S137,T:T,T137,U:U,U137,V:V,V137) -> 1 | J137: AHALYA NAIK | K137: MR | L137: ANIL NAIK | O137: N | R137: FLAT NO.33, THIRD FLOOR | S137: VISHWAS APARTMENTS, | T137: NO.19, 5TH MAIN RD, 11TH CROSS | U137: MALLESWARAM BANGALOR | V137: 560003 | X137: 600000 | Y137: 1997-11-18 | AA137: 0 | AB137: 0 | AC137: 0 | AD137: 1999-11-19 | AE137: 780000 | AF137: 1 | AG137: 512 | AI137: 2 | AJ137: 3P0021 | AK137: PRASAD G N | AL137: 24 | AM137: 1 | AN137: M | AO137: 2 | AP137: 15 | AQ137: 15 | AR137: N | AS137: 23602102 | BC137: H.NO.103,"AMRITA",6TH 'A' | BD137: MAIN ROAD,3RD A CROSS,7TH | BE137: BLOCK,NAGARABHAVI II STAGE, | BF137: BANGALORE | BG137: 560072 | BH137: N | BI137: Y | BK137: 0 | BL137: A | BM137: 1997-11-18 | BN137: 0 | BO137: 0 | BP137: 0 | BQ137: 0 | BS137: INDIRA | BT137: 2001-12-18 | BU137: 126000 | BV137: 60000 | BW137: 66000
A138: 136 | B138: 533 | C138: 30 | D138: 2180446 | E138: FD | G138: 1998-06-05 | H138: MR | I138: =COUNTIFS(J:J,J138,R:R,R138,S:S,S138,T:T,T138,U:U,U138,V:V,V138) -> 1 | J138: AHAMED M | O138: N | R138: ARMUGAM STREET | S138: CHICKMAGALUR | T138: , | U138: , | V138: , | W138: Y | X138: 10000 | Y138: 1998-06-04 | AA138: 123.51 | AB138: 134.17 | AC138: -1867.67 | AD138: 2000-06-05 | AE138: 13220 | AF138: 1 | AG138: 512 | AI138: 1 | AJ138: 3R0099 | AK138: RAMASWAMY N | AL138: 24 | AM138: 1 | AN138: Y | AO138: 2 | AP138: 15 | AQ138: 16.1 | AR138: N | AS138: 23602102 | BC138: ARMUGAM STREET | BD138: CHICKMAGALUR | BH138: N | BI138: N | BK138: 0 | BL138: A | BM138: 1998-06-08 | BN138: 0 | BO138: 0 | BP138: 0 | BQ138: 0 | BS138: ANITHA | BT138: 1998-06-06 | BU138: 2100 | BV138: 0 | BW138: 2100
A139: 137 | B139: 534 | C139: 25 | D139: 2180815 | E139: FD | G139: 1998-07-13 | H139: MR | I139: =COUNTIFS(J:J,J139,R:R,R139,S:S,S139,T:T,T139,U:U,U139,V:V,V139) -> 1 | J139: AHAMMED KOYA H A | O139: N | R139: THANIPURAM PARAMBA | S139: H NO.1/4097A | T139: POST WEST HILL | U139: CALICUT KERALA | V139: 673005 | W139: Y | X139: 60000 | Y139: 1998-07-10 | Z139: 1996-07-08 | AA139: 0 | AB139: 0 | AC139: 0 | AD139: 2001-07-10 | AE139: 87000 | AF139: 1 | AG139: 512 | AI139: 1 | AJ139: 3K0040 | AK139: KRISHNA IYER | AL139: 36 | AM139: 0 | AN139: M | AO139: 2 | AP139: 15 | AQ139: 15 | AR139: N | AS139: 23602102 | BC139: THANIPURAM PARAMBA | BD139: H NO 1/4097A | BE139: POST WEST HILL | BF139: CALICUT KERALA | BG139: 673005 | BH139: Y | BI139: N | BK139: 0 | BL139: A | BM139: 1998-07-15 | BN139: 0 | BO139: 0 | BP139: 0 | BQ139: 0 | BS139: TIGER | BT139: 1999-05-24 | BU139: 12600 | BV139: 0 | BW139: 12600
A140: 138 | B140: 535 | C140: 33 | D140: 2285723 | E140: CD | G140: 1998-12-17 | H140: MS | I140: =COUNTIFS(J:J,J140,R:R,R140,S:S,S140,T:T,T140,U:U,U140,V:V,V140) -> 1 | J140: AHANA SHETTY (M) | O140: Y | P140: MR UMESH SHETTY | Q140: 1991-04-25 | R140: 119 MUKUND APTS | S140: VICTORIA LAYOUT | T140: PALM GROOVE ROAD | U140: BANGALORE | V140: 560047 | W140: Y | X140: 11000 | Y140: 1998-12-13 | AA140: 85.89 | AB140: 137.5 | AC140: -1873.39 | AD140: 1999-12-14 | AE140: 12650 | AF140: 1 | AG140: 512 | AI140: 1 | AJ140: 3S0220 | AK140: SUNITA | AL140: 12 | AM140: 1 | AN140: M | AO140: 2 | AP140: 14 | AQ140: 15 | BC140: 119 MUKUND APTS | BD140: VICTORIA LAYOUT | BE140: PALM GROOVE ROAD | BF140: BANGALORE | BG140: 560047 | BH140: N | BI140: N | BK140: 0 | BL140: A | BM140: 1999-05-11 | BN140: 0 | BO140: 0 | BP140: 0 | BQ140: 0 | BS140: TIGER | BT140: 1998-12-17 | BU140: 2310 | BV140: 0 | BW140: 2310
A141: 139 | B141: 536 | C141: 33 | D141: 2281074 | E141: CD | G141: 1998-06-08 | H141: MR | I141: =COUNTIFS(J:J,J141,R:R,R141,S:S,S141,T:T,T141,U:U,U141,V:V,V141) -> 1 | J141: AHMED KHAN | O141: N | R141: NO 1689 11TH MAIN | S141: 12TH CROSS II BLOCK | T141: MALLESHWARAM | U141: BANGALORE | V141: 560004 | W141: Y | X141: 12000 | Y141: 1998-05-09 | AA141: 258.49 | AB141: 150 | AC141: -2208.49 | AD141: 1999-05-10 | AE141: 13800 | AF141: 1 | AG141: 512 | AI141: 1 | AJ141: 3D9999 | AK141: DIRECT DEPOSIT | AL141: 12 | AM141: 1 | AN141: M | AO141: 2 | AP141: 14 | AQ141: 15 | BC141: NO 1689 11TH MAIN | BD141: 12TH CROSS II BLOCK | BE141: MALLESHWARAM | BF141: BANGALORE | BG141: 560004 | BH141: N | BI141: N | BK141: 0 | BL141: A | BM141: 1999-05-11 | BN141: 0 | BO141: 0 | BP141: 0 | BQ141: 0 | BS141: ANITHA | BT141: 1998-06-09 | BU141: 2520 | BV141: 0 | BW141: 2520
A142: 140 | B142: 537 | C142: 3 | D142: 2174333 | E142: FD | G142: 1998-02-28 | H142: MS | I142: =COUNTIFS(J:J,J142,R:R,R142,S:S,S142,T:T,T142,U:U,U142,V:V,V142) -> 1 | J142: AISHWARYA (MINOR) | O142: Y | P142: MRS ANJANA A INAMDAR | Q142: 1997-04-04 | R142: H NO 9163/38 | S142: DESHPANDE NAGAR | T142: , | U142: HUBLI | V142: , | W142: Y | X142: 16000 | Y142: 1998-02-28 | Z142: 1997-02-27 | AA142: 0 | AB142: 0 | AC142: 0 | AD142: 2000-02-29 | AE142: 20800 | AF142: 1 | AG142: 512 | AI142: 1 | AJ142: 3P0029 | AK142: POORNIMA P PATIL | AL142: 24 | AM142: 1 | AN142: M | AO142: 9 | AP142: 15 | AQ142: 15 | AR142: N | AS142: 23602102 | AU142: MRS ANJANA A INAMDAR | BC142: H NO 9163/38 | BD142: DESHPANDE NAGAR | BF142: HUBLI | BH142: Y | BI142: N | BK142: 0 | BL142: A | BM142: 1998-03-17 | BN142: 0 | BO142: 0 | BP142: 0 | BQ142: 0 | BS142: TIGER | BT142: 1998-05-16 | BU142: 3360 | BV142: 0 | BW142: 3360
A143: 141 | B143: 538 | C143: 11 | D143: 2280837 | E143: CD | G143: 1998-05-26 | H143: MISS | I143: =COUNTIFS(J:J,J143,R:R,R143,S:S,S143,T:T,T143,U:U,U143,V:V,V143) -> 1 | J143: AISHWARYA (MINOR) | O143: Y | P143: MR V S C HOLLA | Q143: 1996-05-16 | R143: MANAGER | S143: SRI RAMAKRISHNA THEATRE | T143: P B NO 17 | U143: UDUPI DIST | V143: 576101 | W143: Y | X143: 16000 | Y143: 1998-05-25 | Z143: 1996-05-23 | AA143: 46.03 | AB143: 200 | AC143: -2646.03 | AD143: 1999-05-26 | AE143: 18400 | AF143: 1 | AG143: 512 | AI143: 1 | AJ143: 3Y0007 | AK143: YESHODA P SHETTY | AL143: 12 | AM143: 1 | AN143: M | AO143: 2 | AP143: 14 | AQ143: 15 | AR143: N | BC143: MANAGER | BD143: SRI RAMAKRISHNA THEATRE | BE143: P B NO 17 | BF143: UDUPI DIST | BG143: 576101 | BH143: N | BI143: N | BK143: 0 | BL143: A | BM143: 1999-05-11 | BN143: 0 | BO143: 0 | BP143: 0 | BQ143: 0 | BS143: ANITHA | BT143: 1998-05-27 | BU143: 3360 | BV143: 2000 | BW143: 1360
A144: 142 | B144: 539 | C144: 6 | D144: 2285306 | E144: CD | G144: 1998-11-20 | H144: MR | I144: =COUNTIFS(J:J,J144,R:R,R144,S:S,S144,T:T,T144,U:U,U144,V:V,V144) -> 1 | J144: AITHAPPA BANGERA | O144: N | R144: NATIONAL ROAD | S144: BOLOOR | T144: , | U144: MANGALORE | V144: 575003 | W144: Y | X144: 13000 | Y144: 1998-09-11 | Z144: 1996-09-09 | AA144: 429.62 | AB144: 162.5 | AC144: -2542.12 | AD144: 1999-09-12 | AE144: 14950 | AF144: 1 | AG144: 512 | AI144: 1 | AJ144: 3K0050 | AK144: KINI M S | AL144: 12 | AM144: 1 | AN144: M | AO144: 2 | AP144: 14 | AQ144: 15 | AR144: N | BC144: NATIONAL ROAD | BD144: BOLOOR | BF144: MANGALORE | BG144: 575003 | BH144: N | BI144: N | BK144: 0 | BL144: A | BM144: 1999-05-11 | BN144: 0 | BO144: 0 | BP144: 0 | BQ144: 0 | BS144: GEETHA | BT144: 1998-11-23 | BU144: 2730 | BV144: 2000 | BW144: 730
A145: 143 | B145: 540 | C145: 6 | D145: 2285352 | E145: CD | G145: 1998-11-25 | H145: MR | I145: =COUNTIFS(J:J,J145,R:R,R145,S:S,S145,T:T,T145,U:U,U145,V:V,V145) -> 1 | J145: AITHAPPA BANGERA | O145: N | R145: NATIONAL | S145: BOLOOR | T145: , | U145: MANGALORE | V145: 575001 | W145: Y | X145: 15000 | Y145: 1998-10-23 | Z145: 1996-10-21 | AA145: 236.82 | AB145: 187.5 | AC145: -2674.32 | AD145: 1999-10-24 | AE145: 17250 | AF145: 1 | AG145: 512 | AI145: 1 | AJ145: 3K0050 | AK145: KINI M S | AL145: 12 | AM145: 1 | AN145: M | AO145: 2 | AP145: 14 | AQ145: 15 | AR145: N | BC145: NATIONAL | BD145: BOLOOR | BF145: MANGALORE | BG145: 575001 | BH145: N | BI145: N | BK145: 0 | BL145: A | BM145: 1999-05-11 | BN145: 0 | BO145: 0 | BP145: 0 | BQ145: 0 | BS145: RADHESH | BT145: 1998-11-25 | BU145: 3150 | BV145: 0 | BW145: 3150
A146: 144 | B146: 541 | C146: 2 | D146: 2283678 | E146: CD | G146: 1998-09-09 | H146: MR | I146: =COUNTIFS(J:J,J146,R:R,R146,S:S,S146,T:T,T146,U:U,U146,V:V,V146) -> 1 | J146: AITHU DEVADIGA | K146: MRS | L146: SUNITA R S | O146: N | R146: KOLSAWADI | S146: R NO 28 MALAD (E) | T146: , | U146: MUMBAI | V146: , | W146: Y | X146: 15000 | Y146: 1998-09-05 | Z146: 1996-09-03 | AA146: 160.27 | AB146: 187.5 | AC146: -2597.77 | AD146: 1999-09-06 | AE146: 17250 | AF146: 1 | AG146: 512 | AI146: 2 | AJ146: 3S0285 | AK146: S D SHETTY MUMBAI | AL146: 12 | AM146: 1 | AN146: M | AO146: 2 | AP146: 14 | AQ146: 15 | AR146: N | BC146: KOLSAWADI | BD146: R NO 28 MALAD (E) | BF146: MUMBAI | BH146: N | BI146: N | BK146: 0 | BL146: A | BM146: 1999-05-11 | BN146: 0 | BO146: 0 | BP146: 0 | BQ146: 0 | BS146: RADHESH | BT146: 1998-09-10 | BU146: 3150 | BV146: 0 | BW146: 3150
A147: 145 | B147: 542 | C147: 33 | D147: 2276124 | E147: CD | G147: 1997-08-20 | H147: MR | I147: =COUNTIFS(J:J,J147,R:R,R147,S:S,S147,T:T,T147,U:U,U147,V:V,V147) -> 1 | J147: AIYAPPA K K | K147: MRS | L147: GANGAMMA K A | O147: N | R147: SCHOOL ESTATE | S147: SIDAPUR | T147: , | U147: KODAGU | V147: 571253 | W147: Y | X147: 36000 | Y147: 1997-08-05 | Z147: 1994-08-05 | AA147: 500.65 | AB147: 564 | AC147: -21368.65 | AD147: 2000-08-05 | AE147: 56304 | AF147: 1 | AG147: 512 | AI147: 2 | AJ147: 3E0009 | AK147: ELSY MATHEW | AL147: 36 | AM147: 0 | AN147: M | AO147: 2 | AP147: 15 | AQ147: 18.8 | AR147: N | BC147: SCHOOL ESTATE | BD147: SIDAPUR | BF147: KODAGU | BG147: 571253 | BH147: N | BI147: Y | BK147: 0 | BL147: A | BM147: 1998-04-08 | BN147: 0 | BO147: 0 | BP147: 0 | BQ147: 0 | BS147: TEST | BT147: 1997-08-22 | BU147: 7560 | BV147: 0 | BW147: 7560
A148: 146 | B148: 543 | C148: 7 | D148: 2182569 | E148: FD | G148: 1999-02-18 | H148: MR | I148: =COUNTIFS(J:J,J148,R:R,R148,S:S,S148,T:T,T148,U:U,U148,V:V,V148) -> 1 | J148: AIYAPPA M P | K148: MRS | L148: MUTHU AIYAPPA | O148: N | R148: TATHETI ESTATE | S148: DEVANAGARI VILLAGE & POST | T148: VIA VIRAJPET | U148: MADIKERI | V148: , | W148: Y | X148: 49000 | Y148: 1999-01-17 | Z148: 1996-01-17 | AA148: 0 | AB148: 0 | AC148: 0 | AD148: 2002-01-17 | AE148: 71329.3 | AF148: 1 | AG148: 512 | AI148: 2 | AJ148: 3A0057 | AK148: ASHA BOJAPPA | AL148: 36 | AM148: 0 | AN148: Q | AO148: 5 | AP148: 15 | AQ148: 15.19 | AR148: N | AV148: CORPORATION BANK | AW148: CORPORATION BANK | AZ148: VIRAJPET | BB148: 3387 | BC148: TATHETI ESTATE | BD148: DEVANAGARI VILLAGE & POST | BE148: VIA VIRAJPET | BF148: MADIKERI | BH148: Y | BI148: N | BK148: 0 | BL148: A | BM148: 1999-02-22 | BN148: 0 | BO148: 0 | BP148: 0 | BQ148: 0 | BS148: ANITHA | BT148: 1999-02-19 | BU148: 10290 | BV148: 0 | BW148: 10290
A149: 147 | B149: 544 | C149: 7 | D149: 2281105 | E149: CD | G149: 1998-06-09 | H149: MRS | I149: =COUNTIFS(J:J,J149,R:R,R149,S:S,S149,T:T,T149,U:U,U149,V:V,V149) -> 1 | J149: AIYAPPA M P | O149: N | R149: P B NO: 11 | S149: AMMATHY | T149: KODAGU | U149: , | V149: 571211 | W149: Y | X149: 50000 | Y149: 1998-04-16 | AA149: 1549.66 | AB149: 625 | AC149: -9674.66 | AD149: 1999-04-17 | AE149: 57500 | AF149: 1 | AG149: 512 | AI149: 1 | AJ149: 3A0057 | AK149: ASHA BOJAPPA | AL149: 12 | AM149: 1 | AN149: M | AO149: 2 | AP149: 14 | AQ149: 15 | BC149: P B NO: 11 | BD149: AMMATHY | BE149: KODAGU | BG149: 571211 | BH149: Y | BI149: N | BK149: 0 | BL149: A | BM149: 1999-05-11 | BN149: 0 | BO149: 0 | BP149: 0 | BQ149: 0 | BS149: ANITHA | BT149: 1998-06-10 | BU149: 10500 | BV149: 5000 | BW149: 5500
A150: 148 | B150: 545 | C150: 7 | D150: 2675474 | E150: CD | G150: 1998-03-27 | H150: MSTR | I150: =COUNTIFS(J:J,J150,R:R,R150,S:S,S150,T:T,T150,U:U,U150,V:V,V150) -> 1 | J150: AIYAPPA NANJAPPA (MINOR) | O150: Y | P150: M/G MRS KAVERY NANJAPPA | R150: PAKA ESTATE | S150: HAKATHOOR POST | T150: VIA MURNAD | U150: MADIKERI | V150: 571201 | W150: Y | X150: 1000 | Y150: 1997-01-17 | Z150: 1996-01-16 | AA150: 265.93 | AB150: 18.45 | AC150: -1391.38 | AD150: 2002-01-17 | AE150: 2107 | AF150: 1 | AG150: 512 | AI150: 1 | AJ150: 3G0043 | AK150: GEETH MANILAL | AL150: 60 | AM150: 0 | AN150: M | AO150: 2 | AP150: 15 | AQ150: 22.14 | AR150: N | BC150: PAKA ESTATE | BD150: HAKATHOOR POST | BE150: VIA MURNAD | BF150: MADIKERI | BG150: 571201 | BH150: N | BI150: N | BK150: 0 | BL150: A | BM150: 1998-04-08 | BN150: 0 | BO150: 0 | BP150: 0 | BQ150: 0 | BS150: ANITHA | BT150: 1998-03-28 | BU150: 210 | BV150: 0 | BW150: 210
A151: 149 | B151: 546 | C151: 7 | D151: 2267883 | E151: CD | G151: 1996-10-05 | H151: MSTR | I151: =COUNTIFS(J:J,J151,R:R,R151,S:S,S151,T:T,T151,U:U,U151,V:V,V151) -> 1 | J151: AIYAPPA S D (MINOR) | O151: Y | P151: M/G MRS PREETH APPACHU S | R151: 'MOORINGS' | S151: P.B.NO.31 | T151: CHETTALLI | U151: KODAGU | V151: 571248 | W151: Y | X151: 19000 | Y151: 1996-10-05 | Z151: 1996-10-05 | AA151: 0 | AB151: 0 | AC151: 0 | AD151: 1999-10-05 | AE151: 29716 | AF151: 1 | AG151: 512 | AI151: 1 | AJ151: 3Z0001 | AK151: ZEENATH YUSUFF | AL151: 36 | AM151: 0 | AN151: M | AO151: 2 | AP151: 15 | AQ151: 18.8 | AR151: N | BC151: 'MOORINGS' | BD151: P.B.NO.31 | BE151: CHETTALLI | BF151: KODAGU | BG151: 571248 | BH151: Y | BI151: N | BK151: 0 | BL151: A | BN151: 1189.5 | BO151: 0 | BP151: 252.36 | BQ151: 0 | BS151: CONVERTION | BT151: 1997-04-10 | BU151: 3990 | BV151: 2000 | BW151: 1990
A152: 150 | B152: 547 | C152: 15 | D152: 2268221 | E152: CD | G152: 1996-09-27 | H152: MR | I152: =COUNTIFS(J:J,J152,R:R,R152,S:S,S152,T:T,T152,U:U,U152,V:V,V152) -> 1 | J152: AJAI KUMAR | O152: N | R152: AJI NIVAS | S152: P O MUNDALUR | T152: KANNUR | U152: KANNUR | V152: , | W152: N | X152: 11000 | Y152: 1996-09-27 | Z152: 1996-09-27 | AA152: 0 | AB152: 0 | AC152: 0 | AD152: 1999-09-27 | AE152: 17204 | AF152: 1 | AG152: 512 | AI152: 1 | AJ152: 3D9999 | AK152: DIRECT DEPOSIT | AL152: 36 | AM152: 0 | AN152: M | AO152: 2 | AP152: 15 | AQ152: 18.8 | AR152: N | BC152: AJI NIVAS | BD152: P O MUNDALUR | BE152: KANNUR | BF152: KANNUR | BH152: Y | BI152: N | BK152: 0 | BL152: A | BN152: 723.88 | BO152: 0 | BP152: 146.54 | BQ152: 0 | BS152: CONVERTION | BT152: 1997-04-10 | BU152: 2310 | BV152: 2000 | BW152: 310
A153: 151 | B153: 548 | C153: 4 | D153: 2284479 | E153: CD | G153: 1998-10-14 | H153: MSTR | I153: =COUNTIFS(J:J,J153,R:R,R153,S:S,S153,T:T,T153,U:U,U153,V:V,V153) -> 1 | J153: AJAN UPPIN (MINOR) | O153: Y | P153: MRS RAJESHWARI S UPPIN | R153: 415-B | S153: SAVARKAR ROAD | T153: TILAKWADI | U153: BELGAUM | V153: 590016 | W153: Y | X153: 5000 | Y153: 1998-10-12 | AA153: 93.79 | AB153: 78.33 | AC153: -2992.12 | AD153: 2001-10-12 | AE153: 7820 | AF153: 1 | AG153: 512 | AI153: 1 | AJ153: 3S0244 | AK153: SHRIMA SHETTY | AL153: 36 | AM153: 0 | AN153: M | AO153: 2 | AP153: 15 | AQ153: 18.8 | BC153: 415-B | BD153: SAVARKAR ROAD | BE153: TILAKWADI | BF153: BELGAUM | BG153: 590016 | BH153: N | BI153: N | BK153: 0 | BL153: A | BM153: 1999-05-11 | BN153: 0 | BO153: 0 | BP153: 0 | BQ153: 0 | BS153: RADHESH | BT153: 1998-10-14 | BU153: 1050 | BV153: 0 | BW153: 1050
A154: 152 | B154: 549 | C154: 11 | D154: 2270785 | E154: CD | G154: 1997-04-25 | H154: MR | I154: =COUNTIFS(J:J,J154,R:R,R154,S:S,S154,T:T,T154,U:U,U154,V:V,V154) -> 1 | J154: AJATHA SHETTY | O154: N | R154: S/O MEGHA RATHNA SHETTY | S154: P O BARKUR | T154: , | U154: , | V154: , | X154: 10000 | Y154: 1997-04-17 | AA154: 72.11 | AB154: 156.67 | AC154: -5868.78 | AD154: 2000-04-17 | AE154: 15640 | AF154: 1 | AG154: 512 | AI154: 1 | AJ154: 3Y0007 | AK154: YESHODA P SHETTY | AL154: 36 | AM154: 0 | AN154: M | AP154: 15 | AQ154: 18.8 | BC154: S/O MEGHA RATHNA SHETTY | BD154: P O BARKUR | BH154: N | BI154: N | BK154: 0 | BL154: A | BM154: 1998-04-08 | BN154: 0 | BO154: 0 | BP154: 0 | BQ154: 0 | BS154: TEST | BT154: 1997-05-08 | BU154: 2100 | BV154: 0 | BW154: 2100
A155: 153 | B155: 550 | C155: 6 | D155: 2272163 | E155: CD | G155: 1997-06-02 | H155: MSTR | I155: =COUNTIFS(J:J,J155,R:R,R155,S:S,S155,T:T,T155,U:U,U155,V:V,V155) -> 1 | J155: AJAY (MINOR) | O155: Y | P155: ROOPANJALI RAI | Q155: 1996-08-09 | R155: RAI MAHAL | S155: TALAPADY POST | T155: , | U155: MANGALORE | V155: 574184 | X155: 10000 | Y155: 1997-05-29 | AA155: 196.63 | AB155: 184.5 | AC155: -11451.13 | AD155: 2002-05-29 | AE155: 21070 | AF155: 1 | AG155: 512 | AI155: 1 | AJ155: 3R0100 | AK155: RAJESHWARI S MELANTA | AL155: 60 | AM155: 0 | AN155: M | AP155: 15 | AQ155: 22.14 | BC155: RAI MAHAL | BD155: TALAPADY POST | BF155: MANGALORE | BG155: 574184 | BH155: N | BI155: N | BK155: 0 | BL155: A | BM155: 1998-04-08 | BN155: 0 | BO155: 0 | BP155: 0 | BQ155: 0 | BS155: TEST | BT155: 1997-06-12 | BU155: 2100 | BV155: 0 | BW155: 2100
A156: 154 | B156: 551 | C156: 6 | D156: 2290950 | E156: CD | G156: 1999-09-27 | H156: MR | I156: =COUNTIFS(J:J,J156,R:R,R156,S:S,S156,T:T,T156,U:U,U156,V:V,V156) -> 1 | J156: AJAY KUMAR HEGDE | O156: N | R156: SAI PRASAD BUILDING | S156: BEHIND CANARA COLLEGE | T156: KODIALBAIL | U156: MANGALORE | V156: 575003 | W156: Y | X156: 8000 | Y156: 1999-07-06 | Z156: 1995-07-05 | AA156: 284.11 | AB156: 100 | AC156: -1584.11 | AD156: 2000-07-07 | AE156: 9200 | AF156: 1 | AG156: 512 | AI156: 1 | AJ156: 3B0026 | AK156: BALAKRISHNA D | AL156: 12 | AM156: 1 | AN156: M | AO156: 2 | AP156: 14 | AQ156: 15 | AR156: N | BC156: SAI PRASAD BUILDING | BD156: BEHIND CANARA COLLEGE | BE156: KODIALBAIL | BF156: MANGALORE | BG156: 575003 | BH156: N | BI156: N | BK156: 0 | BL156: A | BM156: 2000-04-24 | BN156: 0 | BO156: 0 | BP156: 0 | BQ156: 0 | BS156: GEETHA | BT156: 1999-09-28 | BU156: 1680 | BV156: 0 | BW156: 1680
A157: 155 | B157: 552 | C157: 15 | D157: 2267713 | E157: CD | G157: 1996-09-27 | H157: MR | I157: =COUNTIFS(J:J,J157,R:R,R157,S:S,S157,T:T,T157,U:U,U157,V:V,V157) -> 1 | J157: AJAY RAM | O157: N | R157: RAM NIVAS | S157: P O VARAM | T157: KANNUR | U157: KANNUR | V157: , | W157: N | X157: 15000 | Y157: 1996-09-27 | Z157: 1996-09-27 | AA157: 0 | AB157: 0 | AC157: 0 | AD157: 1999-09-27 | AE157: 23460 | AF157: 1 | AG157: 512 | AI157: 1 | AJ157: 3D9999 | AK157: DIRECT DEPOSIT | AL157: 36 | AM157: 0 | AN157: M | AO157: 2 | AP157: 15 | AQ157: 18.8 | AR157: N | BC157: RAM NIVAS | BD157: P O VARAM | BE157: KANNUR | BF157: KANNUR | BH157: Y | BI157: N | BK157: 0 | BL157: A | BN157: 987.12 | BO157: 0 | BP157: 199.83 | BQ157: 0 | BS157: CONVERTION | BT157: 1997-04-10 | BU157: 3150 | BV157: 0 | BW157: 3150
A158: 156 | B158: 553 | C158: 33 | D158: 2285307 | E158: CD | G158: 1998-11-20 | H158: MR | I158: =COUNTIFS(J:J,J158,R:R,R158,S:S,S158,T:T,T158,U:U,U158,V:V,V158) -> 1 | J158: AJAY RAO | O158: N | R158: NO.43, 7TH CROSS | S158: 1ST MAIN ISRO LAYOUT | T158: VIKRAMNAGAR | U158: BANGALORE | V158: 560078 | W158: Y | X158: 29000 | Y158: 1998-11-18 | AA158: 154.93 | AB158: 362.5 | AC158: -4867.43 | AD158: 1999-11-19 | AE158: 33350 | AF158: 1 | AG158: 512 | AI158: 1 | AJ158: 3D9999 | AK158: DIRECT DEPOSIT | AL158: 12 | AM158: 1 | AN158: M | AO158: 2 | AP158: 14 | AQ158: 15 | BC158: NO.43, 7TH CROSS | BD158: 1ST MAIN ISRO LAYOUT | BE158: VIKRAMNAGAR | BF158: BANGALORE | BG158: 560078 | BH158: Y | BI158: N | BK158: 0 | BL158: A | BM158: 1999-05-11 | BN158: 0 | BO158: 0 | BP158: 0 | BQ158: 0 | BS158: GEETHA | BT158: 1998-11-23 | BU158: 6090 | BV158: 3000 | BW158: 3090
A159: 157 | B159: 554 | C159: 15 | D159: 2268342 | E159: CD | G159: 1996-09-27 | H159: MR | I159: =COUNTIFS(J:J,J159,R:R,R159,S:S,S159,T:T,T159,U:U,U159,V:V,V159) -> 1 | J159: AJAY S | O159: N | R159: ' ASHOK VILLA ' | S159: P O EACHUR | T159: CANNANORE | U159: CANNANORE | V159: , | W159: N | X159: 15000 | Y159: 1996-09-27 | Z159: 1996-09-27 | AA159: 0 | AB159: 0 | AC159: 0 | AD159: 1999-09-27 | AE159: 23460 | AF159: 1 | AG159: 512 | AI159: 1 | AJ159: 3D9999 | AK159: DIRECT DEPOSIT | AL159: 36 | AM159: 0 | AN159: M | AO159: 2 | AP159: 15 | AQ159: 18.8 | AR159: N | BC159: ' ASHOK VILLA ' | BD159: P O EACHUR | BE159: CANNANORE | BF159: CANNANORE | BH159: Y | BI159: N | BK159: 0 | BL159: A | BN159: 987.12 | BO159: 0 | BP159: 199.83 | BQ159: 0 | BS159: CONVERTION | BT159: 1997-04-10 | BU159: 3150 | BV159: 2000 | BW159: 1150
A160: 158 | B160: 555 | C160: 4 | D160: 2290334 | E160: CD | G160: 1999-06-05 | H160: MSTR | I160: =COUNTIFS(J:J,J160,R:R,R160,S:S,S160,T:T,T160,U:U,U160,V:V,V160) -> 1 | J160: AJAY S UPPIN | O160: Y | P160: R S UPPIN | Q160: 1984-03-05 | R160: 415/B, SAVARKAR ROAD | S160: NEAR 1ST GATE | T160: TILAKWADI | U160: BELGAUM | V160: 590006 | W160: Y | X160: 5000 | Y160: 1999-06-01 | AA160: 77.26 | AB160: 78.33 | AC160: -2975.59 | AD160: 2002-06-01 | AE160: 7820 | AF160: 1 | AG160: 512 | AI160: 1 | AJ160: 3S0292 | AK160: SHEELA SHETTY | AL160: 36 | AM160: 0 | AN160: M | AO160: 2 | AP160: 15 | AQ160: 18.8 | BC160: 415/B, SAVARKAR ROAD | BD160: NEAR 1ST GATE | BE160: TILAKWADI | BF160: BELGAUM | BG160: 590006 | BH160: N | BI160: N | BK160: 0 | BL160: A | BM160: 2000-04-24 | BN160: 0 | BO160: 0 | BP160: 0 | BQ160: 0 | BS160: GEETHA | BT160: 1999-06-07 | BU160: 1050 | BV160: 0 | BW160: 1050
A161: 159 | B161: 556 | C161: 4 | D161: 2290884 | E161: CD | G161: 1999-09-10 | H161: MSTR | I161: =COUNTIFS(J:J,J161,R:R,R161,S:S,S161,T:T,T161,U:U,U161,V:V,V161) -> 1 | J161: AJAY S UPPIN | O161: N | R161: NO.415/B | S161: SAVARKAR ROAD | T161: TILAKWADI | U161: BELGAUM | V161: 590016 | X161: 5000 | Y161: 1999-09-06 | AA161: 64.38 | AB161: 78.33 | AC161: -2962.72 | AD161: 2002-09-06 | AE161: 7820 | AF161: 1 | AG161: 512 | AI161: 1 | AJ161: 3S0292 | AK161: SHEELA SHETTY | AL161: 36 | AM161: 0 | AN161: M | AO161: 2 | AP161: 15 | AQ161: 18.8 | BC161: NO.415/B | BD161: SAVARKAR ROAD | BE161: TILAKWADI | BF161: BELGAUM | BG161: 590016 | BH161: N | BI161: N | BK161: 0 | BL161: A | BM161: 2000-04-24 | BN161: 0 | BO161: 0 | BP161: 0 | BQ161: 0 | BS161: GEETHA | BT161: 1999-09-10 | BU161: 1050 | BV161: 0 | BW161: 1050
A162: 160 | B162: 557 | C162: 4 | D162: 2285045 | E162: CD | G162: 1998-11-11 | H162: MSTR | I162: =COUNTIFS(J:J,J162,R:R,R162,S:S,S162,T:T,T162,U:U,U162,V:V,V162) -> 1 | J162: AJAY UPPIN (MINOR) | O162: Y | P162: MRS BASAMMA V PATIL | R162: 415-B 46 MAHADWAR ROAD | S162: SAVARKAR ROAD | T162: TILAKWADI | U162: BELGAUM | V162: 590016 | W162: Y | X162: 12000 | Y162: 1998-11-09 | Z162: 1996-09-25 | AA162: 125.49 | AB162: 173.5 | AC162: -4462.99 | AD162: 2000-11-10 | AE162: 16164 | AF162: 1 | AG162: 512 | AI162: 1 | AJ162: 3S0244 | AK162: SHRIMA SHETTY | AL162: 24 | AM162: 1 | AN162: M | AO162: 2 | AP162: 15 | AQ162: 17.35 | AR162: N | BC162: 415-B 46 MAHADWAR ROAD | BD162: SAVARKAR ROAD | BE162: TILAKWADI | BF162: BELGAUM | BG162: 590016 | BH162: N | BI162: N | BK162: 0 | BL162: A | BM162: 1999-05-11 | BN162: 0 | BO162: 0 | BP162: 0 | BQ162: 0 | BS162: RADHESH | BT162: 1998-11-11 | BU162: 2520 | BV162: 0 | BW162: 2520
A163: 161 | B163: 558 | C163: 15 | D163: 2267765 | E163: CD | G163: 1996-09-27 | H163: MR | I163: =COUNTIFS(J:J,J163,R:R,R163,S:S,S163,T:T,T163,U:U,U163,V:V,V163) -> 1 | J163: AJAYESH | O163: N | R163: POORNIMA | S163: P O KAPPAD | T163: KANNUR | U163: KANNUR | V163: , | W163: N | X163: 15000 | Y163: 1996-09-27 | Z163: 1996-09-27 | AA163: 0 | AB163: 0 | AC163: 0 | AD163: 1999-09-27 | AE163: 23460 | AF163: 1 | AG163: 512 | AI163: 1 | AJ163: 3D9999 | AK163: DIRECT DEPOSIT | AL163: 36 | AM163: 0 | AN163: M | AO163: 2 | AP163: 15 | AQ163: 18.8 | AR163: N | BC163: POORNIMA | BD163: P O KAPPAD | BE163: KANNUR | BF163: KANNUR | BH163: Y | BI163: N | BK163: 0 | BL163: A | BN163: 987.12 | BO163: 0 | BP163: 199.83 | BQ163: 0 | BS163: CONVERTION | BT163: 1997-04-10 | BU163: 3150 | BV163: 0 | BW163: 3150
A164: 162 | B164: 559 | C164: 33 | D164: 2640083 | E164: CD | G164: 1995-02-24 | H164: MR | I164: =COUNTIFS(J:J,J164,R:R,R164,S:S,S164,T:T,T164,U:U,U164,V:V,V164) -> 1 | J164: AJIT | O164: N | R164: 2/1 SUBBANAPALYA | S164: BANASWADI MAIN ROAD | T164: BANGALORE | U164: BANGALORE | V164: , | W164: N | X164: 40000 | Y164: 1995-02-24 | Z164: 1995-02-24 | AA164: 0 | AB164: 0 | AC164: 0 | AD164: 2000-02-24 | AE164: 80240 | AF164: 1 | AG164: 512 | AI164: 1 | AJ164: 3M0088 | AK164: MADHU MALIK | AL164: 60 | AM164: 0 | AN164: M | AO164: 2 | AP164: 14 | AQ164: 20.12 | AR164: N | BC164: 2/1 SUBBANAPALYA | BD164: BANASWADI MAIN ROAD | BE164: BANGALORE | BF164: BANGALORE | BH164: N | BI164: Y | BK164: 0 | BL164: A | BN164: 0 | BO164: 0 | BP164: 0 | BQ164: 0 | BS164: CONVERTION | BT164: 1997-04-10 | BU164: 8400 | BV164: 0 | BW164: 8400
A165: 163 | B165: 560 | C165: 5 | D165: 2246782 | E165: CD | G165: 1995-03-08 | H165: MR | I165: =COUNTIFS(J:J,J165,R:R,R165,S:S,S165,T:T,T165,U:U,U165,V:V,V165) -> 1 | J165: AJIT GAUTAM (MINOR) | L165: MR D S NAGENDRA RAO | O165: N | R165: PLOT NO 21 SHANTINAGAR | S165: 1ST MAIN ROAD | T165: KORATTUR, 2ND STREET | U165: MADRAS | V165: 600080 | W165: N | X165: 8000 | Y165: 1995-03-08 | Z165: 1995-03-08 | AA165: 0 | AB165: 0 | AC165: 0 | AD165: 2000-03-08 | AE165: 16048 | AF165: 1 | AG165: 512 | AI165: 2 | AJ165: 3M0058 | AK165: MANOJ KUMAR SHETTY | AL165: 60 | AM165: 0 | AN165: M | AO165: 2 | AP165: 14 | AQ165: 20.12 | AR165: N | BC165: PLOT NO 21 SHANTINAGAR | BD165: 1ST MAIN ROAD | BE165: KORATTUR, 2ND STREET | BF165: MADRAS | BG165: 600080 | BH165: Y | BI165: N | BK165: 0 | BL165: A | BN165: 0 | BO165: 0 | BP165: 0 | BQ165: 0 | BS165: CONVERTION | BT165: 1997-04-10 | BU165: 1680 | BV165: 0 | BW165: 1680
A166: 164 | B166: 561 | C166: 33 | D166: 2181912 | E166: FD | G166: 1998-11-23 | H166: MR | I166: =COUNTIFS(J:J,J166,R:R,R166,S:S,S166,T:T,T166,U:U,U166,V:V,V166) -> 1 | J166: AJIT JOHN KURYAN | O166: N | R166: C/O KARVY CONSULTANTS LTD | S166: 51/2 T K N COMPLEX | T166: OPP NATIONAL COLLEGE | U166: BASAVANGUDI B'LORE | V166: 560005 | W166: Y | X166: 15000 | Y166: 1998-11-18 | Z166: 1996-11-16 | AA166: 0 | AB166: 0 | AC166: 0 | AD166: 1999-11-19 | AE166: 15000 | AF166: 1 | AG166: 512 | AI166: 1 | AJ166: 3S0298 | AK166: SHIVA SHANKAR P K | AL166: 12 | AM166: 1 | AN166: M | AO166: 2 | AP166: 14 | AQ166: 14 | AR166: N | AS166: 23602102 | BC166: C/O KARVY CONSULTANTS LTD | BD166: 51/2 T K N COMPLEX | BE166: OPP NATIONAL COLLEGE | BF166: BASAVANGUDI B'LORE | BG166: 560005 | BH166: N | BI166: N | BK166: 0 | BL166: A | BM166: 1998-11-24 | BN166: 0 | BO166: 0 | BP166: 0 | BQ166: 0 | BS166: TIGER | BT166: 1998-11-24 | BU166: 3150 | BV166: 0 | BW166: 3150
A167: 165 | B167: 562 | C167: 10 | D167: 2256450 | E167: CD | G167: 1995-11-16 | H167: MR | I167: =COUNTIFS(J:J,J167,R:R,R167,S:S,S167,T:T,T167,U:U,U167,V:V,V167) -> 1 | J167: AJIT KUMAR C P | L167: MRS VATSALA KUMAR | O167: N | R167: 788/43, 9TH CROSS | S167: RAMANUJA ROAD | T167: MYSORE | U167: MYSORE | V167: 570004 | W167: Y | X167: 6000 | Y167: 1995-11-16 | Z167: 1995-11-16 | AA167: 0 | AB167: 0 | AC167: 0 | AD167: 2000-11-16 | AE167: 12642 | AF167: 1 | AG167: 512 | AI167: 2 | AJ167: 3K0018 | AK167: KASTURI V SHETTY | AL167: 60 | AM167: 0 | AN167: M | AO167: 2 | AP167: 15 | AQ167: 22.14 | AR167: N | BC167: 788/43, 9TH CROSS | BD167: RAMANUJA ROAD | BE167: MYSORE | BF167: MYSORE | BG167: 570004 | BH167: Y | BI167: N | BK167: 0 | BL167: A | BN167: 0 | BO167: 0 | BP167: 0 | BQ167: 0 | BS167: CONVERTION | BT167: 1997-04-10 | BU167: 1260 | BV167: 0 | BW167: 1260
A168: 166 | B168: 563 | C168: 3 | D168: 2281092 | E168: CD | G168: 1998-06-09 | H168: MR | I168: =COUNTIFS(J:J,J168,R:R,R168,S:S,S168,T:T,T168,U:U,U168,V:V,V168) -> 1 | J168: AJIT KUMAR N M | O168: N | R168: APARNA APARTMENTS | S168: DESHPANDE NAGAR | T168: HUBLI | U168: , | V168: 580029 | W168: Y | X168: 16000 | Y168: 1998-05-23 | AA168: 252.6 | AB168: 200 | AC168: -2852.6 | AD168: 1999-05-24 | AE168: 18400 | AF168: 1 | AG168: 512 | AI168: 1 | AJ168: 3R0041 | AK168: RASHMI L H | AL168: 12 | AM168: 1 | AN168: M | AO168: 2 | AP168: 14 | AQ168: 15 | BC168: APARNA APARTMENTS | BD168: DESHPANDE NAGAR | BE168: HUBLI | BG168: 580029 | BH168: N | BI168: N | BK168: 0 | BL168: A | BM168: 1999-05-11 | BN168: 0 | BO168: 0 | BP168: 0 | BQ168: 0 | BS168: ANITHA | BT168: 1998-06-10 | BU168: 3360 | BV168: 0 | BW168: 3360
A169: 167 | B169: 564 | C169: 4 | D169: 2181586 | E169: FD | G169: 1998-10-13 | H169: MR | I169: =COUNTIFS(J:J,J169,R:R,R169,S:S,S169,T:T,T169,U:U,U169,V:V,V169) -> 1 | J169: AJIT KUMAR P IJARI | K169: MR | L169: PADMANABHA PARISAPPA IJARI | O169: N | R169: 'ASHA-JYOTI', ADARSHA NAGAR | S169: MADHAVPUR VADAGOAN | T169: , | U169: BELGAUM | V169: 590005 | W169: Y | X169: 10000 | Y169: 1998-10-09 | Z169: 1996-10-07 | AA169: 105.86 | AB169: 134.17 | AC169: -1850.03 | AD169: 2000-10-10 | AE169: 13220 | AF169: 1 | AG169: 512 | AI169: 2 | AJ169: 3S0244 | AK169: SHRIMA SHETTY | AL169: 24 | AM169: 1 | AN169: Y | AO169: 2 | AP169: 15 | AQ169: 16.1 | AR169: N | AS169: 23602102 | BC169: 'ASHA-JYOTI', ADARSHA NAGAR | BD169: MADHAVPUR VADAGOAN | BF169: BELGAUM | BG169: 590005 | BH169: N | BI169: N | BK169: 0 | BL169: A | BM169: 1998-10-15 | BN169: 0 | BO169: 0 | BP169: 0 | BQ169: 0 | BS169: MOHAN | BT169: 1998-10-14 | BU169: 2100 | BV169: 0 | BW169: 2100
A170: 168 | B170: 565 | C170: 10 | D170: 2284259 | E170: CD | G170: 1998-09-29 | H170: MR | I170: =COUNTIFS(J:J,J170,R:R,R170,S:S,S170,T:T,T170,U:U,U170,V:V,V170) -> 1 | J170: AJIT M | O170: N | R170: 285/22 RAMANUJA ROAD | S170: , | T170: , | U170: MYSORE | V170: 570004 | W170: Y | X170: 10000 | Y170: 1998-09-26 | Z170: 1996-09-24 | AA170: 23.77 | AB170: 144.58 | AC170: -3638.35 | AD170: 1999-09-27 | AE170: 11500 | AF170: 1 | AG170: 512 | AI170: 1 | AJ170: 3K0065 | AK170: KRIPA .P.RAI | AL170: 12 | AM170: 1 | AN170: M | AO170: 2 | AP170: 14 | AQ170: 15 | AR170: N | BC170: 285/22 RAMANUJA ROAD | BF170: MYSORE | BG170: 570004 | BH170: N | BI170: N | BK170: 0 | BL170: A | BM170: 1999-05-11 | BN170: 0 | BO170: 0 | BP170: 0 | BQ170: 0 | BS170: RADHESH | BT170: 1998-10-08 | BU170: 2100 | BV170: 0 | BW170: 2100
A171: 169 | B171: 566 | C171: 4 | D171: 2267611 | E171: CD | G171: 1996-10-03 | H171: MR | I171: =COUNTIFS(J:J,J171,R:R,R171,S:S,S171,T:T,T171,U:U,U171,V:V,V171) -> 1 | J171: AJIT NINGAPPA RAMATEERTH | L171: MR BHARATESH S SADALGI | O171: N | R171: C/O MR A B SADALGI | S171: GIRNAR HILLS 5TH CROSS | T171: ADARSH NAGAR HINDWADI | U171: BELGAUM | V171: 590011 | W171: N | X171: 22000 | Y171: 1996-10-03 | Z171: 1996-10-03 | AA171: 0 | AB171: 0 | AC171: 0 | AD171: 1999-10-03 | AE171: 34408 | AF171: 1 | AG171: 512 | AI171: 2 | AJ171: 3S0112 | AK171: SADALGI | AL171: 36 | AM171: 0 | AN171: M | AO171: 2 | AP171: 15 | AQ171: 18.8 | AR171: N | BC171: C/O MR A B SADALGI | BD171: GIRNAR HILLS 5TH CROSS | BE171: ADARSH NAGAR HINDWADI | BF171: BELGAUM | BG171: 590011 | BH171: Y | BI171: N | BK171: 0 | BL171: A | BN171: 1396.32 | BO171: 0 | BP171: 292.45 | BQ171: 0 | BS171: CONVERTION | BT171: 1997-04-10 | BU171: 4620 | BV171: 3000 | BW171: 1620
A172: 170 | B172: 567 | C172: 10 | D172: 2281123 | E172: CD | G172: 1998-06-10 | H172: DR | I172: =COUNTIFS(J:J,J172,R:R,R172,S:S,S172,T:T,T172,U:U,U172,V:V,V172) -> 1 | J172: AJITH HEGDE | O172: N | R172: DOOR NO.300/P,VINAYA MARGA | S172: OPP.JSS SCHOOL,SIDDARTHA NAGAR | T172: , | U172: MYSORE | V172: 570011 | W172: Y | X172: 15000 | Y172: 1998-06-08 | AA172: 141.78 | AB172: 187.5 | AC172: -2579.28 | AD172: 1999-06-09 | AE172: 17250 | AF172: 1 | AG172: 512 | AI172: 1 | AJ172: 3D9999 | AK172: DIRECT DEPOSIT | AL172: 12 | AM172: 1 | AN172: M | AO172: 2 | AP172: 14 | AQ172: 15 | BC172: DOOR NO.300/P,VINAYA MARGA | BD172: OPP.JSS SCHOOL,SIDDARTHA NAGAR | BF172: MYSORE | BG172: 570011 | BH172: N | BI172: N | BK172: 0 | BL172: A | BM172: 1999-05-11 | BN172: 0 | BO172: 0 | BP172: 0 | BQ172: 0 | BS172: ANITHA | BT172: 1998-06-11 | BU172: 3150 | BV172: 0 | BW172: 3150
A173: 171 | B173: 568 | C173: 10 | D173: 2284637 | E173: CD | G173: 1998-10-24 | H173: DR | I173: =COUNTIFS(J:J,J173,R:R,R173,S:S,S173,T:T,T173,U:U,U173,V:V,V173) -> 1 | J173: AJITH HEGDE B | O173: N | R173: 401 R P C LAYOUT | S173: R V APTS | T173: VIJAYANAGAR | U173: BANGALORE | V173: , | W173: Y | X173: 16000 | Y173: 1998-09-24 | AA173: 246.03 | AB173: 200 | AC173: -2846.03 | AD173: 1999-09-25 | AE173: 18400 | AF173: 1 | AG173: 512 | AI173: 1 | AJ173: 3D9999 | AK173: DIRECT DEPOSIT | AL173: 12 | AM173: 1 | AN173: M | AO173: 2 | AP173: 14 | AQ173: 15 | BC173: 401 R P C LAYOUT | BD173: R V APTS | BE173: VIJAYANAGAR | BF173: BANGALORE | BH173: N | BI173: N | BK173: 0 | BL173: A | BM173: 1999-05-11 | BN173: 0 | BO173: 0 | BP173: 0 | BQ173: 0 | BS173: RADHESH | BT173: 1998-10-26 | BU173: 3360 | BV173: 0 | BW173: 3360
A174: 172 | B174: 569 | C174: 10 | D174: 2283785 | E174: CD | G174: 1998-09-14 | H174: MR | I174: =COUNTIFS(J:J,J174,R:R,R174,S:S,S174,T:T,T174,U:U,U174,V:V,V174) -> 1 | J174: AJITH KUMAR B | O174: N | R174: 6-1-16 | S174: MISSION HOSPITAL ROAD | T174: OPP: TALUK OFFICE | U174: UDUPI | V174: , | W174: Y | X174: 16000 | Y174: 1998-08-21 | Z174: 1996-08-19 | AA174: 265.75 | AB174: 200 | AC174: -2865.75 | AD174: 1999-08-22 | AE174: 18400 | AF174: 1 | AG174: 512 | AI174: 1 | AJ174: 3D9999 | AK174: DIRECT DEPOSIT | AL174: 12 | AM174: 1 | AN174: M | AO174: 2 | AP174: 14 | AQ174: 15 | AR174: N | BC174: 6-1-16 | BD174: MISSION HOSPITAL ROAD | BE174: OPP: TALUK OFFICE | BF174: UDUPI | BH174: N | BI174: N | BK174: 0 | BL174: A | BM174: 1999-05-11 | BN174: 0 | BO174: 0 | BP174: 0 | BQ174: 0 | BS174: RADHESH | BT174: 1998-09-14 | BU174: 3360 | BV174: 0 | BW174: 3360
A175: 173 | B175: 570 | C175: 3 | D175: 2281093 | E175: CD | G175: 1998-06-09 | H175: MR | I175: =COUNTIFS(J:J,J175,R:R,R175,S:S,S175,T:T,T175,U:U,U175,V:V,V175) -> 1 | J175: AJITH KUMAR N M | O175: N | R175: APARNA APTS | S175: NO.20 'A' BLOCK,2ND FLOOR | T175: 4TH CROSS,DESHPANDENAGAR | U175: HUBLI | V175: 580029 | W175: Y | X175: 16000 | Y175: 1998-04-22 | Z175: 1996-04-20 | AA175: 456.44 | AB175: 200 | AC175: -3056.44 | AD175: 1999-04-23 | AE175: 18400 | AF175: 1 | AG175: 512 | AI175: 1 | AJ175: 3R0041 | AK175: RASHMI L H | AL175: 12 | AM175: 1 | AN175: M | AO175: 2 | AP175: 14 | AQ175: 15 | AR175: N | BC175: APARNA APTS | BD175: NO.20 'A' BLOCK,2ND FLOOR | BE175: 4TH CROSS,DESHPANDENAGAR | BF175: HUBLI | BG175: 580029 | BH175: N | BI175: N | BK175: 0 | BL175: A | BM175: 1999-05-11 | BN175: 0 | BO175: 0 | BP175: 0 | BQ175: 0 | BS175: ANITHA | BT175: 1998-06-10 | BU175: 3360 | BV175: 0 | BW175: 3360
A176: 174 | B176: 571 | C176: 3 | D176: 2285381 | E176: CD | G176: 1998-11-26 | H176: MR | I176: =COUNTIFS(J:J,J176,R:R,R176,S:S,S176,T:T,T176,U:U,U176,V:V,V176) -> 1 | J176: AJITH KUMAR N M | O176: N | R176: APARNA APARTMENTS | S176: NO 20 A BLOCK | T176: 2ND FLOOR DESHPANDE NAGAR | U176: HUBLI | V176: 580029 | W176: Y | X176: 16000 | Y176: 1998-11-20 | Z176: 1996-11-18 | AA176: 72.33 | AB176: 200 | AC176: -2672.33 | AD176: 1999-11-21 | AE176: 18400 | AF176: 1 | AG176: 512 | AI176: 1 | AJ176: 3R0041 | AK176: RASHMI L H | AL176: 12 | AM176: 1 | AN176: M | AO176: 2 | AP176: 14 | AQ176: 15 | AR176: N | BC176: APARNA APARTMENTS | BD176: NO 20 A BLOCK | BE176: 2ND FLOOR DESHPANDE NAGAR | BF176: HUBLI | BG176: 580029 | BH176: N | BI176: N | BK176: 0 | BL176: A | BM176: 1999-05-11 | BN176: 0 | BO176: 0 | BP176: 0 | BQ176: 0 | BS176: MOHAN | BT176: 1998-11-26 | BU176: 3360 | BV176: 0 | BW176: 3360
A177: 175 | B177: 572 | C177: 6 | D177: 2170253 | E177: FD | G177: 1997-04-25 | H177: MSTR | I177: =COUNTIFS(J:J,J177,R:R,R177,S:S,S177,T:T,T177,U:U,U177,V:V,V177) -> 1 | J177: AJITH KUMAR RAO (MINOR) | K177: MR | L177: CHANDRAPRABHA | O177: Y | P177: M/G MRS SARASWATHI B | R177: ANGIRAS,15-12-690/1 | S177: OPP KANARA CLUB | T177: NEAR KADRI MARKET | U177: MANGALORE | V177: 575002 | W177: Y | X177: 11000 | Y177: 1997-04-11 | Z177: 1996-04-10 | AA177: 0 | AB177: 0 | AC177: 0 | AD177: 1999-04-11 | AE177: 14341.8 | AF177: 1 | AG177: 512 | AI177: 2 | AJ177: 3V0001 | AK177: VASANTHI B, M'LORE | AL177: 24 | AM177: 0 | AN177: Q | AO177: 9 | AP177: 15 | AQ177: 15.19 | AR177: Y | AU177: MRS SARASWATHI B | BC177: ANGIRAS,15-12-690/1 | BD177: OPP KANARA CLUB | BE177: NEAR KADRI MARKET | BF177: MANGALORE | BG177: 575002 | BH177: N | BI177: N | BK177: 0 | BL177: A | BN177: 0 | BO177: 0 | BP177: 0 | BQ177: 0 | BS177: TEST | BT177: 1997-05-03 | BU177: 2310 | BV177: 2000 | BW177: 310
A178: 176 | B178: 573 | C178: 6 | D178: 2286713 | E178: CD | G178: 1999-03-12 | H178: MR | I178: =COUNTIFS(J:J,J178,R:R,R178,S:S,S178,T:T,T178,U:U,U178,V:V,V178) -> 1 | J178: AJITH KUMAR S | O178: N | R178: C/O MR SHETTY K M | S178: CHITRAPU | T178: MULKI | U178: D K | V178: 574159 | W178: Y | X178: 16000 | Y178: 1998-12-05 | Z178: 1996-12-03 | AA178: 765.48 | AB178: 200 | AC178: -3365.48 | AD178: 1999-12-06 | AE178: 18400 | AF178: 1 | AG178: 512 | AI178: 1 | AJ178: 3S0288 | AK178: SHAMBHAVI B SHETTY | AL178: 12 | AM178: 1 | AN178: M | AO178: 2 | AP178: 14 | AQ178: 15 | AR178: N | BC178: C/O MR SHETTY K M | BD178: CHITRAPU | BE178: MULKI | BF178: D K | BG178: 574159 | BH178: N | BI178: N | BK178: 0 | BL178: A | BM178: 1999-05-11 | BN178: 0 | BO178: 0 | BP178: 0 | BQ178: 0 | BS178: TIGER | BT178: 1999-03-12 | BU178: 3360 | BV178: 2000 | BW178: 1360
A179: 177 | B179: 574 | C179: 6 | D179: 2380281 | E179: CC | G179: 1998-08-20 | H179: MR | I179: =COUNTIFS(J:J,J179,R:R,R179,S:S,S179,T:T,T179,U:U,U179,V:V,V179) -> 1 | J179: AJITH KUMAR SHETTY | O179: N | R179: S/O MR MAHABALA SHETTY K | S179: AGRICULTURIST | T179: POST KARNAD | U179: MULKY MANGALORE TQ | V179: 574154 | W179: Y | X179: 41552 | Y179: 1998-08-19 | Z179: 1996-08-19 | AA179: 256.77 | AB179: 600.77 | AC179: -15305.54 | AD179: 2000-08-20 | AE179: 56000 | AF179: 1 | AG179: 512 | AI179: 1 | AJ179: 3L0011 | AK179: LAKSHMI N SHETTY | AL179: 24 | AM179: 1 | AN179: M | AO179: 2 | AP179: 15 | AQ179: 17.35 | AR179: N | BC179: S/O MR MAHABALA SHETTY K | BD179: AGRICULTURIST | BE179: POST KARNAD | BF179: MULKY MANGALORE TQ | BG179: 574154 | BH179: Y | BI179: N | BK179: 0 | BL179: A | BM179: 1999-05-11 | BN179: 0 | BO179: 0 | BP179: 0 | BQ179: 0 | BS179: ANITHA | BT179: 1998-08-21 | BU179: 8725.92 | BV179: 0 | BW179: 8725.92
A180: 178 | B180: 575 | C180: 4 | D180: 2282672 | E180: CD | G180: 1998-08-06 | H180: MR | I180: =COUNTIFS(J:J,J180,R:R,R180,S:S,S180,T:T,T180,U:U,U180,V:V,V180) -> 1 | J180: AJITH N RANATHIRTHA | K180: MR | L180: SADALGI A B | O180: N | R180: CHIKKODI | S180: TALUK RAIBAGH | T180: , | U180: BELGAUM | V180: , | W180: Y | X180: 16000 | Y180: 1998-07-08 | AA180: 357.81 | AB180: 200 | AC180: -2957.81 | AD180: 1999-07-09 | AE180: 18400 | AF180: 1 | AG180: 512 | AI180: 2 | AJ180: 3S0112 | AK180: SADALGI | AL180: 12 | AM180: 1 | AN180: M | AO180: 2 | AP180: 14 | AQ180: 15 | BC180: CHIKKODI | BD180: TALUK RAIBAGH | BF180: BELGAUM | BH180: N | BI180: N | BK180: 0 | BL180: A | BM180: 1999-05-11 | BN180: 0 | BO180: 0 | BP180: 0 | BQ180: 0 | BS180: ANITHA | BT180: 1998-08-10 | BU180: 3360 | BV180: 2000 | BW180: 1360
A181: 179 | B181: 576 | C181: 10 | D181: 2173811 | E181: FD | G181: 1998-01-05 | H181: MRS | I181: =COUNTIFS(J:J,J181,R:R,R181,S:S,S181,T:T,T181,U:U,U181,V:V,V181) -> 1 | J181: AJITHA V SHENOY | K181: MR | L181: SHENOY V V N | O181: N | R181: H NO 626 1ST FLOOR | S181: 13TH CROSS 4TH STAGE | T181: T R LAYOUT | U181: MYSORE | V181: 570009 | X181: 16000 | Y181: 1998-01-02 | AA181: 0 | AB181: 0 | AC181: 0 | AD181: 2000-01-03 | AE181: 20800 | AF181: 1 | AG181: 512 | AI181: 2 | AJ181: 3K0065 | AK181: KRIPA .P.RAI | AL181: 24 | AM181: 1 | AN181: M | AO181: 2 | AP181: 15 | AQ181: 15 | AR181: N | AS181: 23602102 | BC181: H NO 626 1ST FLOOR | BD181: 13TH CROSS 4TH STAGE | BE181: T R LAYOUT | BF181: MYSORE | BG181: 570009 | BH181: N | BI181: N | BK181: 0 | BL181: A | BM181: 1997-12-31 | BN181: 0 | BO181: 0 | BP181: 0 | BQ181: 0 | BS181: VINOD | BT181: 1998-01-06 | BU181: 3360 | BV181: 0 | BW181: 3360
A182: 180 | B182: 577 | C182: 28 | D182: 2283941 | E182: CD | G182: 1998-09-19 | H182: MS | I182: =COUNTIFS(J:J,J182,R:R,R182,S:S,S182,T:T,T182,U:U,U182,V:V,V182) -> 1 | J182: AKANKSHA | K182: MRS | L182: VASUMATHI R HEGDE | O182: N | R182: C/O K R HEGDE | S182: KALLADI | T182: P O SAIBERAKATTE | U182: UDUPI DIST | V182: , | W182: Y | X182: 15000 | Y182: 1998-09-09 | Z182: 1996-09-07 | AA182: 135.62 | AB182: 187.5 | AC182: -2573.12 | AD182: 1999-09-10 | AE182: 17250 | AF182: 1 | AG182: 512 | AI182: 2 | AJ182: 3P0056 | AK182: PREMAVATHI S HEGDE | AL182: 12 | AM182: 1 | AN182: M | AO182: 2 | AP182: 14 | AQ182: 15 | AR182: N | BC182: C/O K R HEGDE | BD182: KALLADI | BE182: P O SAIBERAKATTE | BF182: UDUPI DIST | BH182: N | BI182: N | BK182: 0 | BL182: A | BM182: 1999-05-11 | BN182: 0 | BO182: 0 | BP182: 0 | BQ182: 0 | BS182: RADHESH | BT182: 1998-09-19 | BU182: 3150 | BV182: 2000 | BW182: 1150
A183: 181 | B183: 578 | C183: 17 | D183: 2265684 | E183: CD | G183: 1996-08-28 | H183: MISS | I183: =COUNTIFS(J:J,J183,R:R,R183,S:S,S183,T:T,T183,U:U,U183,V:V,V183) -> 1 | J183: AKASHATA D TRASI (MINOR) | O183: Y | P183: M/G MR DURGADAS S TRASI | R183: D/O MR DURGADAS S TRASI | S183: SMRUTI | T183: NAVVNDA, | U183: KUNDAPUR TALUK | V183: 576224 | W183: N | X183: 1000 | Y183: 1996-08-28 | Z183: 1996-08-28 | AA183: 0 | AB183: 0 | AC183: 0 | AD183: 2001-08-28 | AE183: 2107 | AF183: 1 | AG183: 512 | AI183: 1 | AJ183: 3M0075 | AK183: MANJULA | AL183: 60 | AM183: 0 | AN183: M | AO183: 2 | AP183: 15 | AQ183: 22.14 | AR183: N | BC183: D/O MR DURGADAS S TRASI | BD183: SMRUTI | BE183: NAVVNDA, | BF183: KUNDAPUR TALUK | BG183: 576224 | BH183: Y | BI183: N | BK183: 0 | BL183: A | BN183: 0 | BO183: 0 | BP183: 0 | BQ183: 0 | BS183: CONVERTION | BT183: 1997-04-10 | BU183: 210 | BV183: 0 | BW183: 210
A184: 182 | B184: 579 | C184: 7 | D184: 2282235 | E184: CD | G184: 1998-07-22 | H184: MS | I184: =COUNTIFS(J:J,J184,R:R,R184,S:S,S184,T:T,T184,U:U,U184,V:V,V184) -> 1 | J184: AKHILA | O184: Y | P184: MRS SUMI | Q184: 1985-09-16 | R184: P B NO. 23 | S184: K CHETTALLI POST | T184: , | U184: KODAGU | V184: 571248 | W184: Y | X184: 57000 | Y184: 1998-07-20 | AA184: 325.13 | AB184: 824.13 | AC184: -20928.26 | AD184: 2000-07-21 | AE184: 76779 | AF184: 1 | AG184: 512 | AI184: 1 | AJ184: 3S0208 | AK184: SUBRAMANI K.P | AL184: 24 | AM184: 1 | AN184: M | AO184: 2 | AP184: 15 | AQ184: 17.35 | BC184: P B NO. 23 | BD184: K CHETTALLI POST | BF184: KODAGU | BG184: 571248 | BH184: Y | BI184: N | BK184: 0 | BL184: A | BM184: 1999-05-11 | BN184: 0 | BO184: 0 | BP184: 0 | BQ184: 0 | BS184: VINOD | BT184: 1998-07-23 | BU184: 11970 | BV184: 10000 | BW184: 1970
A185: 183 | B185: 580 | C185: 13 | D185: 2655537 | E185: CD | G185: 1996-03-15 | H185: KUM | I185: =COUNTIFS(J:J,J185,R:R,R185,S:S,S185,T:T,T185,U:U,U185,V:V,V185) -> 1 | J185: AKHILA P N (MINOR) | O185: Y | P185: M/G MRS ANITHA T | R185: "APPU NIWAS" | S185: KADRIKAMBLA,KADRI MUNDAN | T185: NEW TEMPLE ROAD | U185: BEJAI, MANGALORE | V185: 575003 | W185: Y | X185: 8000 | Y185: 1996-03-15 | Z185: 1996-03-15 | AA185: 0 | AB185: 0 | AC185: 0 | AD185: 1999-03-15 | AE185: 12512 | AF185: 1 | AG185: 512 | AI185: 1 | AJ185: 3C0024 | AK185: CHITRA | AL185: 36 | AM185: 0 | AN185: M | AO185: 2 | AP185: 15 | AQ185: 18.8 | AR185: N | BC185: "APPU NIWAS" | BD185: KADRIKAMBLA,KADRI MUNDAN | BE185: NEW TEMPLE ROAD | BF185: BEJAI, MANGALORE | BG185: 575003 | BH185: Y | BI185: N | BK185: 0 | BL185: A | BN185: 1235.4 | BO185: 0 | BP185: 115.44 | BQ185: 0 | BS185: CONVERTION | BT185: 1997-04-10 | BU185: 1680 | BV185: 0 | BW185: 1680
A186: 184 | B186: 581 | C186: 33 | D186: 2290914 | E186: CD | G186: 1999-09-15 | H186: MRS | I186: =COUNTIFS(J:J,J186,R:R,R186,S:S,S186,T:T,T186,U:U,U186,V:V,V186) -> 1 | J186: AKHTARI BEGUM | K186: MR | L186: SYED SIRAJ AHMED | O186: N | R186: W/O SYED S RAJ AHMAD | S186: 32, MUNIVENKATTAPPA BLOCK | T186: 3RD CROSS,CHURCH ROAD | U186: BANGALORE | V186: 560006 | W186: Y | X186: 50000 | Y186: 1999-09-09 | AA186: 522.88 | AB186: 722.92 | AC186: -18595.79 | AD186: 2001-09-10 | AE186: 67350 | AF186: 1 | AG186: 512 | AI186: 2 | AJ186: 3D9999 | AK186: DIRECT DEPOSIT | AL186: 24 | AM186: 1 | AN186: M | AO186: 2 | AP186: 15 | AQ186: 17.35 | AR186: N | AS186: 23602102 | BC186: W/O SYED S RAJ AHMAD | BD186: 32, MUNIVENKATTAPPA BLOCK | BE186: 3RD CROSS,CHURCH ROAD | BF186: BANGALORE | BG186: 560006 | BH186: Y | BI186: N | BK186: 0 | BL186: A | BM186: 2000-04-24 | BN186: 0 | BO186: 0 | BP186: 0 | BQ186: 0 | BS186: GEETHA | BT186: 1999-09-16 | BU186: 10500 | BV186: 5000 | BW186: 5500
A187: 185 | B187: 582 | C187: 28 | D187: 2281806 | E187: CD | G187: 1998-07-06 | H187: MRS | I187: =COUNTIFS(J:J,J187,R:R,R187,S:S,S187,T:T,T187,U:U,U187,V:V,V187) -> 1 | J187: AKILA R RAI | O187: N | R187: D/O LATE A N SHETTY | S187: ULTHUR VILLAGE | T187: KUNDAPUR TQ | U187: D K | V187: , | W187: Y | X187: 39000 | Y187: 1998-07-04 | Z187: 1996-07-02 | AA187: 448.77 | AB187: 487.5 | AC187: -6786.27 | AD187: 1999-07-05 | AE187: 44850 | AF187: 1 | AG187: 512 | AI187: 1 | AJ187: 3S0213 | AK187: SASHIKALA S HEGDE | AL187: 12 | AM187: 1 | AN187: M | AO187: 2 | AP187: 14 | AQ187: 15 | AR187: N | BC187: D/O LATE A N SHETTY | BD187: ULTHUR VILLAGE | BE187: KUNDAPUR TQ | BF187: D K | BH187: Y | BI187: N | BK187: 0 | BL187: A | BM187: 1999-05-11 | BN187: 0 | BO187: 0 | BP187: 0 | BQ187: 0 | BS187: VINOD | BT187: 1998-07-07 | BU187: 8190 | BV187: 0 | BW187: 8190
A188: 186 | B188: 583 | C188: 33 | D188: 2269448 | E188: CD | G188: 1996-11-26 | H188: MS | I188: =COUNTIFS(J:J,J188,R:R,R188,S:S,S188,T:T,T188,U:U,U188,V:V,V188) -> 1 | J188: AKKAIAMMA | L188: MR KRISHNAPPA | O188: N | R188: W/O LATE PILLAPPA | S188: 1ST MAIN ROAD 1ST CROSS | T188: MATHIKERE | U188: BANGALORE | V188: , | W188: N | X188: 50000 | Y188: 1996-11-26 | Z188: 1996-11-26 | AA188: 0 | AB188: 0 | AC188: 0 | AD188: 2001-11-26 | AE188: 105350 | AF188: 1 | AG188: 512 | AI188: 2 | AJ188: 3M0027 | AK188: MUKUNDA | AL188: 60 | AM188: 0 | AN188: M | AO188: 2 | AP188: 15 | AQ188: 22.14 | AR188: N | BC188: W/O LATE PILLAPPA | BD188: 1ST MAIN ROAD 1ST CROSS | BE188: MATHIKERE | BF188: BANGALORE | BH188: Y | BI188: N | BK188: 0 | BL188: A | BN188: 0 | BO188: 0 | BP188: 0 | BQ188: 0 | BS188: CONVERTION | BT188: 1997-04-10 | BU188: 10500 | BV188: 0 | BW188: 10500
A189: 187 | B189: 584 | C189: 33 | D189: 2269449 | E189: CD | G189: 1996-11-26 | H189: MRS | I189: =COUNTIFS(J:J,J189,R:R,R189,S:S,S189,T:T,T189,U:U,U189,V:V,V189) -> 1 | J189: AKKAIAMMA | L189: MR KRISHNAPPA | O189: N | R189: W/O LATE PILLAPPA | S189: 634 1ST MAIN | T189: 1ST CROSS, MATHIKERE | U189: BANGALORE | V189: , | W189: N | X189: 54000 | Y189: 1996-11-26 | Z189: 1996-11-26 | AA189: 0 | AB189: 0 | AC189: 0 | AD189: 2001-11-26 | AE189: 113778 | AF189: 1 | AG189: 512 | AI189: 2 | AJ189: 3M0027 | AK189: MUKUNDA | AL189: 60 | AM189: 0 | AN189: M | AO189: 2 | AP189: 15 | AQ189: 22.14 | AR189: N | BC189: W/O LATE PILLAPPA | BD189: 634 1ST MAIN | BE189: 1ST CROSS, MATHIKERE | BF189: BANGALORE | BH189: Y | BI189: N | BK189: 0 | BL189: A | BN189: 0 | BO189: 0 | BP189: 0 | BQ189: 0 | BS189: CONVERTION | BT189: 1997-04-10 | BU189: 11340 | BV189: 0 | BW189: 11340
A190: 188 | B190: 585 | C190: 15 | D190: 2281684 | E190: CD | G190: 1998-06-30 | H190: MRS | I190: =COUNTIFS(J:J,J190,R:R,R190,S:S,S190,T:T,T190,U:U,U190,V:V,V190) -> 1 | J190: AKKALI VIMALA | O190: N | R190: KUNNINANKANDI | S190: KISAN ROAD | T190: , | U190: KANNUR | V190: 670014 | W190: Y | X190: 15000 | Y190: 1998-06-17 | AA190: 99.82 | AB190: 216.88 | AC190: -5521.7 | AD190: 2000-06-18 | AE190: 20205 | AF190: 1 | AG190: 512 | AI190: 1 | AJ190: 3S0121 | AK190: SUJATHA P K | AL190: 24 | AM190: 1 | AN190: M | AO190: 2 | AP190: 15 | AQ190: 17.35 | BC190: KUNNINANKANDI | BD190: KISAN ROAD | BF190: KANNUR | BG190: 670014 | BH190: Y | BI190: N | BK190: 0 | BL190: A | BM190: 1999-05-11 | BN190: 0 | BO190: 0 | BP190: 0 | BQ190: 0 | BS190: VINOD | BT190: 1998-07-01 | BU190: 3150 | BV190: 0 | BW190: 3150
A191: 189 | B191: 586 | C191: 4 | D191: 2190222 | E191: FD | G191: 1999-07-30 | H191: MRS | I191: =COUNTIFS(J:J,J191,R:R,R191,S:S,S191,T:T,T191,U:U,U191,V:V,V191) -> 1 | J191: AKKAMAHADEVI C WALI | K191: MR | L191: CHANNABASAPPA N WALI | O191: N | R191: PLOT NO:566 | S191: SHIVA-BASAVA NAGAR | T191: , | U191: BELGAUM | V191: 590010 | W191: Y | X191: 10000 | Y191: 1999-07-17 | AA191: 0 | AB191: 0 | AC191: 0 | AD191: 2000-07-18 | AE191: 11416 | AF191: 1 | AG191: 512 | AI191: 2 | AJ191: 3R0115 | AK191: RANJANA N PAWAR | AL191: 12 | AM191: 1 | AN191: Q | AO191: 2 | AP191: 14 | AQ191: 14.16 | AR191: N | AS191: 23602102 | BC191: PLOT NO:566 | BD191: SHIVA-BASAVA NAGAR | BF191: BELGAUM | BG191: 590010 | BH191: N | BI191: N | BK191: 0 | BL191: A | BM191: 1999-07-30 | BN191: 0 | BO191: 0 | BP191: 0 | BQ191: 0 | BS191: GEETHA | BT191: 1999-07-30 | BU191: 2100 | BV191: 0 | BW191: 2100
A192: 190 | B192: 587 | C192: 33 | D192: 2290052 | E192: CD | G192: 1999-04-16 | H192: MRS | I192: =COUNTIFS(J:J,J192,R:R,R192,S:S,S192,T:T,T192,U:U,U192,V:V,V192) -> 1 | J192: AKKAMAHADEVI M | O192: N | R192: NO.184, I MAIN, 1ST STAGE | S192: 5TH PHASE, W O C ROAD | T192: INDUSTRIAL TOWN | U192: BANGALORE | V192: 560044 | W192: Y | X192: 15000 | Y192: 1999-02-21 | Z192: 1997-02-19 | AA192: 421.75 | AB192: 187.5 | AC192: -2859.25 | AD192: 2000-02-22 | AE192: 17250 | AF192: 1 | AG192: 512 | AI192: 1 | AJ192: 3D9999 | AK192: DIRECT DEPOSIT | AL192: 12 | AM192: 1 | AN192: M | AO192: 2 | AP192: 14 | AQ192: 15 | AR192: N | BC192: NO.184, I MAIN, 1ST STAGE | BD192: 5TH PHASE, W O C ROAD | BE192: INDUSTRIAL TOWN | BF192: BANGALORE | BG192: 560044 | BH192: N | BI192: N | BK192: 0 | BL192: A | BM192: 1999-05-11 | BN192: 0 | BO192: 0 | BP192: 0 | BQ192: 0 | BS192: GEETHA | BT192: 1999-04-19 | BU192: 3150 | BV192: 0 | BW192: 3150
A193: 191 | B193: 588 | C193: 4 | D193: 2181123 | E193: FD | G193: 1998-08-18 | H193: MRS | I193: =COUNTIFS(J:J,J193,R:R,R193,S:S,S193,T:T,T193,U:U,U193,V:V,V193) -> 1 | J193: AKKAMAHADEVI M PATIL | K193: MR | L193: SANDEEP M PATIL | O193: N | R193: PLOT NO 71 | S193: SHAHUNAGAR | T193: , | U193: BELGAUM | V193: 590010 | W193: Y | X193: 52000 | Y193: 1998-08-17 | Z193: 1995-08-17 | AA193: 0 | AB193: 0 | AC193: 0 | AD193: 2000-08-18 | AE193: 67600 | AF193: 1 | AG193: 512 | AI193: 2 | AJ193: 3P0022 | AK193: PANDURANG S SATTIGERI | AL193: 24 | AM193: 1 | AN193: M | AO193: 2 | AP193: 15 | AQ193: 15 | AR193: N | AS193: 23602102 | BC193: PLOT NO 71 | BD193: SHAHUNAGAR | BF193: BELGAUM | BG193: 590010 | BH193: Y | BI193: N | BK193: 0 | BL193: A | BM193: 1998-08-19 | BN193: 0 | BO193: 0 | BP193: 0 | BQ193: 0 | BS193: ANITHA | BT193: 1998-08-19 | BU193: 10920 | BV193: 0 | BW193: 10920
A194: 192 | B194: 589 | C194: 4 | D194: 2270499 | E194: CD | G194: 1997-04-14 | H194: MRS | I194: =COUNTIFS(J:J,J194,R:R,R194,S:S,S194,T:T,T194,U:U,U194,V:V,V194) -> 1 | J194: AKKAMAHADEVI M PATIL | K194: MR | L194: PATIL M S | O194: N | R194: PLOT NO 71 | S194: SHAHU NAGAR | T194: BELGAUM | U194: , | V194: 590010 | X194: 5000 | Y194: 1997-04-14 | AA194: 43.78 | AB194: 78.33 | AC194: -2942.11 | AD194: 2000-04-14 | AE194: 7820 | AF194: 1 | AG194: 512 | AI194: 2 | AJ194: 3P0022 | AK194: PANDURANG S SATTIGERI | AL194: 36 | AM194: 0 | AN194: M | AP194: 15 | AQ194: 18.8 | BC194: PLOT NO 71 | BD194: SHAHU NAGAR | BE194: BELGAUM | BG194: 590010 | BH194: N | BI194: N | BK194: 0 | BL194: A | BM194: 1998-04-08 | BN194: 0 | BO194: 0 | BP194: 0 | BQ194: 0 | BS194: TEST | BT194: 1997-05-05 | BU194: 1050 | BV194: 0 | BW194: 1050
A195: 193 | B195: 590 | C195: 17 | D195: 2284579 | E195: CD | G195: 1998-10-16 | H195: MISS | I195: =COUNTIFS(J:J,J195,R:R,R195,S:S,S195,T:T,T195,U:U,U195,V:V,V195) -> 1 | J195: AKKAMMA | O195: N | R195: D/O SUKRA DEVADIGA | S195: KURUVAL HEBBAGILU MANE | T195: POST KERGAL | U195: KUNDAPURA TALUK (D K | V195: 576219 | W195: Y | X195: 20000 | Y195: 1998-09-27 | Z195: 1993-09-27 | AA195: 417.53 | AB195: 369 | AC195: -22926.53 | AD195: 2003-09-27 | AE195: 42140 | AF195: 1 | AG195: 512 | AI195: 1 | AJ195: 3S0179 | AK195: SEETHA A DEVADIGA | AL195: 60 | AM195: 0 | AN195: M | AO195: 2 | AP195: 15 | AQ195: 22.14 | AR195: N | BC195: D/O SUKRA DEVADIGA | BD195: KURUVAL HEBBAGILU MANE | BE195: POST KERGAL | BF195: KUNDAPURA TALUK (D K | BG195: 576219 | BH195: Y | BI195: N | BK195: 0 | BL195: A | BM195: 1999-05-11 | BN195: 0 | BO195: 0 | BP195: 0 | BQ195: 0 | BS195: ANITHA | BT195: 1998-10-20 | BU195: =+X195*21% -> 4200 | BV195: 0 | BW195: 4200
A196: 194 | B196: 591 | C196: 17 | D196: 2250837 | E196: CD | G196: 1995-05-10 | H196: MISS | I196: =COUNTIFS(J:J,J196,R:R,R196,S:S,S196,T:T,T196,U:U,U196,V:V,V196) -> 1 | J196: AKKAMMA DEVADIGA | O196: N | R196: D/O SUKRA DEVADIGA | S196: KURUL HEBBAGIL MANE | T196: POST KERGAL | U196: KUNDAPUR TALUK | V196: 576219 | W196: N | X196: 8000 | Y196: 1995-05-10 | Z196: 1995-05-10 | AA196: 0 | AB196: 0 | AC196: 0 | AD196: 2000-05-10 | AE196: 16048 | AF196: 1 | AG196: 512 | AI196: 1 | AJ196: 3S0179 | AK196: SEETHA A DEVADIGA | AL196: 60 | AM196: 0 | AN196: M | AO196: 2 | AP196: 14 | AQ196: 20.12 | AR196: N | BC196: D/O SUKRA DEVADIGA | BD196: KURUL HEBBAGIL MANE | BE196: POST KERGAL | BF196: KUNDAPUR TALUK | BG196: 576219 | BH196: Y | BI196: N | BK196: 0 | BL196: A | BN196: 0 | BO196: 0 | BP196: 0 | BQ196: 0 | BS196: CONVERTION | BT196: 1997-04-10 | BU196: 1680 | BV196: 0 | BW196: 1680
A197: 195 | B197: 592 | C197: 4 | D197: 2285866 | E197: CD | G197: 1998-12-24 | H197: MS | I197: =COUNTIFS(J:J,J197,R:R,R197,S:S,S197,T:T,T197,U:U,U197,V:V,V197) -> 1 | J197: AKKATAI KASHINATH JOSHI | K197: MR | L197: JOSHI A K | O197: N | R197: C/O MR JOSHI A K | S197: AKSHAY APARTMENTS FLAT NO 3 | T197: 88 MANGALWAR PETH TILAKWADI | U197: BELGAUM | V197: 590006 | W197: Y | X197: 15000 | Y197: 1998-11-13 | Z197: 1996-11-11 | AA197: 298.46 | AB197: 187.5 | AC197: -2735.96 | AD197: 1999-11-14 | AE197: 17250 | AF197: 1 | AG197: 512 | AI197: 2 | AJ197: 3S0293 | AK197: SHANUAKH SHETTY | AL197: 12 | AM197: 1 | AN197: M | AO197: 2 | AP197: 14 | AQ197: 15 | AR197: N | BC197: C/O MR JOSHI A K | BD197: AKSHAY APARTMENTS FLAT NO 3 | BE197: 88 MANGALWAR PETH TILAKWADI | BF197: BELGAUM | BG197: 590006 | BH197: N | BI197: N | BK197: 0 | BL197: A | BM197: 1999-05-11 | BN197: 0 | BO197: 0 | BP197: 0 | BQ197: 0 | BS197: RADHESH | BT197: 1998-12-24 | BU197: 3150 | BV197: 0 | BW197: 3150
A198: 196 | B198: 593 | C198: 33 | D198: 2281480 | E198: CD | G198: 1998-06-23 | H198: MRS | I198: =COUNTIFS(J:J,J198,R:R,R198,S:S,S198,T:T,T198,U:U,U198,V:V,V198) -> 1 | J198: AKKAVVA VISHWANATH | K198: MR | L198: VISHWANATH K B | O198: N | R198: 287 1ST MAIN | S198: DEFENCE COLONY | T198: INDIRANAGAR | U198: BANGALORE | V198: 560038 | W198: Y | X198: 50000 | Y198: 1998-05-31 | Z198: 1996-05-31 | AA198: 736.78 | AB198: 722.92 | AC198: -18809.7 | AD198: 2000-06-01 | AE198: 67350 | AF198: 1 | AG198: 512 | AI198: 2 | AJ198: 3D9999 | AK198: DIRECT DEPOSIT | AL198: 24 | AM198: 1 | AN198: M | AO198: 2 | AP198: 15 | AQ198: 17.35 | AR198: N | BC198: 287 1ST MAIN | BD198: DEFENCE COLONY | BE198: INDIRANAGAR | BF198: BANGALORE | BG198: 560038 | BH198: Y | BI198: N | BK198: 0 | BL198: A | BM198: 1999-05-11 | BN198: 0 | BO198: 0 | BP198: 0 | BQ198: 0 | BS198: VINOD | BT198: 1998-06-24 | BU198: 10500 | BV198: 5000 | BW198: 5500
A199: 197 | B199: 594 | C199: 16 | D199: 2280974 | E199: CD | G199: 1998-06-03 | H199: MRS | I199: =COUNTIFS(J:J,J199,R:R,R199,S:S,S199,T:T,T199,U:U,U199,V:V,V199) -> 1 | J199: AKKU ACHARTHI | O199: N | R199: NEAR SANTHOOR PARARI HOUSE | S199: POST PILAR | T199: UDUPI DIST | U199: , | V199: 574113 | W199: Y | X199: 14000 | Y199: 1998-05-16 | Z199: 1996-05-14 | AA199: 302.24 | AB199: 202.42 | AC199: -5362.66 | AD199: 2000-05-17 | AE199: 18858 | AF199: 1 | AG199: 512 | AI199: 1 | AJ199: 3S0078 | AK199: SULOCHANA R HEGDE | AL199: 24 | AM199: 1 | AN199: M | AO199: 2 | AP199: 15 | AQ199: 17.35 | AR199: N | BC199: NEAR SANTHOOR PARARI HOUSE | BD199: POST PILAR | BE199: UDUPI DIST | BG199: 574113 | BH199: N | BI199: N | BK199: 0 | BL199: A | BM199: 1999-05-11 | BN199: 0 | BO199: 0 | BP199: 0 | BQ199: 0 | BS199: ANITHA | BT199: 1998-06-05 | BU199: 2940 | BV199: 0 | BW199: 2940
A200: 198 | B200: 595 | C200: 16 | D200: 2160893 | E200: FD | G200: 1996-06-15 | H200: MRS | I200: =COUNTIFS(J:J,J200,R:R,R200,S:S,S200,T:T,T200,U:U,U200,V:V,V200) -> 1 | J200: AKKU MOOLYADI | L200: MS PUSHPA MOOLYADI | O200: N | R200: W/O PIGINA MOOLYA | S200: MALANGOLI HOUSE | T200: KALATHUR SOUTH POST | U200: UDUPI TQ | V200: 574135 | W200: N | X200: 25000 | Y200: 1996-06-15 | Z200: 1996-06-15 | AA200: 0 | AB200: 0 | AC200: 0 | AD200: 1999-06-15 | AE200: 25000 | AF200: 1 | AG200: 512 | AI200: 2 | AJ200: 3S0078 | AK200: SULOCHANA R HEGDE | AL200: 36 | AM200: 0 | AN200: M | AO200: 2 | AP200: 15 | AQ200: 15 | AR200: N | BC200: W/O PIGINA MOOLYA | BD200: MALANGOLI HOUSE | BE200: KALATHUR SOUTH POST | BF200: UDUPI TQ | BG200: 574135 | BH200: Y | BI200: N | BK200: 0 | BL200: A | BM200: 1996-06-15 | BN200: 2668 | BO200: 0 | BP200: 313 | BQ200: 0 | BS200: CONVERTION | BT200: 1997-04-10 | BU200: 5250 | BV200: 4327 | BW200: 923
... 925 more rows
